Workbook

Sheet Index sheet
A1: Sheet index:
A2: RawDataIReceive
A3: 1stAnalysis-Vertical
A4: 2ndAnalysis-Horizontal
A5: 3rdAnalysis-Ratio(Amount)
A6: 4thAnalysis-Ratio(Times)
A7: 5thAnalysis-Ratio(%)
A8: ALL

Sheet 1.RawDataIReceive
A1: No. | B1: Company | C1: Financial Statement/ Ratio | D1: Main item in Financial Statement/ Ratio | E1: Detailed item in Financial Statement/ Ratio | F1: 2016 | G1: 2017 | H1: 2018 | I1: 2019 | J1: 2020 | K1: 2021
A2: 1 | B2: Hero | C2: Balance Sheet | D2: Non Current Asset | E2: Fixed Assets | F2: 227339503 | G2: 455075469 | H2: 737983522 | I2: 158516489 | J2: 949673811 | K2: 122355205
A3: 2 | B3: Hero | C3: Balance Sheet | D3: Non Current Asset | E3: Investments | F3: 4646071302 | G3: 5948368946 | H3: 3443879482 | I3: 5432143898 | J3: 5522205033 | K3: 3109044508
A4: 3 | B4: Hero | C4: Balance Sheet | D4: Non Current Asset | E4: Property, plant, and equipment | F4: 746852209 | G4: 649847449 | H4: 785944929 | I4: 574688129 | J4: 272007072 | K4: 234186671
A5: 4 | B5: Hero | C5: Balance Sheet | D5: Non Current Asset | E5: Intangible assets | F5: 828390929 | G5: 643895802 | H5: 282559286 | I5: 150923767 | J5: 280775748 | K5: 990658996
A6: 5 | B6: Hero | C6: Balance Sheet | D6: Non Current Asset | E6: Other assets | F6: 334111497 | G6: 285715422 | H6: 985436651 | I6: 660299816 | J6: 817987615 | K6: 847334691
A7: 6 | B7: Hero | C7: Balance Sheet | D7: Balance Sheet Totals | E7: Total Non current asset | F7: =SUM(F2:F6) -> 6782765440 | G7: =SUM(G2:G6) -> 7982903088 | H7: 6235803870 | I7: 6976572099 | J7: 7842649279 | K7: 5303580071
A8: 7 | B8: Hero | C8: Balance Sheet | D8: Current Assets | E8: Inventory | F8: 62120567 | G8: 614738586 | H8: 945192391 | I8: 508173456 | J8: 600298289 | K8: 13659048
A9: 8 | B9: Hero | C9: Balance Sheet | D9: Current Assets | E9: Clients | F9: 193186705 | G9: 929932027 | H9: 82975532 | I9: 379236925 | J9: 941063873 | K9: 358344789
A10: 9 | B10: Hero | C10: Balance Sheet | D10: Current Assets | E10: Short term derivatives | F10: 841606422 | G10: 133855977 | H10: 555904841 | I10: 493374828 | J10: 120153333 | K10: 399195881
A11: 10 | B11: Hero | C11: Balance Sheet | D11: Current Assets | E11: Accounts receivables | F11: 227758168 | G11: 949945896 | H11: 445161328 | I11: 572082814 | J11: 874781478 | K11: 90087448
A12: 11 | B12: Hero | C12: Balance Sheet | D12: Current Assets | E12: Cash | F12: 220888884 | G12: 13946342 | H12: 101678631 | I12: 870691375 | J12: 39099833 | K12: 537196821
A13: 12 | B13: Hero | C13: Balance Sheet | D13: Current Assets | E13: Bank Deposits | F13: 541493663 | G13: 774698823 | H13: 505566091 | I13: 774321336 | J13: 54347354 | K13: 653669028
A14: 13 | B14: Hero | C14: Balance Sheet | D14: Balance Sheet Totals | E14: Total Current Assets | F14: =SUM(F8:F13) -> 2087054409 | G14: =SUM(G8:G13) -> 3417117651 | H14: 2636478814 | I14: 3597880734 | J14: 2629744160 | K14: 2052153015
A15: 14 | B15: Hero | C15: Balance Sheet | D15: Balance Sheet Totals | E15: Total Assets | F15: =SUM(F14,F7) -> 8869819849 | G15: =SUM(G14,G7) -> 11400020739 | H15: 8872282684 | I15: 10574452833 | J15: 10472393439 | K15: 7355733086
A16: 15 | B16: Hero | C16: Balance Sheet | D16: Current Liabilities | E16: Accounts payable | F16: 357759805 | G16: 493407935 | H16: 344776389 | I16: 923347988 | J16: 871555042 | K16: 966975322
A17: 16 | B17: Hero | C17: Balance Sheet | D17: Current Liabilities | E17: Short-term debt | F17: 150370338 | G17: 615334819 | H17: 638431384 | I17: 956351084 | J17: 463385129 | K17: 123111329
A18: 17 | B18: Hero | C18: Balance Sheet | D18: Current Liabilities | E18: Dividends payable | F18: 334942436 | G18: 593990745 | H18: 64976326 | I18: 653795991 | J18: 39021794 | K18: 731454224
A19: 18 | B19: Hero | C19: Balance Sheet | D19: Current Liabilities | E19: Notes payable | F19: 999301227 | G19: 642551804 | H19: 390362981 | I19: 880965837 | J19: 645192107 | K19: 647266714
A20: 19 | B20: Hero | C20: Balance Sheet | D20: Current Liabilities | E20: The current portion of deferred revenue | F20: 233081611 | G20: 916398213 | H20: 487845343 | I20: 244880889 | J20: 380590035 | K20: 133894516
A21: 20 | B21: Hero | C21: Balance Sheet | D21: Current Liabilities | E21: Current maturities of long-term debt | F21: 872753992 | G21: 983620671 | H21: 25983278 | I21: 877290617 | J21: 932426949 | K21: 247967907
A22: 21 | B22: Hero | C22: Balance Sheet | D22: Current Liabilities | E22: Interest payable on outstanding debts | F22: 257784384 | G22: 95396253 | H22: 619534515 | I22: 715685671 | J22: 233621024 | K22: 680936048
A23: 22 | B23: Hero | C23: Balance Sheet | D23: Current Liabilities | E23: Income taxes owed within the next year | F23: 377787846 | G23: 995692434 | H23: 477722183 | I23: 24995021 | J23: 76944473 | K23: 108647941
A24: 23 | B24: Hero | C24: Balance Sheet | D24: Balance Sheet Totals | E24: Total Current Liabilities | F24: =SUM(F16:F23) -> 3583781639 | G24: =SUM(G16:G23) -> 5336392874 | H24: 3049632399 | I24: 5277313098 | J24: 3642736553 | K24: 3640254001
A25: 24 | B25: Hero | C25: Balance Sheet | D25: Non Current Liabilities | E25: Debentures | F25: 813127084 | G25: 605968357 | H25: 89386021 | I25: 942051957 | J25: 634150419 | K25: 464274689
A26: 25 | B26: Hero | C26: Balance Sheet | D26: Non Current Liabilities | E26: Bonds payable | F26: 214327045 | G26: 526075613 | H26: 277484005 | I26: 363903955 | J26: 735256919 | K26: 41740022
A27: 26 | B27: Hero | C27: Balance Sheet | D27: Non Current Liabilities | E27: Long-term loans | F27: 289975883 | G27: 554978808 | H27: 128651546 | I27: 364666007 | J27: 209645345 | K27: 846019529
A28: 27 | B28: Hero | C28: Balance Sheet | D28: Non Current Liabilities | E28: Deferred tax liabilities | F28: 182203687 | G28: 760697495 | H28: 727179591 | I28: 953902248 | J28: 991456615 | K28: 566692023
A29: 28 | B29: Hero | C29: Balance Sheet | D29: Non Current Liabilities | E29: Long-term lease | F29: 974498778 | G29: 889257259 | H29: 126133075 | I29: 601893222 | J29: 796901469 | K29: 209876456
A30: 29 | B30: Hero | C30: Balance Sheet | D30: Non Current Liabilities | E30: Pension benefit obligations | F30: 832575942 | G30: 641360556 | H30: 528051958 | I30: 227853677 | J30: 536834492 | K30: 4530586
A31: 30 | B31: Hero | C31: Balance Sheet | D31: Non Current Liabilities | E31: Differed Revenue | F31: 711951037 | G31: 562764498 | H31: 703019658 | I31: 70639543 | J31: 507990745 | K31: 587718804
A32: 31 | B32: Hero | C32: Balance Sheet | D32: Balance Sheet Totals | E32: Total Non Current Liabilities | F32: =SUM(F25:F31) -> 4018659456 | G32: =SUM(G25:G31) -> 4541102586 | H32: 2579905854 | I32: 3524910609 | J32: 4412236004 | K32: 2720852109
A33: 32 | B33: Hero | C33: Balance Sheet | D33: Balance Sheet Totals | E33: Total Liabilities | F33: =SUM(F32,F24) -> 7602441095 | G33: =SUM(G32,G24) -> 9877495460 | H33: 5629538253 | I33: 8802223707 | J33: 8054972557 | K33: 6361106110
A34: 33 | B34: Hero | C34: Balance Sheet | D34: Owners Equity | E34: Retained earnings | F34: 733777818 | G34: 258066039 | H34: 928511189 | I34: 151752686 | J34: 488920934 | K34: 449605915
A35: 34 | B35: Hero | C35: Balance Sheet | D35: Owners Equity | E35: Outstanding shares | F35: 7966065 | G35: 227416809 | H35: 852521978 | I35: 315788677 | J35: 526676875 | K35: 170605845
A36: 35 | B36: Hero | C36: Balance Sheet | D36: Owners Equity | E36: Treasury stock | F36: 90193663 | G36: 118066838 | H36: 763466101 | I36: 959972014 | J36: 834966868 | K36: 214381235
A37: 36 | B37: Hero | C37: Balance Sheet | D37: Owners Equity | E37: Additional paid-in capital | F37: 435441208 | G37: 918975593 | H37: 698245163 | I37: 344715749 | J37: 566856205 | K37: 160033981
A38: 37 | B38: Hero | C38: Balance Sheet | D38: Balance Sheet Totals | E38: Total Owners Equity | F38: =SUM(F34:F37) -> 1267378754 | G38: =SUM(G34:G37) -> 1522525279 | H38: 3242744431 | I38: 1772229126 | J38: 2417420882 | K38: 994626976
A39: 38 | B39: Hero | C39: Balance Sheet | D39: Balance Sheet Totals | E39: Total Liabilities & Owners Equity | F39: =SUM(F38,F33) -> 8869819849 | G39: =SUM(G38,G33) -> 11400020739 | H39: 8872282684 | I39: 10574452833 | J39: 10472393439 | K39: 7355733086
A40: 39 | B40: Hero | C40: Income Statement | D40: Income | E40: operating income | F40: 10195553186 | G40: 11877329244 | H40: 13342929078 | I40: 15340510909 | J40: 17547391128 | K40: 20992787274
A41: 40 | B41: Hero | C41: Income Statement | D41: Income | E41: Other income | F41: 25042524 | G41: 49098174 | H41: 70362581 | I41: 139908779 | J41: 160691571 | K41: 189967562
A42: 41 | B42: Hero | C42: Income Statement | D42: Income Statement Totals | E42: Total revenue | F42: =SUM(F40:F41) -> 10220595710 | G42: =SUM(G40:G41) -> 11926427418 | H42: =SUM(H40:H41) -> 13413291659 | I42: 15480419688 | J42: 17708082699 | K42: 21182754836
A43: 42 | B43: Hero | C43: Income Statement | D43: Income | E43: activity expenses | F43: -3840463547 | G43: -4877526063 | H43: -6022404941 | I43: -7284007661 | J43: -7618358388 | K43: -9259931780
A44: 43 | B44: Hero | C44: Income Statement | D44: Income | E44: change in stock | F44: -431999761 | G44: -560479596 | H44: -329165574 | I44: -404230813 | J44: -409292466 | K44: -498877943
A45: 44 | B45: Hero | C45: Income Statement | D45: Income | E45: Salaries, wages and other benefits | F45: -750419677 | G45: -892642621 | H45: -879109943 | I45: -935612907 | J45: -1053701205 | K45: -1198891415
A46: 45 | B46: Hero | C46: Income Statement | D46: Income | E46: Depreciation and amortization | F46: -1901596942 | G46: -2158735307 | H46: -2674743878 | I46: -2853492329 | J46: -3077866825 | K46: -3785497514
A47: 46 | B47: Hero | C47: Income Statement | D47: Income | E47: advertising expenses | F47: -285579483 | G47: -274481700 | H47: -412438319 | I47: -428057267 | J47: -353825863 | K47: -554883285
A48: 47 | B48: Hero | C48: Income Statement | D48: Income | E48: Operating rentals | F48: -464821104 | G48: -535247697 | H48: -594665144 | I48: -706692047 | J48: -777829289 | K48: -106721467
A49: 48 | B49: Hero | C49: Income Statement | D49: Income | E49: allotments | F49: -704202705 | G49: -475977097 | H49: -363442946 | I49: -437247860 | J49: -463935172 | K49: -550980040
A50: 49 | B50: Hero | C50: Income Statement | D50: Income | E50: Allowances that are not intended | F50: 155760050 | G50: 350525781 | H50: 816333813 | I50: 510079616 | J50: 57215667 | K50: 103935665
A51: 50 | B51: Hero | C51: Income Statement | D51: Income | E51: Losses of disposal / sale / impairment of assets | F51: -159172507 | G51: -173712269 | H51: -91164041 | I51: -47541553 | J51: -21559014 | K51: -58791781
A52: 51 | B52: Hero | C52: Income Statement | D52: Income | E52: Fixed asset decay response | F52: 40789882 | G52: 6139834 | H52: 0 | I52: 0 | J52: 0 | K52: 0
A53: 52 | B53: Hero | C53: Income Statement | D53: Income | E53: net loss / sale / return of fixed assets | F53: -118382625 | G53: -167572435 | H53: -91164041 | I53: -47541553 | J53: -21559014 | K53: -58791781
A54: 53 | B54: Hero | C54: Income Statement | D54: Income Statement Totals | E54: Activity Profits | F54: =SUM(F42:F52) -> 1878889916 | G54: =SUM(G42:G52) -> 2334290683 | H54: =SUM(H42:H52) -> 2862490686 | I54: 2893616867 | J54: 3988930144 | K54: 5272115276
A55: 54 | B55: Hero | C55: Income Statement | D55: Income | E55: Gain (loss) on sale of fixed assets | F55: 0 | G55: 0 | H55: 0 | I55: 0 | J55: 0 | K55: 0
A56: 55 | B56: Hero | C56: Income Statement | D56: Income | E56: financing income | F56: 77127609 | G56: 94175889 | H56: 256194382 | I56: 81858510 | J56: 74046389 | K56: 98847147
A57: 56 | B57: Hero | C57: Income Statement | D57: Income | E57: financing costs | F57: -685718087 | G57: -1278642758 | H57: -1094318864 | I57: -513342379 | J57: -357736072 | K57: -1021989065
A58: 57 | B58: Hero | C58: Income Statement | D58: Income | E58: Losses of foreign currency valuation differences | F58: -2450775108 | G58: 209867458 | H58: -42507616 | I58: 504206862 | J58: 51411660 | K58: 10166306
A59: 58 | B59: Hero | C59: Income Statement | D59: Income Statement Totals | E59: net profit before taxes | F59: =SUM(F54:F58) -> -1180475670 | G59: =SUM(G54:G58) -> 1359691272 | H59: 1981858588 | I59: 2966339860 | J59: 3756652121 | K59: 4359139664
A60: 59 | B60: Hero | C60: Income Statement | D60: Income | E60: Income Taxes | F60: 197613719 | G60: -418095793 | H60: -527258068 | I60: -741198704 | J60: -964958593 | K60: -1122839271
A61: 60 | B61: Hero | C61: Income Statement | D61: Income Statement Totals | E61: general net profit | F61: =SUM(F59:F60) -> -982861951 | G61: =SUM(G59:G60) -> 941595479 | H61: =SUM(H59:H60) -> 1454600520 | I61: 2225141156 | J61: 2791693528 | K61: 3236300393
A62: 61 | B62: Hero | C62: Income Statement | D62: Income | E62: Basic and diluted earnings per share | F62: 0 | G62: 0 | H62: 0 | I62: 0 | J62: 12.24 | K62: 14.75

Sheet 2.1stAnalysis-Vertical
A1: No. | B1: Company | C1: Financial Statement/ Ratio | D1: Main item in Financial Statement/ Ratio | E1: Detailed item in Financial Statement/ Ratio | F1: 2016 | G1: 2017 | H1: 2018 | I1: 2019 | J1: 2020 | K1: 2021 | L1: 2016 Vertical | M1: 2017 Vertical | N1: 2018 Vertical | O1: 2019 Vertical | P1: 2020 Vertical | Q1: 2021 Vertical
A2: 1 | B2: Hero | C2: Balance Sheet | D2: Non Current Asset | E2: Fixed Assets | F2: 227339503 | G2: 455075469 | H2: 737983522 | I2: 158516489 | J2: 949673811 | K2: 122355205 | L2: =(Table_RawDataIReceive10[[#This Row],[2016]]/F$15) -> 0.02563067874 | M2: =(Table_RawDataIReceive10[[#This Row],[2017]]/G$15) -> 0.03991882817 | N2: =(Table_RawDataIReceive10[[#This Row],[2018]]/H$15) -> 0.08317854021 | O2: =(Table_RawDataIReceive10[[#This Row],[2019]]/I$15) -> 0.01499051455 | P2: =(Table_RawDataIReceive10[[#This Row],[2020]]/J$15) -> 0.09068354971 | Q2: =(Table_RawDataIReceive10[[#This Row],[2021]]/K$15) -> 0.01663399196
A3: 2 | B3: Hero | C3: Balance Sheet | D3: Non Current Asset | E3: Investments | F3: 4646071302 | G3: 5948368946 | H3: 3443879482 | I3: 5432143898 | J3: 5522205033 | K3: 3109044508 | L3: =(Table_RawDataIReceive10[[#This Row],[2016]]/F$15) -> 0.5238067268 | M3: =(Table_RawDataIReceive10[[#This Row],[2017]]/G$15) -> 0.5217858004 | N3: =(Table_RawDataIReceive10[[#This Row],[2018]]/H$15) -> 0.3881616045 | O3: =(Table_RawDataIReceive10[[#This Row],[2019]]/I$15) -> 0.5137044898 | P3: =(Table_RawDataIReceive10[[#This Row],[2020]]/J$15) -> 0.5273106922 | Q3: =(Table_RawDataIReceive10[[#This Row],[2021]]/K$15) -> 0.4226695656
A4: 3 | B4: Hero | C4: Balance Sheet | D4: Non Current Asset | E4: Property, plant, and equipment | F4: 746852209 | G4: 649847449 | H4: 785944929 | I4: 574688129 | J4: 272007072 | K4: 234186671 | L4: =(Table_RawDataIReceive10[[#This Row],[2016]]/F$15) -> 0.08420150823 | M4: =(Table_RawDataIReceive10[[#This Row],[2017]]/G$15) -> 0.05700405849 | N4: =(Table_RawDataIReceive10[[#This Row],[2018]]/H$15) -> 0.08858429752 | O4: =(Table_RawDataIReceive10[[#This Row],[2019]]/I$15) -> 0.0543468431 | P4: =(Table_RawDataIReceive10[[#This Row],[2020]]/J$15) -> 0.02597372545 | Q4: =(Table_RawDataIReceive10[[#This Row],[2021]]/K$15) -> 0.03183729864
A5: 4 | B5: Hero | C5: Balance Sheet | D5: Non Current Asset | E5: Intangible assets | F5: 828390929 | G5: 643895802 | H5: 282559286 | I5: 150923767 | J5: 280775748 | K5: 990658996 | L5: =(Table_RawDataIReceive10[[#This Row],[2016]]/F$15) -> 0.0933943353 | M5: =(Table_RawDataIReceive10[[#This Row],[2017]]/G$15) -> 0.05648198514 | N5: =(Table_RawDataIReceive10[[#This Row],[2018]]/H$15) -> 0.03184741696 | O5: =(Table_RawDataIReceive10[[#This Row],[2019]]/I$15) -> 0.0142724895 | P5: =(Table_RawDataIReceive10[[#This Row],[2020]]/J$15) -> 0.02681103891 | Q5: =(Table_RawDataIReceive10[[#This Row],[2021]]/K$15) -> 0.1346784861
A6: 5 | B6: Hero | C6: Balance Sheet | D6: Non Current Asset | E6: Other assets | F6: 334111497 | G6: 285715422 | H6: 985436651 | I6: 660299816 | J6: 817987615 | K6: 847334691 | L6: =(Table_RawDataIReceive10[[#This Row],[2016]]/F$15) -> 0.03766835208 | M6: =(Table_RawDataIReceive10[[#This Row],[2017]]/G$15) -> 0.02506271072 | N6: =(Table_RawDataIReceive10[[#This Row],[2018]]/H$15) -> 0.1110691224 | O6: =(Table_RawDataIReceive10[[#This Row],[2019]]/I$15) -> 0.06244292981 | P6: =(Table_RawDataIReceive10[[#This Row],[2020]]/J$15) -> 0.07810894613 | Q6: =(Table_RawDataIReceive10[[#This Row],[2021]]/K$15) -> 0.1151937789
A7: 6 | B7: Hero | C7: Balance Sheet | D7: Balance Sheet Totals | E7: Total Non current asset | F7: =SUM(F2:F6) -> 6782765440 | G7: =SUM(G2:G6) -> 7982903088 | H7: 6235803870 | I7: 6976572099 | J7: 7842649279 | K7: 5303580071 | L7: =(Table_RawDataIReceive10[[#This Row],[2016]]/F$15) -> 0.7647016011 | M7: =(Table_RawDataIReceive10[[#This Row],[2017]]/G$15) -> 0.7002533829 | N7: =(Table_RawDataIReceive10[[#This Row],[2018]]/H$15) -> 0.7028409815 | O7: =(Table_RawDataIReceive10[[#This Row],[2019]]/I$15) -> 0.6597572668 | P7: =(Table_RawDataIReceive10[[#This Row],[2020]]/J$15) -> 0.7488879524 | Q7: =(Table_RawDataIReceive10[[#This Row],[2021]]/K$15) -> 0.7210131212
A8: 7 | B8: Hero | C8: Balance Sheet | D8: Current Assets | E8: Inventory | F8: 62120567 | G8: 614738586 | H8: 945192391 | I8: 508173456 | J8: 600298289 | K8: 13659048 | L8: =(Table_RawDataIReceive10[[#This Row],[2016]]/F$15) -> 0.007003588354 | M8: =(Table_RawDataIReceive10[[#This Row],[2017]]/G$15) -> 0.05392433927 | N8: =(Table_RawDataIReceive10[[#This Row],[2018]]/H$15) -> 0.106533169 | O8: =(Table_RawDataIReceive10[[#This Row],[2019]]/I$15) -> 0.04805671405 | P8: =(Table_RawDataIReceive10[[#This Row],[2020]]/J$15) -> 0.05732197635 | Q8: =(Table_RawDataIReceive10[[#This Row],[2021]]/K$15) -> 0.001856925454
A9: 8 | B9: Hero | C9: Balance Sheet | D9: Current Assets | E9: Clients | F9: 193186705 | G9: 929932027 | H9: 82975532 | I9: 379236925 | J9: 941063873 | K9: 358344789 | L9: =(Table_RawDataIReceive10[[#This Row],[2016]]/F$15) -> 0.02178022872 | M9: =(Table_RawDataIReceive10[[#This Row],[2017]]/G$15) -> 0.08157283643 | N9: =(Table_RawDataIReceive10[[#This Row],[2018]]/H$15) -> 0.009352219148 | O9: =(Table_RawDataIReceive10[[#This Row],[2019]]/I$15) -> 0.03586350339 | P9: =(Table_RawDataIReceive10[[#This Row],[2020]]/J$15) -> 0.08986139401 | Q9: =(Table_RawDataIReceive10[[#This Row],[2021]]/K$15) -> 0.0487163937
A10: 9 | B10: Hero | C10: Balance Sheet | D10: Current Assets | E10: Short term derivatives | F10: 841606422 | G10: 133855977 | H10: 555904841 | I10: 493374828 | J10: 120153333 | K10: 399195881 | L10: =(Table_RawDataIReceive10[[#This Row],[2016]]/F$15) -> 0.09488427458 | M10: =(Table_RawDataIReceive10[[#This Row],[2017]]/G$15) -> 0.01174173101 | N10: =(Table_RawDataIReceive10[[#This Row],[2018]]/H$15) -> 0.06265634908 | O10: =(Table_RawDataIReceive10[[#This Row],[2019]]/I$15) -> 0.04665724419 | P10: =(Table_RawDataIReceive10[[#This Row],[2020]]/J$15) -> 0.01147334023 | Q10: =(Table_RawDataIReceive10[[#This Row],[2021]]/K$15) -> 0.0542700335
A11: 10 | B11: Hero | C11: Balance Sheet | D11: Current Assets | E11: Accounts receivables | F11: 227758168 | G11: 949945896 | H11: 445161328 | I11: 572082814 | J11: 874781478 | K11: 90087448 | L11: =(Table_RawDataIReceive10[[#This Row],[2016]]/F$15) -> 0.02567787981 | M11: =(Table_RawDataIReceive10[[#This Row],[2017]]/G$15) -> 0.08332843578 | N11: =(Table_RawDataIReceive10[[#This Row],[2018]]/H$15) -> 0.05017438509 | O11: =(Table_RawDataIReceive10[[#This Row],[2019]]/I$15) -> 0.05410046487 | P11: =(Table_RawDataIReceive10[[#This Row],[2020]]/J$15) -> 0.08353214412 | Q11: =(Table_RawDataIReceive10[[#This Row],[2021]]/K$15) -> 0.01224724265
A12: 11 | B12: Hero | C12: Balance Sheet | D12: Current Assets | E12: Cash | F12: 220888884 | G12: 13946342 | H12: 101678631 | I12: 870691375 | J12: 39099833 | K12: 537196821 | L12: =(Table_RawDataIReceive10[[#This Row],[2016]]/F$15) -> 0.02490342394 | M12: =(Table_RawDataIReceive10[[#This Row],[2017]]/G$15) -> 0.001223361108 | N12: =(Table_RawDataIReceive10[[#This Row],[2018]]/H$15) -> 0.01146025602 | O12: =(Table_RawDataIReceive10[[#This Row],[2019]]/I$15) -> 0.08233914215 | P12: =(Table_RawDataIReceive10[[#This Row],[2020]]/J$15) -> 0.003733610013 | Q12: =(Table_RawDataIReceive10[[#This Row],[2021]]/K$15) -> 0.07303103779
A13: 12 | B13: Hero | C13: Balance Sheet | D13: Current Assets | E13: Bank Deposits | F13: 541493663 | G13: 774698823 | H13: 505566091 | I13: 774321336 | J13: 54347354 | K13: 653669028 | L13: =(Table_RawDataIReceive10[[#This Row],[2016]]/F$15) -> 0.0610490035 | M13: =(Table_RawDataIReceive10[[#This Row],[2017]]/G$15) -> 0.06795591348 | N13: =(Table_RawDataIReceive10[[#This Row],[2018]]/H$15) -> 0.05698264009 | O13: =(Table_RawDataIReceive10[[#This Row],[2019]]/I$15) -> 0.07322566455 | P13: =(Table_RawDataIReceive10[[#This Row],[2020]]/J$15) -> 0.005189582908 | Q13: =(Table_RawDataIReceive10[[#This Row],[2021]]/K$15) -> 0.0888652457
A14: 13 | B14: Hero | C14: Balance Sheet | D14: Balance Sheet Totals | E14: Total Current Assets | F14: =SUM(F8:F13) -> 2087054409 | G14: =SUM(G8:G13) -> 3417117651 | H14: 2636478814 | I14: 3597880734 | J14: 2629744160 | K14: 2052153015 | L14: =(Table_RawDataIReceive10[[#This Row],[2016]]/F$15) -> 0.2352983989 | M14: =(Table_RawDataIReceive10[[#This Row],[2017]]/G$15) -> 0.2997466171 | N14: =(Table_RawDataIReceive10[[#This Row],[2018]]/H$15) -> 0.2971590185 | O14: =(Table_RawDataIReceive10[[#This Row],[2019]]/I$15) -> 0.3402427332 | P14: =(Table_RawDataIReceive10[[#This Row],[2020]]/J$15) -> 0.2511120476 | Q14: =(Table_RawDataIReceive10[[#This Row],[2021]]/K$15) -> 0.2789868788
A15: 14 | B15: Hero | C15: Balance Sheet | D15: Balance Sheet Totals | E15: Total Assets | F15: =SUM(F14,F7) -> 8869819849 | G15: =SUM(G14,G7) -> 11400020739 | H15: 8872282684 | I15: 10574452833 | J15: 10472393439 | K15: 7355733086 | L15: =(Table_RawDataIReceive10[[#This Row],[2016]]/F$15) -> 1 | M15: =(Table_RawDataIReceive10[[#This Row],[2017]]/G$15) -> 1 | N15: =(Table_RawDataIReceive10[[#This Row],[2018]]/H$15) -> 1 | O15: =(Table_RawDataIReceive10[[#This Row],[2019]]/I$15) -> 1 | P15: =(Table_RawDataIReceive10[[#This Row],[2020]]/J$15) -> 1 | Q15: =(Table_RawDataIReceive10[[#This Row],[2021]]/K$15) -> 1
A16: 15 | B16: Hero | C16: Balance Sheet | D16: Current Liabilities | E16: Accounts payable | F16: 357759805 | G16: 493407935 | H16: 344776389 | I16: 923347988 | J16: 871555042 | K16: 966975322 | L16: =(Table_RawDataIReceive10[[#This Row],[2016]]/F$15) -> 0.04033450635 | M16: =(Table_RawDataIReceive10[[#This Row],[2017]]/G$15) -> 0.04328131907 | N16: =(Table_RawDataIReceive10[[#This Row],[2018]]/H$15) -> 0.03885994183 | O16: =(Table_RawDataIReceive10[[#This Row],[2019]]/I$15) -> 0.08731874855 | P16: =(Table_RawDataIReceive10[[#This Row],[2020]]/J$15) -> 0.08322405447 | Q16: =(Table_RawDataIReceive10[[#This Row],[2021]]/K$15) -> 0.131458729
A17: 16 | B17: Hero | C17: Balance Sheet | D17: Current Liabilities | E17: Short-term debt | F17: 150370338 | G17: 615334819 | H17: 638431384 | I17: 956351084 | J17: 463385129 | K17: 123111329 | L17: =(Table_RawDataIReceive10[[#This Row],[2016]]/F$15) -> 0.0169530318 | M17: =(Table_RawDataIReceive10[[#This Row],[2017]]/G$15) -> 0.05397664031 | N17: =(Table_RawDataIReceive10[[#This Row],[2018]]/H$15) -> 0.07195796243 | O17: =(Table_RawDataIReceive10[[#This Row],[2019]]/I$15) -> 0.09043977018 | P17: =(Table_RawDataIReceive10[[#This Row],[2020]]/J$15) -> 0.04424825439 | Q17: =(Table_RawDataIReceive10[[#This Row],[2021]]/K$15) -> 0.01673678579
A18: 17 | B18: Hero | C18: Balance Sheet | D18: Current Liabilities | E18: Dividends payable | F18: 334942436 | G18: 593990745 | H18: 64976326 | I18: 653795991 | J18: 39021794 | K18: 731454224 | L18: =(Table_RawDataIReceive10[[#This Row],[2016]]/F$15) -> 0.03776203369 | M18: =(Table_RawDataIReceive10[[#This Row],[2017]]/G$15) -> 0.05210435653 | N18: =(Table_RawDataIReceive10[[#This Row],[2018]]/H$15) -> 0.007323518458 | O18: =(Table_RawDataIReceive10[[#This Row],[2019]]/I$15) -> 0.06182787907 | P18: =(Table_RawDataIReceive10[[#This Row],[2020]]/J$15) -> 0.003726158134 | Q18: =(Table_RawDataIReceive10[[#This Row],[2021]]/K$15) -> 0.09944001712
A19: 18 | B19: Hero | C19: Balance Sheet | D19: Current Liabilities | E19: Notes payable | F19: 999301227 | G19: 642551804 | H19: 390362981 | I19: 880965837 | J19: 645192107 | K19: 647266714 | L19: =(Table_RawDataIReceive10[[#This Row],[2016]]/F$15) -> 0.1126630804 | M19: =(Table_RawDataIReceive10[[#This Row],[2017]]/G$15) -> 0.0563640908 | N19: =(Table_RawDataIReceive10[[#This Row],[2018]]/H$15) -> 0.0439980324 | O19: =(Table_RawDataIReceive10[[#This Row],[2019]]/I$15) -> 0.08331077276 | P19: =(Table_RawDataIReceive10[[#This Row],[2020]]/J$15) -> 0.06160884909 | Q19: =(Table_RawDataIReceive10[[#This Row],[2021]]/K$15) -> 0.08799486148
A20: 19 | B20: Hero | C20: Balance Sheet | D20: Current Liabilities | E20: The current portion of deferred revenue | F20: 233081611 | G20: 916398213 | H20: 487845343 | I20: 244880889 | J20: 380590035 | K20: 133894516 | L20: =(Table_RawDataIReceive10[[#This Row],[2016]]/F$15) -> 0.02627805468 | M20: =(Table_RawDataIReceive10[[#This Row],[2017]]/G$15) -> 0.08038566192 | N20: =(Table_RawDataIReceive10[[#This Row],[2018]]/H$15) -> 0.05498532456 | O20: =(Table_RawDataIReceive10[[#This Row],[2019]]/I$15) -> 0.02315778347 | P20: =(Table_RawDataIReceive10[[#This Row],[2020]]/J$15) -> 0.03634222083 | Q20: =(Table_RawDataIReceive10[[#This Row],[2021]]/K$15) -> 0.0182027426
A21: 20 | B21: Hero | C21: Balance Sheet | D21: Current Liabilities | E21: Current maturities of long-term debt | F21: 872753992 | G21: 983620671 | H21: 25983278 | I21: 877290617 | J21: 932426949 | K21: 247967907 | L21: =(Table_RawDataIReceive10[[#This Row],[2016]]/F$15) -> 0.0983959096 | M21: =(Table_RawDataIReceive10[[#This Row],[2017]]/G$15) -> 0.08628235803 | N21: =(Table_RawDataIReceive10[[#This Row],[2018]]/H$15) -> 0.002928589961 | O21: =(Table_RawDataIReceive10[[#This Row],[2019]]/I$15) -> 0.08296321624 | P21: =(Table_RawDataIReceive10[[#This Row],[2020]]/J$15) -> 0.08903666143 | Q21: =(Table_RawDataIReceive10[[#This Row],[2021]]/K$15) -> 0.03371083536
A22: 21 | B22: Hero | C22: Balance Sheet | D22: Current Liabilities | E22: Interest payable on outstanding debts | F22: 257784384 | G22: 95396253 | H22: 619534515 | I22: 715685671 | J22: 233621024 | K22: 680936048 | L22: =(Table_RawDataIReceive10[[#This Row],[2016]]/F$15) -> 0.02906309129 | M22: =(Table_RawDataIReceive10[[#This Row],[2017]]/G$15) -> 0.008368077145 | N22: =(Table_RawDataIReceive10[[#This Row],[2018]]/H$15) -> 0.06982808563 | O22: =(Table_RawDataIReceive10[[#This Row],[2019]]/I$15) -> 0.06768063391 | P22: =(Table_RawDataIReceive10[[#This Row],[2020]]/J$15) -> 0.02230827416 | Q22: =(Table_RawDataIReceive10[[#This Row],[2021]]/K$15) -> 0.09257215291
A23: 22 | B23: Hero | C23: Balance Sheet | D23: Current Liabilities | E23: Income taxes owed within the next year | F23: 377787846 | G23: 995692434 | H23: 477722183 | I23: 24995021 | J23: 76944473 | K23: 108647941 | L23: =(Table_RawDataIReceive10[[#This Row],[2016]]/F$15) -> 0.04259250497 | M23: =(Table_RawDataIReceive10[[#This Row],[2017]]/G$15) -> 0.08734128269 | N23: =(Table_RawDataIReceive10[[#This Row],[2018]]/H$15) -> 0.05384433747 | O23: =(Table_RawDataIReceive10[[#This Row],[2019]]/I$15) -> 0.002363717669 | P23: =(Table_RawDataIReceive10[[#This Row],[2020]]/J$15) -> 0.007347362706 | Q23: =(Table_RawDataIReceive10[[#This Row],[2021]]/K$15) -> 0.01477051162
A24: 23 | B24: Hero | C24: Balance Sheet | D24: Balance Sheet Totals | E24: Total Current Liabilities | F24: =SUM(F16:F23) -> 3583781639 | G24: =SUM(G16:G23) -> 5336392874 | H24: 3049632399 | I24: 5277313098 | J24: 3642736553 | K24: 3640254001 | L24: =(Table_RawDataIReceive10[[#This Row],[2016]]/F$15) -> 0.4040422128 | M24: =(Table_RawDataIReceive10[[#This Row],[2017]]/G$15) -> 0.4681037865 | N24: =(Table_RawDataIReceive10[[#This Row],[2018]]/H$15) -> 0.3437257927 | O24: =(Table_RawDataIReceive10[[#This Row],[2019]]/I$15) -> 0.4990625218 | P24: =(Table_RawDataIReceive10[[#This Row],[2020]]/J$15) -> 0.3478418352 | Q24: =(Table_RawDataIReceive10[[#This Row],[2021]]/K$15) -> 0.4948866358
A25: 24 | B25: Hero | C25: Balance Sheet | D25: Non Current Liabilities | E25: Debentures | F25: 813127084 | G25: 605968357 | H25: 89386021 | I25: 942051957 | J25: 634150419 | K25: 464274689 | L25: =(Table_RawDataIReceive10[[#This Row],[2016]]/F$15) -> 0.091673461 | M25: =(Table_RawDataIReceive10[[#This Row],[2017]]/G$15) -> 0.05315502233 | N25: =(Table_RawDataIReceive10[[#This Row],[2018]]/H$15) -> 0.01007474899 | O25: =(Table_RawDataIReceive10[[#This Row],[2019]]/I$15) -> 0.0890875369 | P25: =(Table_RawDataIReceive10[[#This Row],[2020]]/J$15) -> 0.06055448763 | Q25: =(Table_RawDataIReceive10[[#This Row],[2021]]/K$15) -> 0.06311739205
A26: 25 | B26: Hero | C26: Balance Sheet | D26: Non Current Liabilities | E26: Bonds payable | F26: 214327045 | G26: 526075613 | H26: 277484005 | I26: 363903955 | J26: 735256919 | K26: 41740022 | L26: =(Table_RawDataIReceive10[[#This Row],[2016]]/F$15) -> 0.02416363 | M26: =(Table_RawDataIReceive10[[#This Row],[2017]]/G$15) -> 0.04614689965 | N26: =(Table_RawDataIReceive10[[#This Row],[2018]]/H$15) -> 0.03127537916 | O26: =(Table_RawDataIReceive10[[#This Row],[2019]]/I$15) -> 0.03441350212 | P26: =(Table_RawDataIReceive10[[#This Row],[2020]]/J$15) -> 0.07020906188 | Q26: =(Table_RawDataIReceive10[[#This Row],[2021]]/K$15) -> 0.00567448839
A27: 26 | B27: Hero | C27: Balance Sheet | D27: Non Current Liabilities | E27: Long-term loans | F27: 289975883 | G27: 554978808 | H27: 128651546 | I27: 364666007 | J27: 209645345 | K27: 846019529 | L27: =(Table_RawDataIReceive10[[#This Row],[2016]]/F$15) -> 0.03269242081 | M27: =(Table_RawDataIReceive10[[#This Row],[2017]]/G$15) -> 0.04868226302 | N27: =(Table_RawDataIReceive10[[#This Row],[2018]]/H$15) -> 0.01450038852 | O27: =(Table_RawDataIReceive10[[#This Row],[2019]]/I$15) -> 0.0344855675 | P27: =(Table_RawDataIReceive10[[#This Row],[2020]]/J$15) -> 0.02001885684 | Q27: =(Table_RawDataIReceive10[[#This Row],[2021]]/K$15) -> 0.1150149848
A28: 27 | B28: Hero | C28: Balance Sheet | D28: Non Current Liabilities | E28: Deferred tax liabilities | F28: 182203687 | G28: 760697495 | H28: 727179591 | I28: 953902248 | J28: 991456615 | K28: 566692023 | L28: =(Table_RawDataIReceive10[[#This Row],[2016]]/F$15) -> 0.02054198283 | M28: =(Table_RawDataIReceive10[[#This Row],[2017]]/G$15) -> 0.06672772905 | N28: =(Table_RawDataIReceive10[[#This Row],[2018]]/H$15) -> 0.08196082304 | O28: =(Table_RawDataIReceive10[[#This Row],[2019]]/I$15) -> 0.09020818978 | P28: =(Table_RawDataIReceive10[[#This Row],[2020]]/J$15) -> 0.09467335436 | Q28: =(Table_RawDataIReceive10[[#This Row],[2021]]/K$15) -> 0.07704086274
A29: 28 | B29: Hero | C29: Balance Sheet | D29: Non Current Liabilities | E29: Long-term lease | F29: 974498778 | G29: 889257259 | H29: 126133075 | I29: 601893222 | J29: 796901469 | K29: 209876456 | L29: =(Table_RawDataIReceive10[[#This Row],[2016]]/F$15) -> 0.1098668062 | M29: =(Table_RawDataIReceive10[[#This Row],[2017]]/G$15) -> 0.07800488081 | N29: =(Table_RawDataIReceive10[[#This Row],[2018]]/H$15) -> 0.01421653023 | O29: =(Table_RawDataIReceive10[[#This Row],[2019]]/I$15) -> 0.05691956184 | P29: =(Table_RawDataIReceive10[[#This Row],[2020]]/J$15) -> 0.07609544787 | Q29: =(Table_RawDataIReceive10[[#This Row],[2021]]/K$15) -> 0.02853236429
A30: 29 | B30: Hero | C30: Balance Sheet | D30: Non Current Liabilities | E30: Pension benefit obligations | F30: 832575942 | G30: 641360556 | H30: 528051958 | I30: 227853677 | J30: 536834492 | K30: 4530586 | L30: =(Table_RawDataIReceive10[[#This Row],[2016]]/F$15) -> 0.09386616145 | M30: =(Table_RawDataIReceive10[[#This Row],[2017]]/G$15) -> 0.05625959555 | N30: =(Table_RawDataIReceive10[[#This Row],[2018]]/H$15) -> 0.05951703488 | O30: =(Table_RawDataIReceive10[[#This Row],[2019]]/I$15) -> 0.0215475619 | P30: =(Table_RawDataIReceive10[[#This Row],[2020]]/J$15) -> 0.051261872 | Q30: =(Table_RawDataIReceive10[[#This Row],[2021]]/K$15) -> 0.0006159258291
A31: 30 | B31: Hero | C31: Balance Sheet | D31: Non Current Liabilities | E31: Differed Revenue | F31: 711951037 | G31: 562764498 | H31: 703019658 | I31: 70639543 | J31: 507990745 | K31: 587718804 | L31: =(Table_RawDataIReceive10[[#This Row],[2016]]/F$15) -> 0.08026668513 | M31: =(Table_RawDataIReceive10[[#This Row],[2017]]/G$15) -> 0.04936521704 | N31: =(Table_RawDataIReceive10[[#This Row],[2018]]/H$15) -> 0.07923774332 | O31: =(Table_RawDataIReceive10[[#This Row],[2019]]/I$15) -> 0.006680207867 | P31: =(Table_RawDataIReceive10[[#This Row],[2020]]/J$15) -> 0.04850760697 | Q31: =(Table_RawDataIReceive10[[#This Row],[2021]]/K$15) -> 0.07989941956
A32: 31 | B32: Hero | C32: Balance Sheet | D32: Balance Sheet Totals | E32: Total Non Current Liabilities | F32: =SUM(F25:F31) -> 4018659456 | G32: =SUM(G25:G31) -> 4541102586 | H32: 2579905854 | I32: 3524910609 | J32: 4412236004 | K32: 2720852109 | L32: =(Table_RawDataIReceive10[[#This Row],[2016]]/F$15) -> 0.4530711474 | M32: =(Table_RawDataIReceive10[[#This Row],[2017]]/G$15) -> 0.3983416074 | N32: =(Table_RawDataIReceive10[[#This Row],[2018]]/H$15) -> 0.2907826482 | O32: =(Table_RawDataIReceive10[[#This Row],[2019]]/I$15) -> 0.3333421279 | P32: =(Table_RawDataIReceive10[[#This Row],[2020]]/J$15) -> 0.4213206875 | Q32: =(Table_RawDataIReceive10[[#This Row],[2021]]/K$15) -> 0.3698954376
A33: 32 | B33: Hero | C33: Balance Sheet | D33: Balance Sheet Totals | E33: Total Liabilities | F33: =SUM(F32,F24) -> 7602441095 | G33: =SUM(G32,G24) -> 9877495460 | H33: 5629538253 | I33: 8802223707 | J33: 8054972557 | K33: 6361106110 | L33: =(Table_RawDataIReceive10[[#This Row],[2016]]/F$15) -> 0.8571133602 | M33: =(Table_RawDataIReceive10[[#This Row],[2017]]/G$15) -> 0.8664453939 | N33: =(Table_RawDataIReceive10[[#This Row],[2018]]/H$15) -> 0.6345084409 | O33: =(Table_RawDataIReceive10[[#This Row],[2019]]/I$15) -> 0.8324046498 | P33: =(Table_RawDataIReceive10[[#This Row],[2020]]/J$15) -> 0.7691625228 | Q33: =(Table_RawDataIReceive10[[#This Row],[2021]]/K$15) -> 0.8647820735
A34: 33 | B34: Hero | C34: Balance Sheet | D34: Owners Equity | E34: Retained earnings | F34: 733777818 | G34: 258066039 | H34: 928511189 | I34: 151752686 | J34: 488920934 | K34: 449605915 | L34: =(Table_RawDataIReceive10[[#This Row],[2016]]/F$15) -> 0.08272747705 | M34: =(Table_RawDataIReceive10[[#This Row],[2017]]/G$15) -> 0.02263733066 | N34: =(Table_RawDataIReceive10[[#This Row],[2018]]/H$15) -> 0.1046530213 | O34: =(Table_RawDataIReceive10[[#This Row],[2019]]/I$15) -> 0.01435087833 | P34: =(Table_RawDataIReceive10[[#This Row],[2020]]/J$15) -> 0.04668664683 | Q34: =(Table_RawDataIReceive10[[#This Row],[2021]]/K$15) -> 0.06112319598
A35: 34 | B35: Hero | C35: Balance Sheet | D35: Owners Equity | E35: Outstanding shares | F35: 7966065 | G35: 227416809 | H35: 852521978 | I35: 315788677 | J35: 526676875 | K35: 170605845 | L35: =(Table_RawDataIReceive10[[#This Row],[2016]]/F$15) -> 0.0008981089961 | M35: =(Table_RawDataIReceive10[[#This Row],[2017]]/G$15) -> 0.0199488066 | N35: =(Table_RawDataIReceive10[[#This Row],[2018]]/H$15) -> 0.09608823438 | O35: =(Table_RawDataIReceive10[[#This Row],[2019]]/I$15) -> 0.0298633586 | P35: =(Table_RawDataIReceive10[[#This Row],[2020]]/J$15) -> 0.05029192974 | Q35: =(Table_RawDataIReceive10[[#This Row],[2021]]/K$15) -> 0.02319358832
A36: 35 | B36: Hero | C36: Balance Sheet | D36: Owners Equity | E36: Treasury stock | F36: 90193663 | G36: 118066838 | H36: 763466101 | I36: 959972014 | J36: 834966868 | K36: 214381235 | L36: =(Table_RawDataIReceive10[[#This Row],[2016]]/F$15) -> 0.01016860145 | M36: =(Table_RawDataIReceive10[[#This Row],[2017]]/G$15) -> 0.01035672133 | N36: =(Table_RawDataIReceive10[[#This Row],[2018]]/H$15) -> 0.08605069611 | O36: =(Table_RawDataIReceive10[[#This Row],[2019]]/I$15) -> 0.09078219263 | P36: =(Table_RawDataIReceive10[[#This Row],[2020]]/J$15) -> 0.07973028065 | Q36: =(Table_RawDataIReceive10[[#This Row],[2021]]/K$15) -> 0.0291447817
A37: 36 | B37: Hero | C37: Balance Sheet | D37: Owners Equity | E37: Additional paid-in capital | F37: 435441208 | G37: 918975593 | H37: 698245163 | I37: 344715749 | J37: 566856205 | K37: 160033981 | L37: =(Table_RawDataIReceive10[[#This Row],[2016]]/F$15) -> 0.04909245232 | M37: =(Table_RawDataIReceive10[[#This Row],[2017]]/G$15) -> 0.08061174747 | N37: =(Table_RawDataIReceive10[[#This Row],[2018]]/H$15) -> 0.07869960729 | O37: =(Table_RawDataIReceive10[[#This Row],[2019]]/I$15) -> 0.03259892067 | P37: =(Table_RawDataIReceive10[[#This Row],[2020]]/J$15) -> 0.05412862 | Q37: =(Table_RawDataIReceive10[[#This Row],[2021]]/K$15) -> 0.02175636053
A38: 37 | B38: Hero | C38: Balance Sheet | D38: Balance Sheet Totals | E38: Total Owners Equity | F38: =SUM(F34:F37) -> 1267378754 | G38: =SUM(G34:G37) -> 1522525279 | H38: 3242744431 | I38: 1772229126 | J38: 2417420882 | K38: 994626976 | L38: =(Table_RawDataIReceive10[[#This Row],[2016]]/F$15) -> 0.1428866398 | M38: =(Table_RawDataIReceive10[[#This Row],[2017]]/G$15) -> 0.1335546061 | N38: =(Table_RawDataIReceive10[[#This Row],[2018]]/H$15) -> 0.3654915591 | O38: =(Table_RawDataIReceive10[[#This Row],[2019]]/I$15) -> 0.1675953502 | P38: =(Table_RawDataIReceive10[[#This Row],[2020]]/J$15) -> 0.2308374772 | Q38: =(Table_RawDataIReceive10[[#This Row],[2021]]/K$15) -> 0.1352179265
A39: 38 | B39: Hero | C39: Balance Sheet | D39: Balance Sheet Totals | E39: Total Liabilities & Owners Equity | F39: =SUM(F38,F33) -> 8869819849 | G39: =SUM(G38,G33) -> 11400020739 | H39: 8872282684 | I39: 10574452833 | J39: 10472393439 | K39: 7355733086 | L39: =(Table_RawDataIReceive10[[#This Row],[2016]]/F$15) -> 1 | M39: =(Table_RawDataIReceive10[[#This Row],[2017]]/G$15) -> 1 | N39: =(Table_RawDataIReceive10[[#This Row],[2018]]/H$15) -> 1 | O39: =(Table_RawDataIReceive10[[#This Row],[2019]]/I$15) -> 1 | P39: =(Table_RawDataIReceive10[[#This Row],[2020]]/J$15) -> 1 | Q39: =(Table_RawDataIReceive10[[#This Row],[2021]]/K$15) -> 1
A40: 39 | B40: Hero | C40: Income Statement | D40: Income | E40: operating income | F40: 10195553186 | G40: 11877329244 | H40: 13342929078 | I40: 15340510909 | J40: 17547391128 | K40: 20992787274 | L40: =Table_RawDataIReceive10[[#This Row],[2016]]/F$42 -> 0.997549798 | M40: =Table_RawDataIReceive10[[#This Row],[2017]]/G$42 -> 0.9958832455 | N40: =Table_RawDataIReceive10[[#This Row],[2018]]/H$42 -> 0.9947542644 | O40: =Table_RawDataIReceive10[[#This Row],[2019]]/I$42 -> 0.9909622102 | P40: =Table_RawDataIReceive10[[#This Row],[2020]]/J$42 -> 0.990925524 | Q40: =Table_RawDataIReceive10[[#This Row],[2021]]/K$42 -> 0.9910319709
A41: 40 | B41: Hero | C41: Income Statement | D41: Income | E41: Other income | F41: 25042524 | G41: 49098174 | H41: 70362581 | I41: 139908779 | J41: 160691571 | K41: 189967562 | L41: =Table_RawDataIReceive10[[#This Row],[2016]]/F$42 -> 0.002450201995 | M41: =Table_RawDataIReceive10[[#This Row],[2017]]/G$42 -> 0.004116754522 | N41: =Table_RawDataIReceive10[[#This Row],[2018]]/H$42 -> 0.005245735558 | O41: =Table_RawDataIReceive10[[#This Row],[2019]]/I$42 -> 0.00903778979 | P41: =Table_RawDataIReceive10[[#This Row],[2020]]/J$42 -> 0.009074475974 | Q41: =Table_RawDataIReceive10[[#This Row],[2021]]/K$42 -> 0.00896802911
A42: 41 | B42: Hero | C42: Income Statement | D42: Income Statement Totals | E42: Total revenue | F42: =SUM(F40:F41) -> 10220595710 | G42: =SUM(G40:G41) -> 11926427418 | H42: =SUM(H40:H41) -> 13413291659 | I42: 15480419688 | J42: 17708082699 | K42: 21182754836 | L42: =Table_RawDataIReceive10[[#This Row],[2016]]/F$42 -> 1 | M42: =Table_RawDataIReceive10[[#This Row],[2017]]/G$42 -> 1 | N42: =Table_RawDataIReceive10[[#This Row],[2018]]/H$42 -> 1 | O42: =Table_RawDataIReceive10[[#This Row],[2019]]/I$42 -> 1 | P42: =Table_RawDataIReceive10[[#This Row],[2020]]/J$42 -> 1 | Q42: =Table_RawDataIReceive10[[#This Row],[2021]]/K$42 -> 1
A43: 42 | B43: Hero | C43: Income Statement | D43: Income | E43: activity expenses | F43: -3840463547 | G43: -4877526063 | H43: -6022404941 | I43: -7284007661 | J43: -7618358388 | K43: -9259931780 | L43: =Table_RawDataIReceive10[[#This Row],[2016]]/F$42 -> -0.3757573096 | M43: =Table_RawDataIReceive10[[#This Row],[2017]]/G$42 -> -0.4089679073 | N43: =Table_RawDataIReceive10[[#This Row],[2018]]/H$42 -> -0.4489878468 | O43: =Table_RawDataIReceive10[[#This Row],[2019]]/I$42 -> -0.4705303737 | P43: =Table_RawDataIReceive10[[#This Row],[2020]]/J$42 -> -0.4302192687 | Q43: =Table_RawDataIReceive10[[#This Row],[2021]]/K$42 -> -0.4371448309
A44: 43 | B44: Hero | C44: Income Statement | D44: Income | E44: change in stock | F44: -431999761 | G44: -560479596 | H44: -329165574 | I44: -404230813 | J44: -409292466 | K44: -498877943 | L44: =Table_RawDataIReceive10[[#This Row],[2016]]/F$42 -> -0.0422675716 | M44: =Table_RawDataIReceive10[[#This Row],[2017]]/G$42 -> -0.04699476015 | N44: =Table_RawDataIReceive10[[#This Row],[2018]]/H$42 -> -0.02454025323 | O44: =Table_RawDataIReceive10[[#This Row],[2019]]/I$42 -> -0.02611239367 | P44: =Table_RawDataIReceive10[[#This Row],[2020]]/J$42 -> -0.02311331345 | Q44: =Table_RawDataIReceive10[[#This Row],[2021]]/K$42 -> -0.02355113614
A45: 44 | B45: Hero | C45: Income Statement | D45: Income | E45: Salaries, wages and other benefits | F45: -750419677 | G45: -892642621 | H45: -879109943 | I45: -935612907 | J45: -1053701205 | K45: -1198891415 | L45: =Table_RawDataIReceive10[[#This Row],[2016]]/F$42 -> -0.07342230319 | M45: =Table_RawDataIReceive10[[#This Row],[2017]]/G$42 -> -0.07484576812 | N45: =Table_RawDataIReceive10[[#This Row],[2018]]/H$42 -> -0.06554020932 | O45: =Table_RawDataIReceive10[[#This Row],[2019]]/I$42 -> -0.06043847169 | P45: =Table_RawDataIReceive10[[#This Row],[2020]]/J$42 -> -0.05950396906 | Q45: =Table_RawDataIReceive10[[#This Row],[2021]]/K$42 -> -0.05659752116
A46: 45 | B46: Hero | C46: Income Statement | D46: Income | E46: Depreciation and amortization | F46: -1901596942 | G46: -2158735307 | H46: -2674743878 | I46: -2853492329 | J46: -3077866825 | K46: -3785497514 | L46: =Table_RawDataIReceive10[[#This Row],[2016]]/F$42 -> -0.1860553921 | M46: =Table_RawDataIReceive10[[#This Row],[2017]]/G$42 -> -0.1810043554 | N46: =Table_RawDataIReceive10[[#This Row],[2018]]/H$42 -> -0.1994099544 | O46: =Table_RawDataIReceive10[[#This Row],[2019]]/I$42 -> -0.1843291323 | P46: =Table_RawDataIReceive10[[#This Row],[2020]]/J$42 -> -0.1738114102 | Q46: =Table_RawDataIReceive10[[#This Row],[2021]]/K$42 -> -0.1787065726
A47: 46 | B47: Hero | C47: Income Statement | D47: Income | E47: advertising expenses | F47: -285579483 | G47: -274481700 | H47: -412438319 | I47: -428057267 | J47: -353825863 | K47: -554883285 | L47: =Table_RawDataIReceive10[[#This Row],[2016]]/F$42 -> -0.02794156927 | M47: =Table_RawDataIReceive10[[#This Row],[2017]]/G$42 -> -0.0230145785 | N47: =Table_RawDataIReceive10[[#This Row],[2018]]/H$42 -> -0.03074847916 | O47: =Table_RawDataIReceive10[[#This Row],[2019]]/I$42 -> -0.02765152855 | P47: =Table_RawDataIReceive10[[#This Row],[2020]]/J$42 -> -0.01998103742 | Q47: =Table_RawDataIReceive10[[#This Row],[2021]]/K$42 -> -0.02619504825
A48: 47 | B48: Hero | C48: Income Statement | D48: Income | E48: Operating rentals | F48: -464821104 | G48: -535247697 | H48: -594665144 | I48: -706692047 | J48: -777829289 | K48: -106721467 | L48: =Table_RawDataIReceive10[[#This Row],[2016]]/F$42 -> -0.04547886612 | M48: =Table_RawDataIReceive10[[#This Row],[2017]]/G$42 -> -0.04487913088 | N48: =Table_RawDataIReceive10[[#This Row],[2018]]/H$42 -> -0.04433402025 | O48: =Table_RawDataIReceive10[[#This Row],[2019]]/I$42 -> -0.04565070336 | P48: =Table_RawDataIReceive10[[#This Row],[2020]]/J$42 -> -0.04392509919 | Q48: =Table_RawDataIReceive10[[#This Row],[2021]]/K$42 -> -0.005038129735
A49: 48 | B49: Hero | C49: Income Statement | D49: Income | E49: allotments | F49: -704202705 | G49: -475977097 | H49: -363442946 | I49: -437247860 | J49: -463935172 | K49: -550980040 | L49: =Table_RawDataIReceive10[[#This Row],[2016]]/F$42 -> -0.06890035816 | M49: =Table_RawDataIReceive10[[#This Row],[2017]]/G$42 -> -0.03990944483 | N49: =Table_RawDataIReceive10[[#This Row],[2018]]/H$42 -> -0.02709573125 | O49: =Table_RawDataIReceive10[[#This Row],[2019]]/I$42 -> -0.02824522001 | P49: =Table_RawDataIReceive10[[#This Row],[2020]]/J$42 -> -0.02619906287 | Q49: =Table_RawDataIReceive10[[#This Row],[2021]]/K$42 -> -0.02601078303
A50: 49 | B50: Hero | C50: Income Statement | D50: Income | E50: Allowances that are not intended | F50: 155760050 | G50: 350525781 | H50: 816333813 | I50: 510079616 | J50: 57215667 | K50: 103935665 | L50: =Table_RawDataIReceive10[[#This Row],[2016]]/F$42 -> 0.01523982108 | M50: =Table_RawDataIReceive10[[#This Row],[2017]]/G$42 -> 0.02939067742 | N50: =Table_RawDataIReceive10[[#This Row],[2018]]/H$42 -> 0.0608600658 | O50: =Table_RawDataIReceive10[[#This Row],[2019]]/I$42 -> 0.03294998626 | P50: =Table_RawDataIReceive10[[#This Row],[2020]]/J$42 -> 0.003231048102 | Q50: =Table_RawDataIReceive10[[#This Row],[2021]]/K$42 -> 0.004906617001
A51: 50 | B51: Hero | C51: Income Statement | D51: Income | E51: Losses of disposal / sale / impairment of assets | F51: -159172507 | G51: -173712269 | H51: -91164041 | I51: -47541553 | J51: -21559014 | K51: -58791781 | L51: =Table_RawDataIReceive10[[#This Row],[2016]]/F$42 -> -0.01557370153 | M51: =Table_RawDataIReceive10[[#This Row],[2017]]/G$42 -> -0.01456532312 | N51: =Table_RawDataIReceive10[[#This Row],[2018]]/H$42 -> -0.006796545048 | O51: =Table_RawDataIReceive10[[#This Row],[2019]]/I$42 -> -0.003071076493 | P51: =Table_RawDataIReceive10[[#This Row],[2020]]/J$42 -> -0.001217467434 | Q51: =Table_RawDataIReceive10[[#This Row],[2021]]/K$42 -> -0.002775454914
A52: 51 | B52: Hero | C52: Income Statement | D52: Income | E52: Fixed asset decay response | F52: 40789882 | G52: 6139834 | H52: 0 | I52: 0 | J52: 0 | K52: 0 | L52: =Table_RawDataIReceive10[[#This Row],[2016]]/F$42 -> 0.003990949565 | M52: =Table_RawDataIReceive10[[#This Row],[2017]]/G$42 -> 0.0005148091532 | N52: =Table_RawDataIReceive10[[#This Row],[2018]]/H$42 -> 0 | O52: =Table_RawDataIReceive10[[#This Row],[2019]]/I$42 -> 0 | P52: =Table_RawDataIReceive10[[#This Row],[2020]]/J$42 -> 0 | Q52: =Table_RawDataIReceive10[[#This Row],[2021]]/K$42 -> 0
A53: 52 | B53: Hero | C53: Income Statement | D53: Income | E53: net loss / sale / return of fixed assets | F53: -118382625 | G53: -167572435 | H53: -91164041 | I53: -47541553 | J53: -21559014 | K53: -58791781 | L53: =Table_RawDataIReceive10[[#This Row],[2016]]/F$42 -> -0.01158275196 | M53: =Table_RawDataIReceive10[[#This Row],[2017]]/G$42 -> -0.01405051397 | N53: =Table_RawDataIReceive10[[#This Row],[2018]]/H$42 -> -0.006796545048 | O53: =Table_RawDataIReceive10[[#This Row],[2019]]/I$42 -> -0.003071076493 | P53: =Table_RawDataIReceive10[[#This Row],[2020]]/J$42 -> -0.001217467434 | Q53: =Table_RawDataIReceive10[[#This Row],[2021]]/K$42 -> -0.002775454914
A54: 53 | B54: Hero | C54: Income Statement | D54: Income Statement Totals | E54: Activity Profits | F54: =SUM(F42:F52) -> 1878889916 | G54: =SUM(G42:G52) -> 2334290683 | H54: =SUM(H42:H52) -> 2862490686 | I54: 2893616867 | J54: 3988930144 | K54: 5272115276 | L54: =Table_RawDataIReceive10[[#This Row],[2016]]/F$42 -> 0.1838336991 | M54: =Table_RawDataIReceive10[[#This Row],[2017]]/G$42 -> 0.1957242183 | N54: =Table_RawDataIReceive10[[#This Row],[2018]]/H$42 -> 0.2134070263 | O54: =Table_RawDataIReceive10[[#This Row],[2019]]/I$42 -> 0.1869210865 | P54: =Table_RawDataIReceive10[[#This Row],[2020]]/J$42 -> 0.2252604199 | Q54: =Table_RawDataIReceive10[[#This Row],[2021]]/K$42 -> 0.2488871404
A55: 54 | B55: Hero | C55: Income Statement | D55: Income | E55: Gain (loss) on sale of fixed assets | F55: 0 | G55: 0 | H55: 0 | I55: 0 | J55: 0 | K55: 0 | L55: =Table_RawDataIReceive10[[#This Row],[2016]]/F$42 -> 0 | M55: =Table_RawDataIReceive10[[#This Row],[2017]]/G$42 -> 0 | N55: =Table_RawDataIReceive10[[#This Row],[2018]]/H$42 -> 0 | O55: =Table_RawDataIReceive10[[#This Row],[2019]]/I$42 -> 0 | P55: =Table_RawDataIReceive10[[#This Row],[2020]]/J$42 -> 0 | Q55: =Table_RawDataIReceive10[[#This Row],[2021]]/K$42 -> 0
A56: 55 | B56: Hero | C56: Income Statement | D56: Income | E56: financing income | F56: 77127609 | G56: 94175889 | H56: 256194382 | I56: 81858510 | J56: 74046389 | K56: 98847147 | L56: =Table_RawDataIReceive10[[#This Row],[2016]]/F$42 -> 0.007546292916 | M56: =Table_RawDataIReceive10[[#This Row],[2017]]/G$42 -> 0.007896403986 | N56: =Table_RawDataIReceive10[[#This Row],[2018]]/H$42 -> 0.01910003812 | O56: =Table_RawDataIReceive10[[#This Row],[2019]]/I$42 -> 0.005287874079 | P56: =Table_RawDataIReceive10[[#This Row],[2020]]/J$42 -> 0.004181502326 | Q56: =Table_RawDataIReceive10[[#This Row],[2021]]/K$42 -> 0.00466639716
A57: 56 | B57: Hero | C57: Income Statement | D57: Income | E57: financing costs | F57: -685718087 | G57: -1278642758 | H57: -1094318864 | I57: -513342379 | J57: -357736072 | K57: -1021989065 | L57: =Table_RawDataIReceive10[[#This Row],[2016]]/F$42 -> -0.06709179254 | M57: =Table_RawDataIReceive10[[#This Row],[2017]]/G$42 -> -0.1072108783 | N57: =Table_RawDataIReceive10[[#This Row],[2018]]/H$42 -> -0.08158466183 | O57: =Table_RawDataIReceive10[[#This Row],[2019]]/I$42 -> -0.03316075335 | P57: =Table_RawDataIReceive10[[#This Row],[2020]]/J$42 -> -0.02020185235 | Q57: =Table_RawDataIReceive10[[#This Row],[2021]]/K$42 -> -0.04824627736
A58: 57 | B58: Hero | C58: Income Statement | D58: Income | E58: Losses of foreign currency valuation differences | F58: -2450775108 | G58: 209867458 | H58: -42507616 | I58: 504206862 | J58: 51411660 | K58: 10166306 | L58: =Table_RawDataIReceive10[[#This Row],[2016]]/F$42 -> -0.2397878928 | M58: =Table_RawDataIReceive10[[#This Row],[2017]]/G$42 -> 0.01759684192 | N58: =Table_RawDataIReceive10[[#This Row],[2018]]/H$42 -> -0.003169066705 | O58: =Table_RawDataIReceive10[[#This Row],[2019]]/I$42 -> 0.03257061967 | P58: =Table_RawDataIReceive10[[#This Row],[2020]]/J$42 -> 0.002903287774 | Q58: =Table_RawDataIReceive10[[#This Row],[2021]]/K$42 -> 0.000479933138
A59: 58 | B59: Hero | C59: Income Statement | D59: Income Statement Totals | E59: net profit before taxes | F59: =SUM(F54:F58) -> -1180475670 | G59: =SUM(G54:G58) -> 1359691272 | H59: 1981858588 | I59: 2966339860 | J59: 3756652121 | K59: 4359139664 | L59: =Table_RawDataIReceive10[[#This Row],[2016]]/F$42 -> -0.1154996933 | M59: =Table_RawDataIReceive10[[#This Row],[2017]]/G$42 -> 0.1140065859 | N59: =Table_RawDataIReceive10[[#This Row],[2018]]/H$42 -> 0.1477533359 | O59: =Table_RawDataIReceive10[[#This Row],[2019]]/I$42 -> 0.1916188269 | P59: =Table_RawDataIReceive10[[#This Row],[2020]]/J$42 -> 0.2121433576 | Q59: =Table_RawDataIReceive10[[#This Row],[2021]]/K$42 -> 0.2057871933
A60: 59 | B60: Hero | C60: Income Statement | D60: Income | E60: Income Taxes | F60: 197613719 | G60: -418095793 | H60: -527258068 | I60: -741198704 | J60: -964958593 | K60: -1122839271 | L60: =Table_RawDataIReceive10[[#This Row],[2016]]/F$42 -> 0.01933485333 | M60: =Table_RawDataIReceive10[[#This Row],[2017]]/G$42 -> -0.03505624764 | N60: =Table_RawDataIReceive10[[#This Row],[2018]]/H$42 -> -0.0393086262 | O60: =Table_RawDataIReceive10[[#This Row],[2019]]/I$42 -> -0.04787975513 | P60: =Table_RawDataIReceive10[[#This Row],[2020]]/J$42 -> -0.05449255063 | Q60: =Table_RawDataIReceive10[[#This Row],[2021]]/K$42 -> -0.05300723535
A61: 60 | B61: Hero | C61: Income Statement | D61: Income Statement Totals | E61: general net profit | F61: =SUM(F59:F60) -> -982861951 | G61: =SUM(G59:G60) -> 941595479 | H61: =SUM(H59:H60) -> 1454600520 | I61: 2225141156 | J61: 2791693528 | K61: 3236300393 | L61: =Table_RawDataIReceive10[[#This Row],[2016]]/F$42 -> -0.09616483998 | M61: =Table_RawDataIReceive10[[#This Row],[2017]]/G$42 -> 0.07895033827 | N61: =Table_RawDataIReceive10[[#This Row],[2018]]/H$42 -> 0.1084447097 | O61: =Table_RawDataIReceive10[[#This Row],[2019]]/I$42 -> 0.1437390717 | P61: =Table_RawDataIReceive10[[#This Row],[2020]]/J$42 -> 0.157650807 | Q61: =Table_RawDataIReceive10[[#This Row],[2021]]/K$42 -> 0.1527799579
A62: 61 | B62: Hero | C62: Income Statement | D62: Income | E62: Basic and diluted earnings per share | F62: 0 | G62: 0 | H62: 0 | I62: 0 | J62: 12.24 | K62: 14.75 | L62: =Table_RawDataIReceive10[[#This Row],[2016]]/F$42 -> 0 | M62: =Table_RawDataIReceive10[[#This Row],[2017]]/G$42 -> 0 | N62: =Table_RawDataIReceive10[[#This Row],[2018]]/H$42 -> 0 | O62: =Table_RawDataIReceive10[[#This Row],[2019]]/I$42 -> 0 | P62: =Table_RawDataIReceive10[[#This Row],[2020]]/J$42 -> 6.91209783e-10 | Q62: =Table_RawDataIReceive10[[#This Row],[2021]]/K$42 -> 6.963211402e-10

Sheet 3.2ndAnalysis-Horizontal
A1: No. | B1: Company | C1: Financial Statement/ Ratio | D1: Main item in Financial Statement/ Ratio | E1: Detailed item in Financial Statement/ Ratio | F1: 2016 | G1: 2017 | H1: 2018 | I1: 2019 | J1: 2020 | K1: 2021 | L1: 2017 Horizontal | M1: 2018 Horizontal | N1: 2019 Horizontal | O1: 2020 Horizontal | P1: 2021 Horizontal
A2: 1 | B2: Hero | C2: Balance Sheet | D2: Non Current Asset | E2: Fixed Assets | F2: 227339503 | G2: 455075469 | H2: 737983522 | I2: 158516489 | J2: 949673811 | K2: 122355205 | L2: =IFERROR((Table_RawDataIReceive1011[[#This Row],[2017]]-Table_RawDataIReceive1011[[#This Row],[2016]])/Table_RawDataIReceive1011[[#This Row],[2016]],"") -> 1.001743925 | M2: =IFERROR((Table_RawDataIReceive1011[[#This Row],[2018]]-Table_RawDataIReceive1011[[#This Row],[2017]])/Table_RawDataIReceive1011[[#This Row],[2017]],"") -> 0.6216728263 | N2: =IFERROR((Table_RawDataIReceive1011[[#This Row],[2019]]-Table_RawDataIReceive1011[[#This Row],[2018]])/Table_RawDataIReceive1011[[#This Row],[2018]],"") -> -0.7852032135 | O2: =IFERROR((Table_RawDataIReceive1011[[#This Row],[2020]]-Table_RawDataIReceive1011[[#This Row],[2019]])/Table_RawDataIReceive1011[[#This Row],[2019]],"") -> 4.991009623 | P2: =IFERROR((Table_RawDataIReceive1011[[#This Row],[2021]]-Table_RawDataIReceive1011[[#This Row],[2020]])/Table_RawDataIReceive1011[[#This Row],[2020]],"") -> -0.8711608096
A3: 2 | B3: Hero | C3: Balance Sheet | D3: Non Current Asset | E3: Investments | F3: 4646071302 | G3: 5948368946 | H3: 3443879482 | I3: 5432143898 | J3: 5522205033 | K3: 3109044508 | L3: =IFERROR((Table_RawDataIReceive1011[[#This Row],[2017]]-Table_RawDataIReceive1011[[#This Row],[2016]])/Table_RawDataIReceive1011[[#This Row],[2016]],"") -> 0.2803008304 | M3: =IFERROR((Table_RawDataIReceive1011[[#This Row],[2018]]-Table_RawDataIReceive1011[[#This Row],[2017]])/Table_RawDataIReceive1011[[#This Row],[2017]],"") -> -0.4210380168 | N3: =IFERROR((Table_RawDataIReceive1011[[#This Row],[2019]]-Table_RawDataIReceive1011[[#This Row],[2018]])/Table_RawDataIReceive1011[[#This Row],[2018]],"") -> 0.5773327512 | O3: =IFERROR((Table_RawDataIReceive1011[[#This Row],[2020]]-Table_RawDataIReceive1011[[#This Row],[2019]])/Table_RawDataIReceive1011[[#This Row],[2019]],"") -> 0.01657929847 | P3: =IFERROR((Table_RawDataIReceive1011[[#This Row],[2021]]-Table_RawDataIReceive1011[[#This Row],[2020]])/Table_RawDataIReceive1011[[#This Row],[2020]],"") -> -0.4369921998
A4: 3 | B4: Hero | C4: Balance Sheet | D4: Non Current Asset | E4: Property, plant, and equipment | F4: 746852209 | G4: 649847449 | H4: 785944929 | I4: 574688129 | J4: 272007072 | K4: 234186671 | L4: =IFERROR((Table_RawDataIReceive1011[[#This Row],[2017]]-Table_RawDataIReceive1011[[#This Row],[2016]])/Table_RawDataIReceive1011[[#This Row],[2016]],"") -> -0.1298848137 | M4: =IFERROR((Table_RawDataIReceive1011[[#This Row],[2018]]-Table_RawDataIReceive1011[[#This Row],[2017]])/Table_RawDataIReceive1011[[#This Row],[2017]],"") -> 0.2094298904 | N4: =IFERROR((Table_RawDataIReceive1011[[#This Row],[2019]]-Table_RawDataIReceive1011[[#This Row],[2018]])/Table_RawDataIReceive1011[[#This Row],[2018]],"") -> -0.2687933877 | O4: =IFERROR((Table_RawDataIReceive1011[[#This Row],[2020]]-Table_RawDataIReceive1011[[#This Row],[2019]])/Table_RawDataIReceive1011[[#This Row],[2019]],"") -> -0.5266875053 | P4: =IFERROR((Table_RawDataIReceive1011[[#This Row],[2021]]-Table_RawDataIReceive1011[[#This Row],[2020]])/Table_RawDataIReceive1011[[#This Row],[2020]],"") -> -0.1390419768
A5: 4 | B5: Hero | C5: Balance Sheet | D5: Non Current Asset | E5: Intangible assets | F5: 828390929 | G5: 643895802 | H5: 282559286 | I5: 150923767 | J5: 280775748 | K5: 990658996 | L5: =IFERROR((Table_RawDataIReceive1011[[#This Row],[2017]]-Table_RawDataIReceive1011[[#This Row],[2016]])/Table_RawDataIReceive1011[[#This Row],[2016]],"") -> -0.2227150498 | M5: =IFERROR((Table_RawDataIReceive1011[[#This Row],[2018]]-Table_RawDataIReceive1011[[#This Row],[2017]])/Table_RawDataIReceive1011[[#This Row],[2017]],"") -> -0.5611723432 | N5: =IFERROR((Table_RawDataIReceive1011[[#This Row],[2019]]-Table_RawDataIReceive1011[[#This Row],[2018]])/Table_RawDataIReceive1011[[#This Row],[2018]],"") -> -0.4658686708 | O5: =IFERROR((Table_RawDataIReceive1011[[#This Row],[2020]]-Table_RawDataIReceive1011[[#This Row],[2019]])/Table_RawDataIReceive1011[[#This Row],[2019]],"") -> 0.8603812612 | P5: =IFERROR((Table_RawDataIReceive1011[[#This Row],[2021]]-Table_RawDataIReceive1011[[#This Row],[2020]])/Table_RawDataIReceive1011[[#This Row],[2020]],"") -> 2.528292607
A6: 5 | B6: Hero | C6: Balance Sheet | D6: Non Current Asset | E6: Other assets | F6: 334111497 | G6: 285715422 | H6: 985436651 | I6: 660299816 | J6: 817987615 | K6: 847334691 | L6: =IFERROR((Table_RawDataIReceive1011[[#This Row],[2017]]-Table_RawDataIReceive1011[[#This Row],[2016]])/Table_RawDataIReceive1011[[#This Row],[2016]],"") -> -0.1448500738 | M6: =IFERROR((Table_RawDataIReceive1011[[#This Row],[2018]]-Table_RawDataIReceive1011[[#This Row],[2017]])/Table_RawDataIReceive1011[[#This Row],[2017]],"") -> 2.449014562 | N6: =IFERROR((Table_RawDataIReceive1011[[#This Row],[2019]]-Table_RawDataIReceive1011[[#This Row],[2018]])/Table_RawDataIReceive1011[[#This Row],[2018]],"") -> -0.329941894 | O6: =IFERROR((Table_RawDataIReceive1011[[#This Row],[2020]]-Table_RawDataIReceive1011[[#This Row],[2019]])/Table_RawDataIReceive1011[[#This Row],[2019]],"") -> 0.2388124231 | P6: =IFERROR((Table_RawDataIReceive1011[[#This Row],[2021]]-Table_RawDataIReceive1011[[#This Row],[2020]])/Table_RawDataIReceive1011[[#This Row],[2020]],"") -> 0.03587716423
A7: 6 | B7: Hero | C7: Balance Sheet | D7: Balance Sheet Totals | E7: Total Non current asset | F7: =SUM(F2:F6) -> 6782765440 | G7: =SUM(G2:G6) -> 7982903088 | H7: 6235803870 | I7: 6976572099 | J7: 7842649279 | K7: 5303580071 | L7: =IFERROR((Table_RawDataIReceive1011[[#This Row],[2017]]-Table_RawDataIReceive1011[[#This Row],[2016]])/Table_RawDataIReceive1011[[#This Row],[2016]],"") -> 0.1769392822 | M7: =IFERROR((Table_RawDataIReceive1011[[#This Row],[2018]]-Table_RawDataIReceive1011[[#This Row],[2017]])/Table_RawDataIReceive1011[[#This Row],[2017]],"") -> -0.2188551206 | N7: =IFERROR((Table_RawDataIReceive1011[[#This Row],[2019]]-Table_RawDataIReceive1011[[#This Row],[2018]])/Table_RawDataIReceive1011[[#This Row],[2018]],"") -> 0.1187927402 | O7: =IFERROR((Table_RawDataIReceive1011[[#This Row],[2020]]-Table_RawDataIReceive1011[[#This Row],[2019]])/Table_RawDataIReceive1011[[#This Row],[2019]],"") -> 0.1241407912 | P7: =IFERROR((Table_RawDataIReceive1011[[#This Row],[2021]]-Table_RawDataIReceive1011[[#This Row],[2020]])/Table_RawDataIReceive1011[[#This Row],[2020]],"") -> -0.3237514668
A8: 7 | B8: Hero | C8: Balance Sheet | D8: Current Assets | E8: Inventory | F8: 62120567 | G8: 614738586 | H8: 945192391 | I8: 508173456 | J8: 600298289 | K8: 13659048 | L8: =IFERROR((Table_RawDataIReceive1011[[#This Row],[2017]]-Table_RawDataIReceive1011[[#This Row],[2016]])/Table_RawDataIReceive1011[[#This Row],[2016]],"") -> 8.89589464 | M8: =IFERROR((Table_RawDataIReceive1011[[#This Row],[2018]]-Table_RawDataIReceive1011[[#This Row],[2017]])/Table_RawDataIReceive1011[[#This Row],[2017]],"") -> 0.5375517537 | N8: =IFERROR((Table_RawDataIReceive1011[[#This Row],[2019]]-Table_RawDataIReceive1011[[#This Row],[2018]])/Table_RawDataIReceive1011[[#This Row],[2018]],"") -> -0.4623597684 | O8: =IFERROR((Table_RawDataIReceive1011[[#This Row],[2020]]-Table_RawDataIReceive1011[[#This Row],[2019]])/Table_RawDataIReceive1011[[#This Row],[2019]],"") -> 0.1812861965 | P8: =IFERROR((Table_RawDataIReceive1011[[#This Row],[2021]]-Table_RawDataIReceive1011[[#This Row],[2020]])/Table_RawDataIReceive1011[[#This Row],[2020]],"") -> -0.977246232
A9: 8 | B9: Hero | C9: Balance Sheet | D9: Current Assets | E9: Clients | F9: 193186705 | G9: 929932027 | H9: 82975532 | I9: 379236925 | J9: 941063873 | K9: 358344789 | L9: =IFERROR((Table_RawDataIReceive1011[[#This Row],[2017]]-Table_RawDataIReceive1011[[#This Row],[2016]])/Table_RawDataIReceive1011[[#This Row],[2016]],"") -> 3.813644019 | M9: =IFERROR((Table_RawDataIReceive1011[[#This Row],[2018]]-Table_RawDataIReceive1011[[#This Row],[2017]])/Table_RawDataIReceive1011[[#This Row],[2017]],"") -> -0.9107724763 | N9: =IFERROR((Table_RawDataIReceive1011[[#This Row],[2019]]-Table_RawDataIReceive1011[[#This Row],[2018]])/Table_RawDataIReceive1011[[#This Row],[2018]],"") -> 3.57046693 | O9: =IFERROR((Table_RawDataIReceive1011[[#This Row],[2020]]-Table_RawDataIReceive1011[[#This Row],[2019]])/Table_RawDataIReceive1011[[#This Row],[2019]],"") -> 1.48146689 | P9: =IFERROR((Table_RawDataIReceive1011[[#This Row],[2021]]-Table_RawDataIReceive1011[[#This Row],[2020]])/Table_RawDataIReceive1011[[#This Row],[2020]],"") -> -0.6192131063
A10: 9 | B10: Hero | C10: Balance Sheet | D10: Current Assets | E10: Short term derivatives | F10: 841606422 | G10: 133855977 | H10: 555904841 | I10: 493374828 | J10: 120153333 | K10: 399195881 | L10: =IFERROR((Table_RawDataIReceive1011[[#This Row],[2017]]-Table_RawDataIReceive1011[[#This Row],[2016]])/Table_RawDataIReceive1011[[#This Row],[2016]],"") -> -0.8409518113 | M10: =IFERROR((Table_RawDataIReceive1011[[#This Row],[2018]]-Table_RawDataIReceive1011[[#This Row],[2017]])/Table_RawDataIReceive1011[[#This Row],[2017]],"") -> 3.153007236 | N10: =IFERROR((Table_RawDataIReceive1011[[#This Row],[2019]]-Table_RawDataIReceive1011[[#This Row],[2018]])/Table_RawDataIReceive1011[[#This Row],[2018]],"") -> -0.1124833036 | O10: =IFERROR((Table_RawDataIReceive1011[[#This Row],[2020]]-Table_RawDataIReceive1011[[#This Row],[2019]])/Table_RawDataIReceive1011[[#This Row],[2019]],"") -> -0.7564664304 | P10: =IFERROR((Table_RawDataIReceive1011[[#This Row],[2021]]-Table_RawDataIReceive1011[[#This Row],[2020]])/Table_RawDataIReceive1011[[#This Row],[2020]],"") -> 2.322387079
A11: 10 | B11: Hero | C11: Balance Sheet | D11: Current Assets | E11: Accounts receivables | F11: 227758168 | G11: 949945896 | H11: 445161328 | I11: 572082814 | J11: 874781478 | K11: 90087448 | L11: =IFERROR((Table_RawDataIReceive1011[[#This Row],[2017]]-Table_RawDataIReceive1011[[#This Row],[2016]])/Table_RawDataIReceive1011[[#This Row],[2016]],"") -> 3.170853253 | M11: =IFERROR((Table_RawDataIReceive1011[[#This Row],[2018]]-Table_RawDataIReceive1011[[#This Row],[2017]])/Table_RawDataIReceive1011[[#This Row],[2017]],"") -> -0.5313824399 | N11: =IFERROR((Table_RawDataIReceive1011[[#This Row],[2019]]-Table_RawDataIReceive1011[[#This Row],[2018]])/Table_RawDataIReceive1011[[#This Row],[2018]],"") -> 0.2851134589 | O11: =IFERROR((Table_RawDataIReceive1011[[#This Row],[2020]]-Table_RawDataIReceive1011[[#This Row],[2019]])/Table_RawDataIReceive1011[[#This Row],[2019]],"") -> 0.5291168631 | P11: =IFERROR((Table_RawDataIReceive1011[[#This Row],[2021]]-Table_RawDataIReceive1011[[#This Row],[2020]])/Table_RawDataIReceive1011[[#This Row],[2020]],"") -> -0.8970171977
A12: 11 | B12: Hero | C12: Balance Sheet | D12: Current Assets | E12: Cash | F12: 220888884 | G12: 13946342 | H12: 101678631 | I12: 870691375 | J12: 39099833 | K12: 537196821 | L12: =IFERROR((Table_RawDataIReceive1011[[#This Row],[2017]]-Table_RawDataIReceive1011[[#This Row],[2016]])/Table_RawDataIReceive1011[[#This Row],[2016]],"") -> -0.9368626354 | M12: =IFERROR((Table_RawDataIReceive1011[[#This Row],[2018]]-Table_RawDataIReceive1011[[#This Row],[2017]])/Table_RawDataIReceive1011[[#This Row],[2017]],"") -> 6.290702537 | N12: =IFERROR((Table_RawDataIReceive1011[[#This Row],[2019]]-Table_RawDataIReceive1011[[#This Row],[2018]])/Table_RawDataIReceive1011[[#This Row],[2018]],"") -> 7.563169728 | O12: =IFERROR((Table_RawDataIReceive1011[[#This Row],[2020]]-Table_RawDataIReceive1011[[#This Row],[2019]])/Table_RawDataIReceive1011[[#This Row],[2019]],"") -> -0.9550933498 | P12: =IFERROR((Table_RawDataIReceive1011[[#This Row],[2021]]-Table_RawDataIReceive1011[[#This Row],[2020]])/Table_RawDataIReceive1011[[#This Row],[2020]],"") -> 12.73910781
A13: 12 | B13: Hero | C13: Balance Sheet | D13: Current Assets | E13: Bank Deposits | F13: 541493663 | G13: 774698823 | H13: 505566091 | I13: 774321336 | J13: 54347354 | K13: 653669028 | L13: =IFERROR((Table_RawDataIReceive1011[[#This Row],[2017]]-Table_RawDataIReceive1011[[#This Row],[2016]])/Table_RawDataIReceive1011[[#This Row],[2016]],"") -> 0.4306701554 | M13: =IFERROR((Table_RawDataIReceive1011[[#This Row],[2018]]-Table_RawDataIReceive1011[[#This Row],[2017]])/Table_RawDataIReceive1011[[#This Row],[2017]],"") -> -0.3474030475 | N13: =IFERROR((Table_RawDataIReceive1011[[#This Row],[2019]]-Table_RawDataIReceive1011[[#This Row],[2018]])/Table_RawDataIReceive1011[[#This Row],[2018]],"") -> 0.5315927033 | O13: =IFERROR((Table_RawDataIReceive1011[[#This Row],[2020]]-Table_RawDataIReceive1011[[#This Row],[2019]])/Table_RawDataIReceive1011[[#This Row],[2019]],"") -> -0.9298129194 | P13: =IFERROR((Table_RawDataIReceive1011[[#This Row],[2021]]-Table_RawDataIReceive1011[[#This Row],[2020]])/Table_RawDataIReceive1011[[#This Row],[2020]],"") -> 11.02761459
A14: 13 | B14: Hero | C14: Balance Sheet | D14: Balance Sheet Totals | E14: Total Current Assets | F14: =SUM(F8:F13) -> 2087054409 | G14: =SUM(G8:G13) -> 3417117651 | H14: 2636478814 | I14: 3597880734 | J14: 2629744160 | K14: 2052153015 | L14: =IFERROR((Table_RawDataIReceive1011[[#This Row],[2017]]-Table_RawDataIReceive1011[[#This Row],[2016]])/Table_RawDataIReceive1011[[#This Row],[2016]],"") -> 0.6372920784 | M14: =IFERROR((Table_RawDataIReceive1011[[#This Row],[2018]]-Table_RawDataIReceive1011[[#This Row],[2017]])/Table_RawDataIReceive1011[[#This Row],[2017]],"") -> -0.2284495053 | N14: =IFERROR((Table_RawDataIReceive1011[[#This Row],[2019]]-Table_RawDataIReceive1011[[#This Row],[2018]])/Table_RawDataIReceive1011[[#This Row],[2018]],"") -> 0.3646537628 | O14: =IFERROR((Table_RawDataIReceive1011[[#This Row],[2020]]-Table_RawDataIReceive1011[[#This Row],[2019]])/Table_RawDataIReceive1011[[#This Row],[2019]],"") -> -0.2690852326 | P14: =IFERROR((Table_RawDataIReceive1011[[#This Row],[2021]]-Table_RawDataIReceive1011[[#This Row],[2020]])/Table_RawDataIReceive1011[[#This Row],[2020]],"") -> -0.2196377708
A15: 14 | B15: Hero | C15: Balance Sheet | D15: Balance Sheet Totals | E15: Total Assets | F15: =SUM(F14,F7) -> 8869819849 | G15: =SUM(G14,G7) -> 11400020739 | H15: 8872282684 | I15: 10574452833 | J15: 10472393439 | K15: 7355733086 | L15: =IFERROR((Table_RawDataIReceive1011[[#This Row],[2017]]-Table_RawDataIReceive1011[[#This Row],[2016]])/Table_RawDataIReceive1011[[#This Row],[2016]],"") -> 0.285259558 | M15: =IFERROR((Table_RawDataIReceive1011[[#This Row],[2018]]-Table_RawDataIReceive1011[[#This Row],[2017]])/Table_RawDataIReceive1011[[#This Row],[2017]],"") -> -0.221731005 | N15: =IFERROR((Table_RawDataIReceive1011[[#This Row],[2019]]-Table_RawDataIReceive1011[[#This Row],[2018]])/Table_RawDataIReceive1011[[#This Row],[2018]],"") -> 0.1918525603 | O15: =IFERROR((Table_RawDataIReceive1011[[#This Row],[2020]]-Table_RawDataIReceive1011[[#This Row],[2019]])/Table_RawDataIReceive1011[[#This Row],[2019]],"") -> -0.009651505909 | P15: =IFERROR((Table_RawDataIReceive1011[[#This Row],[2021]]-Table_RawDataIReceive1011[[#This Row],[2020]])/Table_RawDataIReceive1011[[#This Row],[2020]],"") -> -0.2976072634
A16: 15 | B16: Hero | C16: Balance Sheet | D16: Current Liabilities | E16: Accounts payable | F16: 357759805 | G16: 493407935 | H16: 344776389 | I16: 923347988 | J16: 871555042 | K16: 966975322 | L16: =IFERROR((Table_RawDataIReceive1011[[#This Row],[2017]]-Table_RawDataIReceive1011[[#This Row],[2016]])/Table_RawDataIReceive1011[[#This Row],[2016]],"") -> 0.3791597829 | M16: =IFERROR((Table_RawDataIReceive1011[[#This Row],[2018]]-Table_RawDataIReceive1011[[#This Row],[2017]])/Table_RawDataIReceive1011[[#This Row],[2017]],"") -> -0.3012346082 | N16: =IFERROR((Table_RawDataIReceive1011[[#This Row],[2019]]-Table_RawDataIReceive1011[[#This Row],[2018]])/Table_RawDataIReceive1011[[#This Row],[2018]],"") -> 1.678106789 | O16: =IFERROR((Table_RawDataIReceive1011[[#This Row],[2020]]-Table_RawDataIReceive1011[[#This Row],[2019]])/Table_RawDataIReceive1011[[#This Row],[2019]],"") -> -0.05609255305 | P16: =IFERROR((Table_RawDataIReceive1011[[#This Row],[2021]]-Table_RawDataIReceive1011[[#This Row],[2020]])/Table_RawDataIReceive1011[[#This Row],[2020]],"") -> 0.1094827927
A17: 16 | B17: Hero | C17: Balance Sheet | D17: Current Liabilities | E17: Short-term debt | F17: 150370338 | G17: 615334819 | H17: 638431384 | I17: 956351084 | J17: 463385129 | K17: 123111329 | L17: =IFERROR((Table_RawDataIReceive1011[[#This Row],[2017]]-Table_RawDataIReceive1011[[#This Row],[2016]])/Table_RawDataIReceive1011[[#This Row],[2016]],"") -> 3.092128988 | M17: =IFERROR((Table_RawDataIReceive1011[[#This Row],[2018]]-Table_RawDataIReceive1011[[#This Row],[2017]])/Table_RawDataIReceive1011[[#This Row],[2017]],"") -> 0.03753495542 | N17: =IFERROR((Table_RawDataIReceive1011[[#This Row],[2019]]-Table_RawDataIReceive1011[[#This Row],[2018]])/Table_RawDataIReceive1011[[#This Row],[2018]],"") -> 0.4979700371 | O17: =IFERROR((Table_RawDataIReceive1011[[#This Row],[2020]]-Table_RawDataIReceive1011[[#This Row],[2019]])/Table_RawDataIReceive1011[[#This Row],[2019]],"") -> -0.5154654637 | P17: =IFERROR((Table_RawDataIReceive1011[[#This Row],[2021]]-Table_RawDataIReceive1011[[#This Row],[2020]])/Table_RawDataIReceive1011[[#This Row],[2020]],"") -> -0.7343217956
A18: 17 | B18: Hero | C18: Balance Sheet | D18: Current Liabilities | E18: Dividends payable | F18: 334942436 | G18: 593990745 | H18: 64976326 | I18: 653795991 | J18: 39021794 | K18: 731454224 | L18: =IFERROR((Table_RawDataIReceive1011[[#This Row],[2017]]-Table_RawDataIReceive1011[[#This Row],[2016]])/Table_RawDataIReceive1011[[#This Row],[2016]],"") -> 0.7734114318 | M18: =IFERROR((Table_RawDataIReceive1011[[#This Row],[2018]]-Table_RawDataIReceive1011[[#This Row],[2017]])/Table_RawDataIReceive1011[[#This Row],[2017]],"") -> -0.8906105414 | N18: =IFERROR((Table_RawDataIReceive1011[[#This Row],[2019]]-Table_RawDataIReceive1011[[#This Row],[2018]])/Table_RawDataIReceive1011[[#This Row],[2018]],"") -> 9.06206462 | O18: =IFERROR((Table_RawDataIReceive1011[[#This Row],[2020]]-Table_RawDataIReceive1011[[#This Row],[2019]])/Table_RawDataIReceive1011[[#This Row],[2019]],"") -> -0.9403150302 | P18: =IFERROR((Table_RawDataIReceive1011[[#This Row],[2021]]-Table_RawDataIReceive1011[[#This Row],[2020]])/Table_RawDataIReceive1011[[#This Row],[2020]],"") -> 17.74476156
A19: 18 | B19: Hero | C19: Balance Sheet | D19: Current Liabilities | E19: Notes payable | F19: 999301227 | G19: 642551804 | H19: 390362981 | I19: 880965837 | J19: 645192107 | K19: 647266714 | L19: =IFERROR((Table_RawDataIReceive1011[[#This Row],[2017]]-Table_RawDataIReceive1011[[#This Row],[2016]])/Table_RawDataIReceive1011[[#This Row],[2016]],"") -> -0.3569988842 | M19: =IFERROR((Table_RawDataIReceive1011[[#This Row],[2018]]-Table_RawDataIReceive1011[[#This Row],[2017]])/Table_RawDataIReceive1011[[#This Row],[2017]],"") -> -0.3924801416 | N19: =IFERROR((Table_RawDataIReceive1011[[#This Row],[2019]]-Table_RawDataIReceive1011[[#This Row],[2018]])/Table_RawDataIReceive1011[[#This Row],[2018]],"") -> 1.256786324 | O19: =IFERROR((Table_RawDataIReceive1011[[#This Row],[2020]]-Table_RawDataIReceive1011[[#This Row],[2019]])/Table_RawDataIReceive1011[[#This Row],[2019]],"") -> -0.267630957 | P19: =IFERROR((Table_RawDataIReceive1011[[#This Row],[2021]]-Table_RawDataIReceive1011[[#This Row],[2020]])/Table_RawDataIReceive1011[[#This Row],[2020]],"") -> 0.00321548726
A20: 19 | B20: Hero | C20: Balance Sheet | D20: Current Liabilities | E20: The current portion of deferred revenue | F20: 233081611 | G20: 916398213 | H20: 487845343 | I20: 244880889 | J20: 380590035 | K20: 133894516 | L20: =IFERROR((Table_RawDataIReceive1011[[#This Row],[2017]]-Table_RawDataIReceive1011[[#This Row],[2016]])/Table_RawDataIReceive1011[[#This Row],[2016]],"") -> 2.93166243 | M20: =IFERROR((Table_RawDataIReceive1011[[#This Row],[2018]]-Table_RawDataIReceive1011[[#This Row],[2017]])/Table_RawDataIReceive1011[[#This Row],[2017]],"") -> -0.4676491769 | N20: =IFERROR((Table_RawDataIReceive1011[[#This Row],[2019]]-Table_RawDataIReceive1011[[#This Row],[2018]])/Table_RawDataIReceive1011[[#This Row],[2018]],"") -> -0.4980358171 | O20: =IFERROR((Table_RawDataIReceive1011[[#This Row],[2020]]-Table_RawDataIReceive1011[[#This Row],[2019]])/Table_RawDataIReceive1011[[#This Row],[2019]],"") -> 0.5541843079 | P20: =IFERROR((Table_RawDataIReceive1011[[#This Row],[2021]]-Table_RawDataIReceive1011[[#This Row],[2020]])/Table_RawDataIReceive1011[[#This Row],[2020]],"") -> -0.6481922707
A21: 20 | B21: Hero | C21: Balance Sheet | D21: Current Liabilities | E21: Current maturities of long-term debt | F21: 872753992 | G21: 983620671 | H21: 25983278 | I21: 877290617 | J21: 932426949 | K21: 247967907 | L21: =IFERROR((Table_RawDataIReceive1011[[#This Row],[2017]]-Table_RawDataIReceive1011[[#This Row],[2016]])/Table_RawDataIReceive1011[[#This Row],[2016]],"") -> 0.1270308472 | M21: =IFERROR((Table_RawDataIReceive1011[[#This Row],[2018]]-Table_RawDataIReceive1011[[#This Row],[2017]])/Table_RawDataIReceive1011[[#This Row],[2017]],"") -> -0.9735840464 | N21: =IFERROR((Table_RawDataIReceive1011[[#This Row],[2019]]-Table_RawDataIReceive1011[[#This Row],[2018]])/Table_RawDataIReceive1011[[#This Row],[2018]],"") -> 32.76366204 | O21: =IFERROR((Table_RawDataIReceive1011[[#This Row],[2020]]-Table_RawDataIReceive1011[[#This Row],[2019]])/Table_RawDataIReceive1011[[#This Row],[2019]],"") -> 0.06284842324 | P21: =IFERROR((Table_RawDataIReceive1011[[#This Row],[2021]]-Table_RawDataIReceive1011[[#This Row],[2020]])/Table_RawDataIReceive1011[[#This Row],[2020]],"") -> -0.7340618402
A22: 21 | B22: Hero | C22: Balance Sheet | D22: Current Liabilities | E22: Interest payable on outstanding debts | F22: 257784384 | G22: 95396253 | H22: 619534515 | I22: 715685671 | J22: 233621024 | K22: 680936048 | L22: =IFERROR((Table_RawDataIReceive1011[[#This Row],[2017]]-Table_RawDataIReceive1011[[#This Row],[2016]])/Table_RawDataIReceive1011[[#This Row],[2016]],"") -> -0.6299378127 | M22: =IFERROR((Table_RawDataIReceive1011[[#This Row],[2018]]-Table_RawDataIReceive1011[[#This Row],[2017]])/Table_RawDataIReceive1011[[#This Row],[2017]],"") -> 5.49432756 | N22: =IFERROR((Table_RawDataIReceive1011[[#This Row],[2019]]-Table_RawDataIReceive1011[[#This Row],[2018]])/Table_RawDataIReceive1011[[#This Row],[2018]],"") -> 0.1551990304 | O22: =IFERROR((Table_RawDataIReceive1011[[#This Row],[2020]]-Table_RawDataIReceive1011[[#This Row],[2019]])/Table_RawDataIReceive1011[[#This Row],[2019]],"") -> -0.6735703487 | P22: =IFERROR((Table_RawDataIReceive1011[[#This Row],[2021]]-Table_RawDataIReceive1011[[#This Row],[2020]])/Table_RawDataIReceive1011[[#This Row],[2020]],"") -> 1.914703636
A23: 22 | B23: Hero | C23: Balance Sheet | D23: Current Liabilities | E23: Income taxes owed within the next year | F23: 377787846 | G23: 995692434 | H23: 477722183 | I23: 24995021 | J23: 76944473 | K23: 108647941 | L23: =IFERROR((Table_RawDataIReceive1011[[#This Row],[2017]]-Table_RawDataIReceive1011[[#This Row],[2016]])/Table_RawDataIReceive1011[[#This Row],[2016]],"") -> 1.635586201 | M23: =IFERROR((Table_RawDataIReceive1011[[#This Row],[2018]]-Table_RawDataIReceive1011[[#This Row],[2017]])/Table_RawDataIReceive1011[[#This Row],[2017]],"") -> -0.5202110946 | N23: =IFERROR((Table_RawDataIReceive1011[[#This Row],[2019]]-Table_RawDataIReceive1011[[#This Row],[2018]])/Table_RawDataIReceive1011[[#This Row],[2018]],"") -> -0.9476787516 | O23: =IFERROR((Table_RawDataIReceive1011[[#This Row],[2020]]-Table_RawDataIReceive1011[[#This Row],[2019]])/Table_RawDataIReceive1011[[#This Row],[2019]],"") -> 2.078392013 | P23: =IFERROR((Table_RawDataIReceive1011[[#This Row],[2021]]-Table_RawDataIReceive1011[[#This Row],[2020]])/Table_RawDataIReceive1011[[#This Row],[2020]],"") -> 0.4120304781
A24: 23 | B24: Hero | C24: Balance Sheet | D24: Balance Sheet Totals | E24: Total Current Liabilities | F24: =SUM(F16:F23) -> 3583781639 | G24: =SUM(G16:G23) -> 5336392874 | H24: 3049632399 | I24: 5277313098 | J24: 3642736553 | K24: 3640254001 | L24: =IFERROR((Table_RawDataIReceive1011[[#This Row],[2017]]-Table_RawDataIReceive1011[[#This Row],[2016]])/Table_RawDataIReceive1011[[#This Row],[2016]],"") -> 0.4890396267 | M24: =IFERROR((Table_RawDataIReceive1011[[#This Row],[2018]]-Table_RawDataIReceive1011[[#This Row],[2017]])/Table_RawDataIReceive1011[[#This Row],[2017]],"") -> -0.4285217616 | N24: =IFERROR((Table_RawDataIReceive1011[[#This Row],[2019]]-Table_RawDataIReceive1011[[#This Row],[2018]])/Table_RawDataIReceive1011[[#This Row],[2018]],"") -> 0.7304751549 | O24: =IFERROR((Table_RawDataIReceive1011[[#This Row],[2020]]-Table_RawDataIReceive1011[[#This Row],[2019]])/Table_RawDataIReceive1011[[#This Row],[2019]],"") -> -0.3097365107 | P24: =IFERROR((Table_RawDataIReceive1011[[#This Row],[2021]]-Table_RawDataIReceive1011[[#This Row],[2020]])/Table_RawDataIReceive1011[[#This Row],[2020]],"") -> -0.0006815074228
A25: 24 | B25: Hero | C25: Balance Sheet | D25: Non Current Liabilities | E25: Debentures | F25: 813127084 | G25: 605968357 | H25: 89386021 | I25: 942051957 | J25: 634150419 | K25: 464274689 | L25: =IFERROR((Table_RawDataIReceive1011[[#This Row],[2017]]-Table_RawDataIReceive1011[[#This Row],[2016]])/Table_RawDataIReceive1011[[#This Row],[2016]],"") -> -0.2547679583 | M25: =IFERROR((Table_RawDataIReceive1011[[#This Row],[2018]]-Table_RawDataIReceive1011[[#This Row],[2017]])/Table_RawDataIReceive1011[[#This Row],[2017]],"") -> -0.8524906128 | N25: =IFERROR((Table_RawDataIReceive1011[[#This Row],[2019]]-Table_RawDataIReceive1011[[#This Row],[2018]])/Table_RawDataIReceive1011[[#This Row],[2018]],"") -> 9.539141875 | O25: =IFERROR((Table_RawDataIReceive1011[[#This Row],[2020]]-Table_RawDataIReceive1011[[#This Row],[2019]])/Table_RawDataIReceive1011[[#This Row],[2019]],"") -> -0.3268413549 | P25: =IFERROR((Table_RawDataIReceive1011[[#This Row],[2021]]-Table_RawDataIReceive1011[[#This Row],[2020]])/Table_RawDataIReceive1011[[#This Row],[2020]],"") -> -0.2678792364
A26: 25 | B26: Hero | C26: Balance Sheet | D26: Non Current Liabilities | E26: Bonds payable | F26: 214327045 | G26: 526075613 | H26: 277484005 | I26: 363903955 | J26: 735256919 | K26: 41740022 | L26: =IFERROR((Table_RawDataIReceive1011[[#This Row],[2017]]-Table_RawDataIReceive1011[[#This Row],[2016]])/Table_RawDataIReceive1011[[#This Row],[2016]],"") -> 1.454546103 | M26: =IFERROR((Table_RawDataIReceive1011[[#This Row],[2018]]-Table_RawDataIReceive1011[[#This Row],[2017]])/Table_RawDataIReceive1011[[#This Row],[2017]],"") -> -0.4725396917 | N26: =IFERROR((Table_RawDataIReceive1011[[#This Row],[2019]]-Table_RawDataIReceive1011[[#This Row],[2018]])/Table_RawDataIReceive1011[[#This Row],[2018]],"") -> 0.3114411946 | O26: =IFERROR((Table_RawDataIReceive1011[[#This Row],[2020]]-Table_RawDataIReceive1011[[#This Row],[2019]])/Table_RawDataIReceive1011[[#This Row],[2019]],"") -> 1.020469712 | P26: =IFERROR((Table_RawDataIReceive1011[[#This Row],[2021]]-Table_RawDataIReceive1011[[#This Row],[2020]])/Table_RawDataIReceive1011[[#This Row],[2020]],"") -> -0.9432306981
A27: 26 | B27: Hero | C27: Balance Sheet | D27: Non Current Liabilities | E27: Long-term loans | F27: 289975883 | G27: 554978808 | H27: 128651546 | I27: 364666007 | J27: 209645345 | K27: 846019529 | L27: =IFERROR((Table_RawDataIReceive1011[[#This Row],[2017]]-Table_RawDataIReceive1011[[#This Row],[2016]])/Table_RawDataIReceive1011[[#This Row],[2016]],"") -> 0.9138791897 | M27: =IFERROR((Table_RawDataIReceive1011[[#This Row],[2018]]-Table_RawDataIReceive1011[[#This Row],[2017]])/Table_RawDataIReceive1011[[#This Row],[2017]],"") -> -0.7681865611 | N27: =IFERROR((Table_RawDataIReceive1011[[#This Row],[2019]]-Table_RawDataIReceive1011[[#This Row],[2018]])/Table_RawDataIReceive1011[[#This Row],[2018]],"") -> 1.834524872 | O27: =IFERROR((Table_RawDataIReceive1011[[#This Row],[2020]]-Table_RawDataIReceive1011[[#This Row],[2019]])/Table_RawDataIReceive1011[[#This Row],[2019]],"") -> -0.4251031328 | P27: =IFERROR((Table_RawDataIReceive1011[[#This Row],[2021]]-Table_RawDataIReceive1011[[#This Row],[2020]])/Table_RawDataIReceive1011[[#This Row],[2020]],"") -> 3.035479676
A28: 27 | B28: Hero | C28: Balance Sheet | D28: Non Current Liabilities | E28: Deferred tax liabilities | F28: 182203687 | G28: 760697495 | H28: 727179591 | I28: 953902248 | J28: 991456615 | K28: 566692023 | L28: =IFERROR((Table_RawDataIReceive1011[[#This Row],[2017]]-Table_RawDataIReceive1011[[#This Row],[2016]])/Table_RawDataIReceive1011[[#This Row],[2016]],"") -> 3.174984093 | M28: =IFERROR((Table_RawDataIReceive1011[[#This Row],[2018]]-Table_RawDataIReceive1011[[#This Row],[2017]])/Table_RawDataIReceive1011[[#This Row],[2017]],"") -> -0.04406206701 | N28: =IFERROR((Table_RawDataIReceive1011[[#This Row],[2019]]-Table_RawDataIReceive1011[[#This Row],[2018]])/Table_RawDataIReceive1011[[#This Row],[2018]],"") -> 0.3117835811 | O28: =IFERROR((Table_RawDataIReceive1011[[#This Row],[2020]]-Table_RawDataIReceive1011[[#This Row],[2019]])/Table_RawDataIReceive1011[[#This Row],[2019]],"") -> 0.03936919855 | P28: =IFERROR((Table_RawDataIReceive1011[[#This Row],[2021]]-Table_RawDataIReceive1011[[#This Row],[2020]])/Table_RawDataIReceive1011[[#This Row],[2020]],"") -> -0.4284247899
A29: 28 | B29: Hero | C29: Balance Sheet | D29: Non Current Liabilities | E29: Long-term lease | F29: 974498778 | G29: 889257259 | H29: 126133075 | I29: 601893222 | J29: 796901469 | K29: 209876456 | L29: =IFERROR((Table_RawDataIReceive1011[[#This Row],[2017]]-Table_RawDataIReceive1011[[#This Row],[2016]])/Table_RawDataIReceive1011[[#This Row],[2016]],"") -> -0.08747216613 | M29: =IFERROR((Table_RawDataIReceive1011[[#This Row],[2018]]-Table_RawDataIReceive1011[[#This Row],[2017]])/Table_RawDataIReceive1011[[#This Row],[2017]],"") -> -0.8581590718 | N29: =IFERROR((Table_RawDataIReceive1011[[#This Row],[2019]]-Table_RawDataIReceive1011[[#This Row],[2018]])/Table_RawDataIReceive1011[[#This Row],[2018]],"") -> 3.771890497 | O29: =IFERROR((Table_RawDataIReceive1011[[#This Row],[2020]]-Table_RawDataIReceive1011[[#This Row],[2019]])/Table_RawDataIReceive1011[[#This Row],[2019]],"") -> 0.3239914322 | P29: =IFERROR((Table_RawDataIReceive1011[[#This Row],[2021]]-Table_RawDataIReceive1011[[#This Row],[2020]])/Table_RawDataIReceive1011[[#This Row],[2020]],"") -> -0.7366343718
A30: 29 | B30: Hero | C30: Balance Sheet | D30: Non Current Liabilities | E30: Pension benefit obligations | F30: 832575942 | G30: 641360556 | H30: 528051958 | I30: 227853677 | J30: 536834492 | K30: 4530586 | L30: =IFERROR((Table_RawDataIReceive1011[[#This Row],[2017]]-Table_RawDataIReceive1011[[#This Row],[2016]])/Table_RawDataIReceive1011[[#This Row],[2016]],"") -> -0.2296672007 | M30: =IFERROR((Table_RawDataIReceive1011[[#This Row],[2018]]-Table_RawDataIReceive1011[[#This Row],[2017]])/Table_RawDataIReceive1011[[#This Row],[2017]],"") -> -0.176669109 | N30: =IFERROR((Table_RawDataIReceive1011[[#This Row],[2019]]-Table_RawDataIReceive1011[[#This Row],[2018]])/Table_RawDataIReceive1011[[#This Row],[2018]],"") -> -0.5685014068 | O30: =IFERROR((Table_RawDataIReceive1011[[#This Row],[2020]]-Table_RawDataIReceive1011[[#This Row],[2019]])/Table_RawDataIReceive1011[[#This Row],[2019]],"") -> 1.356049282 | P30: =IFERROR((Table_RawDataIReceive1011[[#This Row],[2021]]-Table_RawDataIReceive1011[[#This Row],[2020]])/Table_RawDataIReceive1011[[#This Row],[2020]],"") -> -0.9915605535
A31: 30 | B31: Hero | C31: Balance Sheet | D31: Non Current Liabilities | E31: Differed Revenue | F31: 711951037 | G31: 562764498 | H31: 703019658 | I31: 70639543 | J31: 507990745 | K31: 587718804 | L31: =IFERROR((Table_RawDataIReceive1011[[#This Row],[2017]]-Table_RawDataIReceive1011[[#This Row],[2016]])/Table_RawDataIReceive1011[[#This Row],[2016]],"") -> -0.209546066 | M31: =IFERROR((Table_RawDataIReceive1011[[#This Row],[2018]]-Table_RawDataIReceive1011[[#This Row],[2017]])/Table_RawDataIReceive1011[[#This Row],[2017]],"") -> 0.2492253163 | N31: =IFERROR((Table_RawDataIReceive1011[[#This Row],[2019]]-Table_RawDataIReceive1011[[#This Row],[2018]])/Table_RawDataIReceive1011[[#This Row],[2018]],"") -> -0.8995198183 | O31: =IFERROR((Table_RawDataIReceive1011[[#This Row],[2020]]-Table_RawDataIReceive1011[[#This Row],[2019]])/Table_RawDataIReceive1011[[#This Row],[2019]],"") -> 6.191308486 | P31: =IFERROR((Table_RawDataIReceive1011[[#This Row],[2021]]-Table_RawDataIReceive1011[[#This Row],[2020]])/Table_RawDataIReceive1011[[#This Row],[2020]],"") -> 0.1569478574
A32: 31 | B32: Hero | C32: Balance Sheet | D32: Balance Sheet Totals | E32: Total Non Current Liabilities | F32: =SUM(F25:F31) -> 4018659456 | G32: =SUM(G25:G31) -> 4541102586 | H32: 2579905854 | I32: 3524910609 | J32: 4412236004 | K32: 2720852109 | L32: =IFERROR((Table_RawDataIReceive1011[[#This Row],[2017]]-Table_RawDataIReceive1011[[#This Row],[2016]])/Table_RawDataIReceive1011[[#This Row],[2016]],"") -> 0.13000433 | M32: =IFERROR((Table_RawDataIReceive1011[[#This Row],[2018]]-Table_RawDataIReceive1011[[#This Row],[2017]])/Table_RawDataIReceive1011[[#This Row],[2017]],"") -> -0.4318767733 | N32: =IFERROR((Table_RawDataIReceive1011[[#This Row],[2019]]-Table_RawDataIReceive1011[[#This Row],[2018]])/Table_RawDataIReceive1011[[#This Row],[2018]],"") -> 0.3662942791 | O32: =IFERROR((Table_RawDataIReceive1011[[#This Row],[2020]]-Table_RawDataIReceive1011[[#This Row],[2019]])/Table_RawDataIReceive1011[[#This Row],[2019]],"") -> 0.2517299 | P32: =IFERROR((Table_RawDataIReceive1011[[#This Row],[2021]]-Table_RawDataIReceive1011[[#This Row],[2020]])/Table_RawDataIReceive1011[[#This Row],[2020]],"") -> -0.3833393983
A33: 32 | B33: Hero | C33: Balance Sheet | D33: Balance Sheet Totals | E33: Total Liabilities | F33: =SUM(F32,F24) -> 7602441095 | G33: =SUM(G32,G24) -> 9877495460 | H33: 5629538253 | I33: 8802223707 | J33: 8054972557 | K33: 6361106110 | L33: =IFERROR((Table_RawDataIReceive1011[[#This Row],[2017]]-Table_RawDataIReceive1011[[#This Row],[2016]])/Table_RawDataIReceive1011[[#This Row],[2016]],"") -> 0.2992531394 | M33: =IFERROR((Table_RawDataIReceive1011[[#This Row],[2018]]-Table_RawDataIReceive1011[[#This Row],[2017]])/Table_RawDataIReceive1011[[#This Row],[2017]],"") -> -0.4300642024 | N33: =IFERROR((Table_RawDataIReceive1011[[#This Row],[2019]]-Table_RawDataIReceive1011[[#This Row],[2018]])/Table_RawDataIReceive1011[[#This Row],[2018]],"") -> 0.5635782743 | O33: =IFERROR((Table_RawDataIReceive1011[[#This Row],[2020]]-Table_RawDataIReceive1011[[#This Row],[2019]])/Table_RawDataIReceive1011[[#This Row],[2019]],"") -> -0.08489345135 | P33: =IFERROR((Table_RawDataIReceive1011[[#This Row],[2021]]-Table_RawDataIReceive1011[[#This Row],[2020]])/Table_RawDataIReceive1011[[#This Row],[2020]],"") -> -0.2102882952
A34: 33 | B34: Hero | C34: Balance Sheet | D34: Owners Equity | E34: Retained earnings | F34: 733777818 | G34: 258066039 | H34: 928511189 | I34: 151752686 | J34: 488920934 | K34: 449605915 | L34: =IFERROR((Table_RawDataIReceive1011[[#This Row],[2017]]-Table_RawDataIReceive1011[[#This Row],[2016]])/Table_RawDataIReceive1011[[#This Row],[2016]],"") -> -0.6483049328 | M34: =IFERROR((Table_RawDataIReceive1011[[#This Row],[2018]]-Table_RawDataIReceive1011[[#This Row],[2017]])/Table_RawDataIReceive1011[[#This Row],[2017]],"") -> 2.597959625 | N34: =IFERROR((Table_RawDataIReceive1011[[#This Row],[2019]]-Table_RawDataIReceive1011[[#This Row],[2018]])/Table_RawDataIReceive1011[[#This Row],[2018]],"") -> -0.8365634278 | O34: =IFERROR((Table_RawDataIReceive1011[[#This Row],[2020]]-Table_RawDataIReceive1011[[#This Row],[2019]])/Table_RawDataIReceive1011[[#This Row],[2019]],"") -> 2.221827217 | P34: =IFERROR((Table_RawDataIReceive1011[[#This Row],[2021]]-Table_RawDataIReceive1011[[#This Row],[2020]])/Table_RawDataIReceive1011[[#This Row],[2020]],"") -> -0.08041181358
A35: 34 | B35: Hero | C35: Balance Sheet | D35: Owners Equity | E35: Outstanding shares | F35: 7966065 | G35: 227416809 | H35: 852521978 | I35: 315788677 | J35: 526676875 | K35: 170605845 | L35: =IFERROR((Table_RawDataIReceive1011[[#This Row],[2017]]-Table_RawDataIReceive1011[[#This Row],[2016]])/Table_RawDataIReceive1011[[#This Row],[2016]],"") -> 27.54819902 | M35: =IFERROR((Table_RawDataIReceive1011[[#This Row],[2018]]-Table_RawDataIReceive1011[[#This Row],[2017]])/Table_RawDataIReceive1011[[#This Row],[2017]],"") -> 2.748720166 | N35: =IFERROR((Table_RawDataIReceive1011[[#This Row],[2019]]-Table_RawDataIReceive1011[[#This Row],[2018]])/Table_RawDataIReceive1011[[#This Row],[2018]],"") -> -0.629582949 | O35: =IFERROR((Table_RawDataIReceive1011[[#This Row],[2020]]-Table_RawDataIReceive1011[[#This Row],[2019]])/Table_RawDataIReceive1011[[#This Row],[2019]],"") -> 0.6678143118 | P35: =IFERROR((Table_RawDataIReceive1011[[#This Row],[2021]]-Table_RawDataIReceive1011[[#This Row],[2020]])/Table_RawDataIReceive1011[[#This Row],[2020]],"") -> -0.67607113
A36: 35 | B36: Hero | C36: Balance Sheet | D36: Owners Equity | E36: Treasury stock | F36: 90193663 | G36: 118066838 | H36: 763466101 | I36: 959972014 | J36: 834966868 | K36: 214381235 | L36: =IFERROR((Table_RawDataIReceive1011[[#This Row],[2017]]-Table_RawDataIReceive1011[[#This Row],[2016]])/Table_RawDataIReceive1011[[#This Row],[2016]],"") -> 0.3090369553 | M36: =IFERROR((Table_RawDataIReceive1011[[#This Row],[2018]]-Table_RawDataIReceive1011[[#This Row],[2017]])/Table_RawDataIReceive1011[[#This Row],[2017]],"") -> 5.466388987 | N36: =IFERROR((Table_RawDataIReceive1011[[#This Row],[2019]]-Table_RawDataIReceive1011[[#This Row],[2018]])/Table_RawDataIReceive1011[[#This Row],[2018]],"") -> 0.2573865595 | O36: =IFERROR((Table_RawDataIReceive1011[[#This Row],[2020]]-Table_RawDataIReceive1011[[#This Row],[2019]])/Table_RawDataIReceive1011[[#This Row],[2019]],"") -> -0.1302174899 | P36: =IFERROR((Table_RawDataIReceive1011[[#This Row],[2021]]-Table_RawDataIReceive1011[[#This Row],[2020]])/Table_RawDataIReceive1011[[#This Row],[2020]],"") -> -0.7432458182
A37: 36 | B37: Hero | C37: Balance Sheet | D37: Owners Equity | E37: Additional paid-in capital | F37: 435441208 | G37: 918975593 | H37: 698245163 | I37: 344715749 | J37: 566856205 | K37: 160033981 | L37: =IFERROR((Table_RawDataIReceive1011[[#This Row],[2017]]-Table_RawDataIReceive1011[[#This Row],[2016]])/Table_RawDataIReceive1011[[#This Row],[2016]],"") -> 1.110447004 | M37: =IFERROR((Table_RawDataIReceive1011[[#This Row],[2018]]-Table_RawDataIReceive1011[[#This Row],[2017]])/Table_RawDataIReceive1011[[#This Row],[2017]],"") -> -0.2401918306 | N37: =IFERROR((Table_RawDataIReceive1011[[#This Row],[2019]]-Table_RawDataIReceive1011[[#This Row],[2018]])/Table_RawDataIReceive1011[[#This Row],[2018]],"") -> -0.5063112969 | O37: =IFERROR((Table_RawDataIReceive1011[[#This Row],[2020]]-Table_RawDataIReceive1011[[#This Row],[2019]])/Table_RawDataIReceive1011[[#This Row],[2019]],"") -> 0.6444163246 | P37: =IFERROR((Table_RawDataIReceive1011[[#This Row],[2021]]-Table_RawDataIReceive1011[[#This Row],[2020]])/Table_RawDataIReceive1011[[#This Row],[2020]],"") -> -0.7176815221
A38: 37 | B38: Hero | C38: Balance Sheet | D38: Balance Sheet Totals | E38: Total Owners Equity | F38: =SUM(F34:F37) -> 1267378754 | G38: =SUM(G34:G37) -> 1522525279 | H38: 3242744431 | I38: 1772229126 | J38: 2417420882 | K38: 994626976 | L38: =IFERROR((Table_RawDataIReceive1011[[#This Row],[2017]]-Table_RawDataIReceive1011[[#This Row],[2016]])/Table_RawDataIReceive1011[[#This Row],[2016]],"") -> 0.2013182912 | M38: =IFERROR((Table_RawDataIReceive1011[[#This Row],[2018]]-Table_RawDataIReceive1011[[#This Row],[2017]])/Table_RawDataIReceive1011[[#This Row],[2017]],"") -> 1.129846037 | N38: =IFERROR((Table_RawDataIReceive1011[[#This Row],[2019]]-Table_RawDataIReceive1011[[#This Row],[2018]])/Table_RawDataIReceive1011[[#This Row],[2018]],"") -> -0.4534786309 | O38: =IFERROR((Table_RawDataIReceive1011[[#This Row],[2020]]-Table_RawDataIReceive1011[[#This Row],[2019]])/Table_RawDataIReceive1011[[#This Row],[2019]],"") -> 0.3640566259 | P38: =IFERROR((Table_RawDataIReceive1011[[#This Row],[2021]]-Table_RawDataIReceive1011[[#This Row],[2020]])/Table_RawDataIReceive1011[[#This Row],[2020]],"") -> -0.5885586232
A39: 38 | B39: Hero | C39: Balance Sheet | D39: Balance Sheet Totals | E39: Total Liabilities & Owners Equity | F39: =SUM(F38,F33) -> 8869819849 | G39: =SUM(G38,G33) -> 11400020739 | H39: 8872282684 | I39: 10574452833 | J39: 10472393439 | K39: 7355733086 | L39: =IFERROR((Table_RawDataIReceive1011[[#This Row],[2017]]-Table_RawDataIReceive1011[[#This Row],[2016]])/Table_RawDataIReceive1011[[#This Row],[2016]],"") -> 0.285259558 | M39: =IFERROR((Table_RawDataIReceive1011[[#This Row],[2018]]-Table_RawDataIReceive1011[[#This Row],[2017]])/Table_RawDataIReceive1011[[#This Row],[2017]],"") -> -0.221731005 | N39: =IFERROR((Table_RawDataIReceive1011[[#This Row],[2019]]-Table_RawDataIReceive1011[[#This Row],[2018]])/Table_RawDataIReceive1011[[#This Row],[2018]],"") -> 0.1918525603 | O39: =IFERROR((Table_RawDataIReceive1011[[#This Row],[2020]]-Table_RawDataIReceive1011[[#This Row],[2019]])/Table_RawDataIReceive1011[[#This Row],[2019]],"") -> -0.009651505909 | P39: =IFERROR((Table_RawDataIReceive1011[[#This Row],[2021]]-Table_RawDataIReceive1011[[#This Row],[2020]])/Table_RawDataIReceive1011[[#This Row],[2020]],"") -> -0.2976072634
A40: 39 | B40: Hero | C40: Income Statement | D40: Income | E40: operating income | F40: 10195553186 | G40: 11877329244 | H40: 13342929078 | I40: 15340510909 | J40: 17547391128 | K40: 20992787274 | L40: =IFERROR((Table_RawDataIReceive1011[[#This Row],[2017]]-Table_RawDataIReceive1011[[#This Row],[2016]])/Table_RawDataIReceive1011[[#This Row],[2016]],"") -> 0.1649519185 | M40: =IFERROR((Table_RawDataIReceive1011[[#This Row],[2018]]-Table_RawDataIReceive1011[[#This Row],[2017]])/Table_RawDataIReceive1011[[#This Row],[2017]],"") -> 0.1233947299 | N40: =IFERROR((Table_RawDataIReceive1011[[#This Row],[2019]]-Table_RawDataIReceive1011[[#This Row],[2018]])/Table_RawDataIReceive1011[[#This Row],[2018]],"") -> 0.1497108933 | O40: =IFERROR((Table_RawDataIReceive1011[[#This Row],[2020]]-Table_RawDataIReceive1011[[#This Row],[2019]])/Table_RawDataIReceive1011[[#This Row],[2019]],"") -> 0.1438596297 | P40: =IFERROR((Table_RawDataIReceive1011[[#This Row],[2021]]-Table_RawDataIReceive1011[[#This Row],[2020]])/Table_RawDataIReceive1011[[#This Row],[2020]],"") -> 0.1963480566
A41: 40 | B41: Hero | C41: Income Statement | D41: Income | E41: Other income | F41: 25042524 | G41: 49098174 | H41: 70362581 | I41: 139908779 | J41: 160691571 | K41: 189967562 | L41: =IFERROR((Table_RawDataIReceive1011[[#This Row],[2017]]-Table_RawDataIReceive1011[[#This Row],[2016]])/Table_RawDataIReceive1011[[#This Row],[2016]],"") -> 0.9605920713 | M41: =IFERROR((Table_RawDataIReceive1011[[#This Row],[2018]]-Table_RawDataIReceive1011[[#This Row],[2017]])/Table_RawDataIReceive1011[[#This Row],[2017]],"") -> 0.4330997523 | N41: =IFERROR((Table_RawDataIReceive1011[[#This Row],[2019]]-Table_RawDataIReceive1011[[#This Row],[2018]])/Table_RawDataIReceive1011[[#This Row],[2018]],"") -> 0.9883974836 | O41: =IFERROR((Table_RawDataIReceive1011[[#This Row],[2020]]-Table_RawDataIReceive1011[[#This Row],[2019]])/Table_RawDataIReceive1011[[#This Row],[2019]],"") -> 0.1485453032 | P41: =IFERROR((Table_RawDataIReceive1011[[#This Row],[2021]]-Table_RawDataIReceive1011[[#This Row],[2020]])/Table_RawDataIReceive1011[[#This Row],[2020]],"") -> 0.1821874714
A42: 41 | B42: Hero | C42: Income Statement | D42: Income Statement Totals | E42: Total revenue | F42: =SUM(F40:F41) -> 10220595710 | G42: =SUM(G40:G41) -> 11926427418 | H42: =SUM(H40:H41) -> 13413291659 | I42: 15480419688 | J42: 17708082699 | K42: 21182754836 | L42: =IFERROR((Table_RawDataIReceive1011[[#This Row],[2017]]-Table_RawDataIReceive1011[[#This Row],[2016]])/Table_RawDataIReceive1011[[#This Row],[2016]],"") -> 0.1669013976 | M42: =IFERROR((Table_RawDataIReceive1011[[#This Row],[2018]]-Table_RawDataIReceive1011[[#This Row],[2017]])/Table_RawDataIReceive1011[[#This Row],[2017]],"") -> 0.1246697095 | N42: =IFERROR((Table_RawDataIReceive1011[[#This Row],[2019]]-Table_RawDataIReceive1011[[#This Row],[2018]])/Table_RawDataIReceive1011[[#This Row],[2018]],"") -> 0.1541104213 | O42: =IFERROR((Table_RawDataIReceive1011[[#This Row],[2020]]-Table_RawDataIReceive1011[[#This Row],[2019]])/Table_RawDataIReceive1011[[#This Row],[2019]],"") -> 0.1439019778 | P42: =IFERROR((Table_RawDataIReceive1011[[#This Row],[2021]]-Table_RawDataIReceive1011[[#This Row],[2020]])/Table_RawDataIReceive1011[[#This Row],[2020]],"") -> 0.1962195567
A43: 42 | B43: Hero | C43: Income Statement | D43: Income | E43: activity expenses | F43: -3840463547 | G43: -4877526063 | H43: -6022404941 | I43: -7284007661 | J43: -7618358388 | K43: -9259931780 | L43: =IFERROR((Table_RawDataIReceive1011[[#This Row],[2017]]-Table_RawDataIReceive1011[[#This Row],[2016]])/Table_RawDataIReceive1011[[#This Row],[2016]],"") -> 0.2700357661 | M43: =IFERROR((Table_RawDataIReceive1011[[#This Row],[2018]]-Table_RawDataIReceive1011[[#This Row],[2017]])/Table_RawDataIReceive1011[[#This Row],[2017]],"") -> 0.2347253225 | N43: =IFERROR((Table_RawDataIReceive1011[[#This Row],[2019]]-Table_RawDataIReceive1011[[#This Row],[2018]])/Table_RawDataIReceive1011[[#This Row],[2018]],"") -> 0.2094848706 | O43: =IFERROR((Table_RawDataIReceive1011[[#This Row],[2020]]-Table_RawDataIReceive1011[[#This Row],[2019]])/Table_RawDataIReceive1011[[#This Row],[2019]],"") -> 0.04590202847 | P43: =IFERROR((Table_RawDataIReceive1011[[#This Row],[2021]]-Table_RawDataIReceive1011[[#This Row],[2020]])/Table_RawDataIReceive1011[[#This Row],[2020]],"") -> 0.215476
A44: 43 | B44: Hero | C44: Income Statement | D44: Income | E44: change in stock | F44: -431999761 | G44: -560479596 | H44: -329165574 | I44: -404230813 | J44: -409292466 | K44: -498877943 | L44: =IFERROR((Table_RawDataIReceive1011[[#This Row],[2017]]-Table_RawDataIReceive1011[[#This Row],[2016]])/Table_RawDataIReceive1011[[#This Row],[2016]],"") -> 0.29740719 | M44: =IFERROR((Table_RawDataIReceive1011[[#This Row],[2018]]-Table_RawDataIReceive1011[[#This Row],[2017]])/Table_RawDataIReceive1011[[#This Row],[2017]],"") -> -0.4127073022 | N44: =IFERROR((Table_RawDataIReceive1011[[#This Row],[2019]]-Table_RawDataIReceive1011[[#This Row],[2018]])/Table_RawDataIReceive1011[[#This Row],[2018]],"") -> 0.2280470527 | O44: =IFERROR((Table_RawDataIReceive1011[[#This Row],[2020]]-Table_RawDataIReceive1011[[#This Row],[2019]])/Table_RawDataIReceive1011[[#This Row],[2019]],"") -> 0.01252169018 | P44: =IFERROR((Table_RawDataIReceive1011[[#This Row],[2021]]-Table_RawDataIReceive1011[[#This Row],[2020]])/Table_RawDataIReceive1011[[#This Row],[2020]],"") -> 0.2188788811
A45: 44 | B45: Hero | C45: Income Statement | D45: Income | E45: Salaries, wages and other benefits | F45: -750419677 | G45: -892642621 | H45: -879109943 | I45: -935612907 | J45: -1053701205 | K45: -1198891415 | L45: =IFERROR((Table_RawDataIReceive1011[[#This Row],[2017]]-Table_RawDataIReceive1011[[#This Row],[2016]])/Table_RawDataIReceive1011[[#This Row],[2016]],"") -> 0.1895245399 | M45: =IFERROR((Table_RawDataIReceive1011[[#This Row],[2018]]-Table_RawDataIReceive1011[[#This Row],[2017]])/Table_RawDataIReceive1011[[#This Row],[2017]],"") -> -0.01516024183 | N45: =IFERROR((Table_RawDataIReceive1011[[#This Row],[2019]]-Table_RawDataIReceive1011[[#This Row],[2018]])/Table_RawDataIReceive1011[[#This Row],[2018]],"") -> 0.06427292109 | O45: =IFERROR((Table_RawDataIReceive1011[[#This Row],[2020]]-Table_RawDataIReceive1011[[#This Row],[2019]])/Table_RawDataIReceive1011[[#This Row],[2019]],"") -> 0.1262149091 | P45: =IFERROR((Table_RawDataIReceive1011[[#This Row],[2021]]-Table_RawDataIReceive1011[[#This Row],[2020]])/Table_RawDataIReceive1011[[#This Row],[2020]],"") -> 0.1377906842
A46: 45 | B46: Hero | C46: Income Statement | D46: Income | E46: Depreciation and amortization | F46: -1901596942 | G46: -2158735307 | H46: -2674743878 | I46: -2853492329 | J46: -3077866825 | K46: -3785497514 | L46: =IFERROR((Table_RawDataIReceive1011[[#This Row],[2017]]-Table_RawDataIReceive1011[[#This Row],[2016]])/Table_RawDataIReceive1011[[#This Row],[2016]],"") -> 0.1352223278 | M46: =IFERROR((Table_RawDataIReceive1011[[#This Row],[2018]]-Table_RawDataIReceive1011[[#This Row],[2017]])/Table_RawDataIReceive1011[[#This Row],[2017]],"") -> 0.2390328121 | N46: =IFERROR((Table_RawDataIReceive1011[[#This Row],[2019]]-Table_RawDataIReceive1011[[#This Row],[2018]])/Table_RawDataIReceive1011[[#This Row],[2018]],"") -> 0.06682824941 | O46: =IFERROR((Table_RawDataIReceive1011[[#This Row],[2020]]-Table_RawDataIReceive1011[[#This Row],[2019]])/Table_RawDataIReceive1011[[#This Row],[2019]],"") -> 0.07863153993 | P46: =IFERROR((Table_RawDataIReceive1011[[#This Row],[2021]]-Table_RawDataIReceive1011[[#This Row],[2020]])/Table_RawDataIReceive1011[[#This Row],[2020]],"") -> 0.2299094565
A47: 46 | B47: Hero | C47: Income Statement | D47: Income | E47: advertising expenses | F47: -285579483 | G47: -274481700 | H47: -412438319 | I47: -428057267 | J47: -353825863 | K47: -554883285 | L47: =IFERROR((Table_RawDataIReceive1011[[#This Row],[2017]]-Table_RawDataIReceive1011[[#This Row],[2016]])/Table_RawDataIReceive1011[[#This Row],[2016]],"") -> -0.03886057529 | M47: =IFERROR((Table_RawDataIReceive1011[[#This Row],[2018]]-Table_RawDataIReceive1011[[#This Row],[2017]])/Table_RawDataIReceive1011[[#This Row],[2017]],"") -> 0.5026077112 | N47: =IFERROR((Table_RawDataIReceive1011[[#This Row],[2019]]-Table_RawDataIReceive1011[[#This Row],[2018]])/Table_RawDataIReceive1011[[#This Row],[2018]],"") -> 0.03786977902 | O47: =IFERROR((Table_RawDataIReceive1011[[#This Row],[2020]]-Table_RawDataIReceive1011[[#This Row],[2019]])/Table_RawDataIReceive1011[[#This Row],[2019]],"") -> -0.1734146567 | P47: =IFERROR((Table_RawDataIReceive1011[[#This Row],[2021]]-Table_RawDataIReceive1011[[#This Row],[2020]])/Table_RawDataIReceive1011[[#This Row],[2020]],"") -> 0.5682383427
A48: 47 | B48: Hero | C48: Income Statement | D48: Income | E48: Operating rentals | F48: -464821104 | G48: -535247697 | H48: -594665144 | I48: -706692047 | J48: -777829289 | K48: -106721467 | L48: =IFERROR((Table_RawDataIReceive1011[[#This Row],[2017]]-Table_RawDataIReceive1011[[#This Row],[2016]])/Table_RawDataIReceive1011[[#This Row],[2016]],"") -> 0.1515133293 | M48: =IFERROR((Table_RawDataIReceive1011[[#This Row],[2018]]-Table_RawDataIReceive1011[[#This Row],[2017]])/Table_RawDataIReceive1011[[#This Row],[2017]],"") -> 0.111009253 | N48: =IFERROR((Table_RawDataIReceive1011[[#This Row],[2019]]-Table_RawDataIReceive1011[[#This Row],[2018]])/Table_RawDataIReceive1011[[#This Row],[2018]],"") -> 0.18838653 | O48: =IFERROR((Table_RawDataIReceive1011[[#This Row],[2020]]-Table_RawDataIReceive1011[[#This Row],[2019]])/Table_RawDataIReceive1011[[#This Row],[2019]],"") -> 0.1006622931 | P48: =IFERROR((Table_RawDataIReceive1011[[#This Row],[2021]]-Table_RawDataIReceive1011[[#This Row],[2020]])/Table_RawDataIReceive1011[[#This Row],[2020]],"") -> -0.8627957721
A49: 48 | B49: Hero | C49: Income Statement | D49: Income | E49: allotments | F49: -704202705 | G49: -475977097 | H49: -363442946 | I49: -437247860 | J49: -463935172 | K49: -550980040 | L49: =IFERROR((Table_RawDataIReceive1011[[#This Row],[2017]]-Table_RawDataIReceive1011[[#This Row],[2016]])/Table_RawDataIReceive1011[[#This Row],[2016]],"") -> -0.3240907858 | M49: =IFERROR((Table_RawDataIReceive1011[[#This Row],[2018]]-Table_RawDataIReceive1011[[#This Row],[2017]])/Table_RawDataIReceive1011[[#This Row],[2017]],"") -> -0.2364276595 | N49: =IFERROR((Table_RawDataIReceive1011[[#This Row],[2019]]-Table_RawDataIReceive1011[[#This Row],[2018]])/Table_RawDataIReceive1011[[#This Row],[2018]],"") -> 0.2030715269 | O49: =IFERROR((Table_RawDataIReceive1011[[#This Row],[2020]]-Table_RawDataIReceive1011[[#This Row],[2019]])/Table_RawDataIReceive1011[[#This Row],[2019]],"") -> 0.06103474583 | P49: =IFERROR((Table_RawDataIReceive1011[[#This Row],[2021]]-Table_RawDataIReceive1011[[#This Row],[2020]])/Table_RawDataIReceive1011[[#This Row],[2020]],"") -> 0.1876229121
A50: 49 | B50: Hero | C50: Income Statement | D50: Income | E50: Allowances that are not intended | F50: 155760050 | G50: 350525781 | H50: 816333813 | I50: 510079616 | J50: 57215667 | K50: 103935665 | L50: =IFERROR((Table_RawDataIReceive1011[[#This Row],[2017]]-Table_RawDataIReceive1011[[#This Row],[2016]])/Table_RawDataIReceive1011[[#This Row],[2016]],"") -> 1.2504216 | M50: =IFERROR((Table_RawDataIReceive1011[[#This Row],[2018]]-Table_RawDataIReceive1011[[#This Row],[2017]])/Table_RawDataIReceive1011[[#This Row],[2017]],"") -> 1.3288838 | N50: =IFERROR((Table_RawDataIReceive1011[[#This Row],[2019]]-Table_RawDataIReceive1011[[#This Row],[2018]])/Table_RawDataIReceive1011[[#This Row],[2018]],"") -> -0.3751580446 | O50: =IFERROR((Table_RawDataIReceive1011[[#This Row],[2020]]-Table_RawDataIReceive1011[[#This Row],[2019]])/Table_RawDataIReceive1011[[#This Row],[2019]],"") -> -0.8878299285 | P50: =IFERROR((Table_RawDataIReceive1011[[#This Row],[2021]]-Table_RawDataIReceive1011[[#This Row],[2020]])/Table_RawDataIReceive1011[[#This Row],[2020]],"") -> 0.8165595273
A51: 50 | B51: Hero | C51: Income Statement | D51: Income | E51: Losses of disposal / sale / impairment of assets | F51: -159172507 | G51: -173712269 | H51: -91164041 | I51: -47541553 | J51: -21559014 | K51: -58791781 | L51: =IFERROR((Table_RawDataIReceive1011[[#This Row],[2017]]-Table_RawDataIReceive1011[[#This Row],[2016]])/Table_RawDataIReceive1011[[#This Row],[2016]],"") -> 0.09134593828 | M51: =IFERROR((Table_RawDataIReceive1011[[#This Row],[2018]]-Table_RawDataIReceive1011[[#This Row],[2017]])/Table_RawDataIReceive1011[[#This Row],[2017]],"") -> -0.4752009082 | N51: =IFERROR((Table_RawDataIReceive1011[[#This Row],[2019]]-Table_RawDataIReceive1011[[#This Row],[2018]])/Table_RawDataIReceive1011[[#This Row],[2018]],"") -> -0.478505423 | O51: =IFERROR((Table_RawDataIReceive1011[[#This Row],[2020]]-Table_RawDataIReceive1011[[#This Row],[2019]])/Table_RawDataIReceive1011[[#This Row],[2019]],"") -> -0.546522723 | P51: =IFERROR((Table_RawDataIReceive1011[[#This Row],[2021]]-Table_RawDataIReceive1011[[#This Row],[2020]])/Table_RawDataIReceive1011[[#This Row],[2020]],"") -> 1.727016226
A52: 51 | B52: Hero | C52: Income Statement | D52: Income | E52: Fixed asset decay response | F52: 40789882 | G52: 6139834 | H52: 0 | I52: 0 | J52: 0 | K52: 0 | L52: =IFERROR((Table_RawDataIReceive1011[[#This Row],[2017]]-Table_RawDataIReceive1011[[#This Row],[2016]])/Table_RawDataIReceive1011[[#This Row],[2016]],"") -> -0.8494765442 | M52: =IFERROR((Table_RawDataIReceive1011[[#This Row],[2018]]-Table_RawDataIReceive1011[[#This Row],[2017]])/Table_RawDataIReceive1011[[#This Row],[2017]],"") -> -1 | N52: =IFERROR((Table_RawDataIReceive1011[[#This Row],[2019]]-Table_RawDataIReceive1011[[#This Row],[2018]])/Table_RawDataIReceive1011[[#This Row],[2018]],"") ->  | O52: =IFERROR((Table_RawDataIReceive1011[[#This Row],[2020]]-Table_RawDataIReceive1011[[#This Row],[2019]])/Table_RawDataIReceive1011[[#This Row],[2019]],"") ->  | P52: =IFERROR((Table_RawDataIReceive1011[[#This Row],[2021]]-Table_RawDataIReceive1011[[#This Row],[2020]])/Table_RawDataIReceive1011[[#This Row],[2020]],"") -> 
A53: 52 | B53: Hero | C53: Income Statement | D53: Income | E53: net loss / sale / return of fixed assets | F53: -118382625 | G53: -167572435 | H53: -91164041 | I53: -47541553 | J53: -21559014 | K53: -58791781 | L53: =IFERROR((Table_RawDataIReceive1011[[#This Row],[2017]]-Table_RawDataIReceive1011[[#This Row],[2016]])/Table_RawDataIReceive1011[[#This Row],[2016]],"") -> 0.4155154525 | M53: =IFERROR((Table_RawDataIReceive1011[[#This Row],[2018]]-Table_RawDataIReceive1011[[#This Row],[2017]])/Table_RawDataIReceive1011[[#This Row],[2017]],"") -> -0.4559723322 | N53: =IFERROR((Table_RawDataIReceive1011[[#This Row],[2019]]-Table_RawDataIReceive1011[[#This Row],[2018]])/Table_RawDataIReceive1011[[#This Row],[2018]],"") -> -0.478505423 | O53: =IFERROR((Table_RawDataIReceive1011[[#This Row],[2020]]-Table_RawDataIReceive1011[[#This Row],[2019]])/Table_RawDataIReceive1011[[#This Row],[2019]],"") -> -0.546522723 | P53: =IFERROR((Table_RawDataIReceive1011[[#This Row],[2021]]-Table_RawDataIReceive1011[[#This Row],[2020]])/Table_RawDataIReceive1011[[#This Row],[2020]],"") -> 1.727016226
A54: 53 | B54: Hero | C54: Income Statement | D54: Income Statement Totals | E54: Activity Profits | F54: =SUM(F42:F52) -> 1878889916 | G54: =SUM(G42:G52) -> 2334290683 | H54: =SUM(H42:H52) -> 2862490686 | I54: 2893616867 | J54: 3988930144 | K54: 5272115276 | L54: =IFERROR((Table_RawDataIReceive1011[[#This Row],[2017]]-Table_RawDataIReceive1011[[#This Row],[2016]])/Table_RawDataIReceive1011[[#This Row],[2016]],"") -> 0.2423775673 | M54: =IFERROR((Table_RawDataIReceive1011[[#This Row],[2018]]-Table_RawDataIReceive1011[[#This Row],[2017]])/Table_RawDataIReceive1011[[#This Row],[2017]],"") -> 0.2262785894 | N54: =IFERROR((Table_RawDataIReceive1011[[#This Row],[2019]]-Table_RawDataIReceive1011[[#This Row],[2018]])/Table_RawDataIReceive1011[[#This Row],[2018]],"") -> 0.0108738104 | O54: =IFERROR((Table_RawDataIReceive1011[[#This Row],[2020]]-Table_RawDataIReceive1011[[#This Row],[2019]])/Table_RawDataIReceive1011[[#This Row],[2019]],"") -> 0.3785274027 | P54: =IFERROR((Table_RawDataIReceive1011[[#This Row],[2021]]-Table_RawDataIReceive1011[[#This Row],[2020]])/Table_RawDataIReceive1011[[#This Row],[2020]],"") -> 0.3216865389
A55: 54 | B55: Hero | C55: Income Statement | D55: Income | E55: Gain (loss) on sale of fixed assets | F55: 0 | G55: 0 | H55: 0 | I55: 0 | J55: 0 | K55: 0 | L55: =IFERROR((Table_RawDataIReceive1011[[#This Row],[2017]]-Table_RawDataIReceive1011[[#This Row],[2016]])/Table_RawDataIReceive1011[[#This Row],[2016]],"") ->  | M55: =IFERROR((Table_RawDataIReceive1011[[#This Row],[2018]]-Table_RawDataIReceive1011[[#This Row],[2017]])/Table_RawDataIReceive1011[[#This Row],[2017]],"") ->  | N55: =IFERROR((Table_RawDataIReceive1011[[#This Row],[2019]]-Table_RawDataIReceive1011[[#This Row],[2018]])/Table_RawDataIReceive1011[[#This Row],[2018]],"") ->  | O55: =IFERROR((Table_RawDataIReceive1011[[#This Row],[2020]]-Table_RawDataIReceive1011[[#This Row],[2019]])/Table_RawDataIReceive1011[[#This Row],[2019]],"") ->  | P55: =IFERROR((Table_RawDataIReceive1011[[#This Row],[2021]]-Table_RawDataIReceive1011[[#This Row],[2020]])/Table_RawDataIReceive1011[[#This Row],[2020]],"") -> 
A56: 55 | B56: Hero | C56: Income Statement | D56: Income | E56: financing income | F56: 77127609 | G56: 94175889 | H56: 256194382 | I56: 81858510 | J56: 74046389 | K56: 98847147 | L56: =IFERROR((Table_RawDataIReceive1011[[#This Row],[2017]]-Table_RawDataIReceive1011[[#This Row],[2016]])/Table_RawDataIReceive1011[[#This Row],[2016]],"") -> 0.2210399132 | M56: =IFERROR((Table_RawDataIReceive1011[[#This Row],[2018]]-Table_RawDataIReceive1011[[#This Row],[2017]])/Table_RawDataIReceive1011[[#This Row],[2017]],"") -> 1.72038188 | N56: =IFERROR((Table_RawDataIReceive1011[[#This Row],[2019]]-Table_RawDataIReceive1011[[#This Row],[2018]])/Table_RawDataIReceive1011[[#This Row],[2018]],"") -> -0.6804828062 | O56: =IFERROR((Table_RawDataIReceive1011[[#This Row],[2020]]-Table_RawDataIReceive1011[[#This Row],[2019]])/Table_RawDataIReceive1011[[#This Row],[2019]],"") -> -0.09543443925 | P56: =IFERROR((Table_RawDataIReceive1011[[#This Row],[2021]]-Table_RawDataIReceive1011[[#This Row],[2020]])/Table_RawDataIReceive1011[[#This Row],[2020]],"") -> 0.3349354146
A57: 56 | B57: Hero | C57: Income Statement | D57: Income | E57: financing costs | F57: -685718087 | G57: -1278642758 | H57: -1094318864 | I57: -513342379 | J57: -357736072 | K57: -1021989065 | L57: =IFERROR((Table_RawDataIReceive1011[[#This Row],[2017]]-Table_RawDataIReceive1011[[#This Row],[2016]])/Table_RawDataIReceive1011[[#This Row],[2016]],"") -> 0.8646770185 | M57: =IFERROR((Table_RawDataIReceive1011[[#This Row],[2018]]-Table_RawDataIReceive1011[[#This Row],[2017]])/Table_RawDataIReceive1011[[#This Row],[2017]],"") -> -0.1441558972 | N57: =IFERROR((Table_RawDataIReceive1011[[#This Row],[2019]]-Table_RawDataIReceive1011[[#This Row],[2018]])/Table_RawDataIReceive1011[[#This Row],[2018]],"") -> -0.530902376 | O57: =IFERROR((Table_RawDataIReceive1011[[#This Row],[2020]]-Table_RawDataIReceive1011[[#This Row],[2019]])/Table_RawDataIReceive1011[[#This Row],[2019]],"") -> -0.303123828 | P57: =IFERROR((Table_RawDataIReceive1011[[#This Row],[2021]]-Table_RawDataIReceive1011[[#This Row],[2020]])/Table_RawDataIReceive1011[[#This Row],[2020]],"") -> 1.856824192
A58: 57 | B58: Hero | C58: Income Statement | D58: Income | E58: Losses of foreign currency valuation differences | F58: -2450775108 | G58: 209867458 | H58: -42507616 | I58: 504206862 | J58: 51411660 | K58: 10166306 | L58: =IFERROR((Table_RawDataIReceive1011[[#This Row],[2017]]-Table_RawDataIReceive1011[[#This Row],[2016]])/Table_RawDataIReceive1011[[#This Row],[2016]],"") -> -1.085633095 | M58: =IFERROR((Table_RawDataIReceive1011[[#This Row],[2018]]-Table_RawDataIReceive1011[[#This Row],[2017]])/Table_RawDataIReceive1011[[#This Row],[2017]],"") -> -1.202545056 | N58: =IFERROR((Table_RawDataIReceive1011[[#This Row],[2019]]-Table_RawDataIReceive1011[[#This Row],[2018]])/Table_RawDataIReceive1011[[#This Row],[2018]],"") -> -12.86156528 | O58: =IFERROR((Table_RawDataIReceive1011[[#This Row],[2020]]-Table_RawDataIReceive1011[[#This Row],[2019]])/Table_RawDataIReceive1011[[#This Row],[2019]],"") -> -0.8980345888 | P58: =IFERROR((Table_RawDataIReceive1011[[#This Row],[2021]]-Table_RawDataIReceive1011[[#This Row],[2020]])/Table_RawDataIReceive1011[[#This Row],[2020]],"") -> -0.8022568032
A59: 58 | B59: Hero | C59: Income Statement | D59: Income Statement Totals | E59: net profit before taxes | F59: =SUM(F54:F58) -> -1180475670 | G59: =SUM(G54:G58) -> 1359691272 | H59: 1981858588 | I59: 2966339860 | J59: 3756652121 | K59: 4359139664 | L59: =IFERROR((Table_RawDataIReceive1011[[#This Row],[2017]]-Table_RawDataIReceive1011[[#This Row],[2016]])/Table_RawDataIReceive1011[[#This Row],[2016]],"") -> -2.15181643 | M59: =IFERROR((Table_RawDataIReceive1011[[#This Row],[2018]]-Table_RawDataIReceive1011[[#This Row],[2017]])/Table_RawDataIReceive1011[[#This Row],[2017]],"") -> 0.457579841 | N59: =IFERROR((Table_RawDataIReceive1011[[#This Row],[2019]]-Table_RawDataIReceive1011[[#This Row],[2018]])/Table_RawDataIReceive1011[[#This Row],[2018]],"") -> 0.4967464773 | O59: =IFERROR((Table_RawDataIReceive1011[[#This Row],[2020]]-Table_RawDataIReceive1011[[#This Row],[2019]])/Table_RawDataIReceive1011[[#This Row],[2019]],"") -> 0.2664267408 | P59: =IFERROR((Table_RawDataIReceive1011[[#This Row],[2021]]-Table_RawDataIReceive1011[[#This Row],[2020]])/Table_RawDataIReceive1011[[#This Row],[2020]],"") -> 0.1603788489
A60: 59 | B60: Hero | C60: Income Statement | D60: Income | E60: Income Taxes | F60: 197613719 | G60: -418095793 | H60: -527258068 | I60: -741198704 | J60: -964958593 | K60: -1122839271 | L60: =IFERROR((Table_RawDataIReceive1011[[#This Row],[2017]]-Table_RawDataIReceive1011[[#This Row],[2016]])/Table_RawDataIReceive1011[[#This Row],[2016]],"") -> -3.115722507 | M60: =IFERROR((Table_RawDataIReceive1011[[#This Row],[2018]]-Table_RawDataIReceive1011[[#This Row],[2017]])/Table_RawDataIReceive1011[[#This Row],[2017]],"") -> 0.2610939331 | N60: =IFERROR((Table_RawDataIReceive1011[[#This Row],[2019]]-Table_RawDataIReceive1011[[#This Row],[2018]])/Table_RawDataIReceive1011[[#This Row],[2018]],"") -> 0.4057607631 | O60: =IFERROR((Table_RawDataIReceive1011[[#This Row],[2020]]-Table_RawDataIReceive1011[[#This Row],[2019]])/Table_RawDataIReceive1011[[#This Row],[2019]],"") -> 0.301889207 | P60: =IFERROR((Table_RawDataIReceive1011[[#This Row],[2021]]-Table_RawDataIReceive1011[[#This Row],[2020]])/Table_RawDataIReceive1011[[#This Row],[2020]],"") -> 0.1636139407
A61: 60 | B61: Hero | C61: Income Statement | D61: Income Statement Totals | E61: general net profit | F61: =SUM(F59:F60) -> -982861951 | G61: =SUM(G59:G60) -> 941595479 | H61: =SUM(H59:H60) -> 1454600520 | I61: 2225141156 | J61: 2791693528 | K61: 3236300393 | L61: =IFERROR((Table_RawDataIReceive1011[[#This Row],[2017]]-Table_RawDataIReceive1011[[#This Row],[2016]])/Table_RawDataIReceive1011[[#This Row],[2016]],"") -> -1.958013969 | M61: =IFERROR((Table_RawDataIReceive1011[[#This Row],[2018]]-Table_RawDataIReceive1011[[#This Row],[2017]])/Table_RawDataIReceive1011[[#This Row],[2017]],"") -> 0.5448253018 | N61: =IFERROR((Table_RawDataIReceive1011[[#This Row],[2019]]-Table_RawDataIReceive1011[[#This Row],[2018]])/Table_RawDataIReceive1011[[#This Row],[2018]],"") -> 0.5297266331 | O61: =IFERROR((Table_RawDataIReceive1011[[#This Row],[2020]]-Table_RawDataIReceive1011[[#This Row],[2019]])/Table_RawDataIReceive1011[[#This Row],[2019]],"") -> 0.2546141266 | P61: =IFERROR((Table_RawDataIReceive1011[[#This Row],[2021]]-Table_RawDataIReceive1011[[#This Row],[2020]])/Table_RawDataIReceive1011[[#This Row],[2020]],"") -> 0.1592606282
A62: 61 | B62: Hero | C62: Income Statement | D62: Income | E62: Basic and diluted earnings per share | F62: 0 | G62: 0 | H62: 0 | I62: 0 | J62: 12.24 | K62: 14.75 | L62: =IFERROR((Table_RawDataIReceive1011[[#This Row],[2017]]-Table_RawDataIReceive1011[[#This Row],[2016]])/Table_RawDataIReceive1011[[#This Row],[2016]],"") ->  | M62: =IFERROR((Table_RawDataIReceive1011[[#This Row],[2018]]-Table_RawDataIReceive1011[[#This Row],[2017]])/Table_RawDataIReceive1011[[#This Row],[2017]],"") ->  | N62: =IFERROR((Table_RawDataIReceive1011[[#This Row],[2019]]-Table_RawDataIReceive1011[[#This Row],[2018]])/Table_RawDataIReceive1011[[#This Row],[2018]],"") ->  | O62: =IFERROR((Table_RawDataIReceive1011[[#This Row],[2020]]-Table_RawDataIReceive1011[[#This Row],[2019]])/Table_RawDataIReceive1011[[#This Row],[2019]],"") ->  | P62: =IFERROR((Table_RawDataIReceive1011[[#This Row],[2021]]-Table_RawDataIReceive1011[[#This Row],[2020]])/Table_RawDataIReceive1011[[#This Row],[2020]],"") -> 0.2050653595

Sheet 4.3rdAnalysis-Ratio(Amount)
A1: No. | B1: Company | C1: Financial Statement/ Ratio | D1: Main item in Financial Statement/ Ratio | E1: Detailed item in Financial Statement/ Ratio | F1: 2016 | G1: 2017 | H1: 2018 | I1: 2019 | J1: 2020 | K1: 2021 | L1: 2016 Ratio(Amount) | M1: 2017 Ratio(Amount) | N1: 2018 Ratio(Amount) | O1: 2019 Ratio(Amount) | P1: 2020 Ratio(Amount) | Q1: 2021 Ratio(Amount)
A2: 1 | B2: Hero | C2: Balance Sheet | D2: Non Current Asset | E2: Fixed Assets | F2: 227339503 | G2: 455075469 | H2: 737983522 | I2: 158516489 | J2: 949673811 | K2: 122355205
A3: 2 | B3: Hero | C3: Balance Sheet | D3: Non Current Asset | E3: Investments | F3: 4646071302 | G3: 5948368946 | H3: 3443879482 | I3: 5432143898 | J3: 5522205033 | K3: 3109044508
A4: 3 | B4: Hero | C4: Balance Sheet | D4: Non Current Asset | E4: Property, plant, and equipment | F4: 746852209 | G4: 649847449 | H4: 785944929 | I4: 574688129 | J4: 272007072 | K4: 234186671
A5: 4 | B5: Hero | C5: Balance Sheet | D5: Non Current Asset | E5: Intangible assets | F5: 828390929 | G5: 643895802 | H5: 282559286 | I5: 150923767 | J5: 280775748 | K5: 990658996
A6: 5 | B6: Hero | C6: Balance Sheet | D6: Non Current Asset | E6: Other assets | F6: 334111497 | G6: 285715422 | H6: 985436651 | I6: 660299816 | J6: 817987615 | K6: 847334691
A7: 6 | B7: Hero | C7: Balance Sheet | D7: Balance Sheet Totals | E7: Total Non current asset | F7: =SUM(F2:F6) -> 6782765440 | G7: =SUM(G2:G6) -> 7982903088 | H7: 6235803870 | I7: 6976572099 | J7: 7842649279 | K7: 5303580071
A8: 7 | B8: Hero | C8: Balance Sheet | D8: Current Assets | E8: Inventory | F8: 62120567 | G8: 614738586 | H8: 945192391 | I8: 508173456 | J8: 600298289 | K8: 13659048
A9: 8 | B9: Hero | C9: Balance Sheet | D9: Current Assets | E9: Clients | F9: 193186705 | G9: 929932027 | H9: 82975532 | I9: 379236925 | J9: 941063873 | K9: 358344789
A10: 9 | B10: Hero | C10: Balance Sheet | D10: Current Assets | E10: Short term derivatives | F10: 841606422 | G10: 133855977 | H10: 555904841 | I10: 493374828 | J10: 120153333 | K10: 399195881
A11: 10 | B11: Hero | C11: Balance Sheet | D11: Current Assets | E11: Accounts receivables | F11: 227758168 | G11: 949945896 | H11: 445161328 | I11: 572082814 | J11: 874781478 | K11: 90087448
A12: 11 | B12: Hero | C12: Balance Sheet | D12: Current Assets | E12: Cash | F12: 220888884 | G12: 13946342 | H12: 101678631 | I12: 870691375 | J12: 39099833 | K12: 537196821
A13: 12 | B13: Hero | C13: Balance Sheet | D13: Current Assets | E13: Bank Deposits | F13: 541493663 | G13: 774698823 | H13: 505566091 | I13: 774321336 | J13: 54347354 | K13: 653669028
A14: 13 | B14: Hero | C14: Balance Sheet | D14: Balance Sheet Totals | E14: Total Current Assets | F14: =SUM(F8:F13) -> 2087054409 | G14: =SUM(G8:G13) -> 3417117651 | H14: 2636478814 | I14: 3597880734 | J14: 2629744160 | K14: 2052153015
A15: 14 | B15: Hero | C15: Balance Sheet | D15: Balance Sheet Totals | E15: Total Assets | F15: =SUM(F14,F7) -> 8869819849 | G15: =SUM(G14,G7) -> 11400020739 | H15: 8872282684 | I15: 10574452833 | J15: 10472393439 | K15: 7355733086
A16: 15 | B16: Hero | C16: Balance Sheet | D16: Current Liabilities | E16: Accounts payable | F16: 357759805 | G16: 493407935 | H16: 344776389 | I16: 923347988 | J16: 871555042 | K16: 966975322
A17: 16 | B17: Hero | C17: Balance Sheet | D17: Current Liabilities | E17: Short-term debt | F17: 150370338 | G17: 615334819 | H17: 638431384 | I17: 956351084 | J17: 463385129 | K17: 123111329
A18: 17 | B18: Hero | C18: Balance Sheet | D18: Current Liabilities | E18: Dividends payable | F18: 334942436 | G18: 593990745 | H18: 64976326 | I18: 653795991 | J18: 39021794 | K18: 731454224
A19: 18 | B19: Hero | C19: Balance Sheet | D19: Current Liabilities | E19: Notes payable | F19: 999301227 | G19: 642551804 | H19: 390362981 | I19: 880965837 | J19: 645192107 | K19: 647266714
A20: 19 | B20: Hero | C20: Balance Sheet | D20: Current Liabilities | E20: The current portion of deferred revenue | F20: 233081611 | G20: 916398213 | H20: 487845343 | I20: 244880889 | J20: 380590035 | K20: 133894516
A21: 20 | B21: Hero | C21: Balance Sheet | D21: Current Liabilities | E21: Current maturities of long-term debt | F21: 872753992 | G21: 983620671 | H21: 25983278 | I21: 877290617 | J21: 932426949 | K21: 247967907
A22: 21 | B22: Hero | C22: Balance Sheet | D22: Current Liabilities | E22: Interest payable on outstanding debts | F22: 257784384 | G22: 95396253 | H22: 619534515 | I22: 715685671 | J22: 233621024 | K22: 680936048
A23: 22 | B23: Hero | C23: Balance Sheet | D23: Current Liabilities | E23: Income taxes owed within the next year | F23: 377787846 | G23: 995692434 | H23: 477722183 | I23: 24995021 | J23: 76944473 | K23: 108647941
A24: 23 | B24: Hero | C24: Balance Sheet | D24: Balance Sheet Totals | E24: Total Current Liabilities | F24: =SUM(F16:F23) -> 3583781639 | G24: =SUM(G16:G23) -> 5336392874 | H24: 3049632399 | I24: 5277313098 | J24: 3642736553 | K24: 3640254001
A25: 24 | B25: Hero | C25: Balance Sheet | D25: Non Current Liabilities | E25: Debentures | F25: 813127084 | G25: 605968357 | H25: 89386021 | I25: 942051957 | J25: 634150419 | K25: 464274689
A26: 25 | B26: Hero | C26: Balance Sheet | D26: Non Current Liabilities | E26: Bonds payable | F26: 214327045 | G26: 526075613 | H26: 277484005 | I26: 363903955 | J26: 735256919 | K26: 41740022
A27: 26 | B27: Hero | C27: Balance Sheet | D27: Non Current Liabilities | E27: Long-term loans | F27: 289975883 | G27: 554978808 | H27: 128651546 | I27: 364666007 | J27: 209645345 | K27: 846019529
A28: 27 | B28: Hero | C28: Balance Sheet | D28: Non Current Liabilities | E28: Deferred tax liabilities | F28: 182203687 | G28: 760697495 | H28: 727179591 | I28: 953902248 | J28: 991456615 | K28: 566692023
A29: 28 | B29: Hero | C29: Balance Sheet | D29: Non Current Liabilities | E29: Long-term lease | F29: 974498778 | G29: 889257259 | H29: 126133075 | I29: 601893222 | J29: 796901469 | K29: 209876456
A30: 29 | B30: Hero | C30: Balance Sheet | D30: Non Current Liabilities | E30: Pension benefit obligations | F30: 832575942 | G30: 641360556 | H30: 528051958 | I30: 227853677 | J30: 536834492 | K30: 4530586
A31: 30 | B31: Hero | C31: Balance Sheet | D31: Non Current Liabilities | E31: Differed Revenue | F31: 711951037 | G31: 562764498 | H31: 703019658 | I31: 70639543 | J31: 507990745 | K31: 587718804
A32: 31 | B32: Hero | C32: Balance Sheet | D32: Balance Sheet Totals | E32: Total Non Current Liabilities | F32: =SUM(F25:F31) -> 4018659456 | G32: =SUM(G25:G31) -> 4541102586 | H32: 2579905854 | I32: 3524910609 | J32: 4412236004 | K32: 2720852109
A33: 32 | B33: Hero | C33: Balance Sheet | D33: Balance Sheet Totals | E33: Total Liabilities | F33: =SUM(F32,F24) -> 7602441095 | G33: =SUM(G32,G24) -> 9877495460 | H33: 5629538253 | I33: 8802223707 | J33: 8054972557 | K33: 6361106110
A34: 33 | B34: Hero | C34: Balance Sheet | D34: Owners Equity | E34: Retained earnings | F34: 733777818 | G34: 258066039 | H34: 928511189 | I34: 151752686 | J34: 488920934 | K34: 449605915
A35: 34 | B35: Hero | C35: Balance Sheet | D35: Owners Equity | E35: Outstanding shares | F35: 7966065 | G35: 227416809 | H35: 852521978 | I35: 315788677 | J35: 526676875 | K35: 170605845
A36: 35 | B36: Hero | C36: Balance Sheet | D36: Owners Equity | E36: Treasury stock | F36: 90193663 | G36: 118066838 | H36: 763466101 | I36: 959972014 | J36: 834966868 | K36: 214381235
A37: 36 | B37: Hero | C37: Balance Sheet | D37: Owners Equity | E37: Additional paid-in capital | F37: 435441208 | G37: 918975593 | H37: 698245163 | I37: 344715749 | J37: 566856205 | K37: 160033981
A38: 37 | B38: Hero | C38: Balance Sheet | D38: Balance Sheet Totals | E38: Total Owners Equity | F38: =SUM(F34:F37) -> 1267378754 | G38: =SUM(G34:G37) -> 1522525279 | H38: 3242744431 | I38: 1772229126 | J38: 2417420882 | K38: 994626976
A39: 38 | B39: Hero | C39: Balance Sheet | D39: Balance Sheet Totals | E39: Total Liabilities & Owners Equity | F39: =SUM(F38,F33) -> 8869819849 | G39: =SUM(G38,G33) -> 11400020739 | H39: 8872282684 | I39: 10574452833 | J39: 10472393439 | K39: 7355733086
A40: 39 | B40: Hero | C40: Income Statement | D40: Income | E40: operating income | F40: 10195553186 | G40: 11877329244 | H40: 13342929078 | I40: 15340510909 | J40: 17547391128 | K40: 20992787274
A41: 40 | B41: Hero | C41: Income Statement | D41: Income | E41: Other income | F41: 25042524 | G41: 49098174 | H41: 70362581 | I41: 139908779 | J41: 160691571 | K41: 189967562
A42: 41 | B42: Hero | C42: Income Statement | D42: Income Statement Totals | E42: Total revenue | F42: =SUM(F40:F41) -> 10220595710 | G42: =SUM(G40:G41) -> 11926427418 | H42: =SUM(H40:H41) -> 13413291659 | I42: 15480419688 | J42: 17708082699 | K42: 21182754836
A43: 42 | B43: Hero | C43: Income Statement | D43: Income | E43: activity expenses | F43: -3840463547 | G43: -4877526063 | H43: -6022404941 | I43: -7284007661 | J43: -7618358388 | K43: -9259931780
A44: 43 | B44: Hero | C44: Income Statement | D44: Income | E44: change in stock | F44: -431999761 | G44: -560479596 | H44: -329165574 | I44: -404230813 | J44: -409292466 | K44: -498877943
A45: 44 | B45: Hero | C45: Income Statement | D45: Income | E45: Salaries, wages and other benefits | F45: -750419677 | G45: -892642621 | H45: -879109943 | I45: -935612907 | J45: -1053701205 | K45: -1198891415
A46: 45 | B46: Hero | C46: Income Statement | D46: Income | E46: Depreciation and amortization | F46: -1901596942 | G46: -2158735307 | H46: -2674743878 | I46: -2853492329 | J46: -3077866825 | K46: -3785497514
A47: 46 | B47: Hero | C47: Income Statement | D47: Income | E47: advertising expenses | F47: -285579483 | G47: -274481700 | H47: -412438319 | I47: -428057267 | J47: -353825863 | K47: -554883285
A48: 47 | B48: Hero | C48: Income Statement | D48: Income | E48: Operating rentals | F48: -464821104 | G48: -535247697 | H48: -594665144 | I48: -706692047 | J48: -777829289 | K48: -106721467
A49: 48 | B49: Hero | C49: Income Statement | D49: Income | E49: allotments | F49: -704202705 | G49: -475977097 | H49: -363442946 | I49: -437247860 | J49: -463935172 | K49: -550980040
A50: 49 | B50: Hero | C50: Income Statement | D50: Income | E50: Allowances that are not intended | F50: 155760050 | G50: 350525781 | H50: 816333813 | I50: 510079616 | J50: 57215667 | K50: 103935665
A51: 50 | B51: Hero | C51: Income Statement | D51: Income | E51: Losses of disposal / sale / impairment of assets | F51: -159172507 | G51: -173712269 | H51: -91164041 | I51: -47541553 | J51: -21559014 | K51: -58791781
A52: 51 | B52: Hero | C52: Income Statement | D52: Income | E52: Fixed asset decay response | F52: 40789882 | G52: 6139834 | H52: 0 | I52: 0 | J52: 0 | K52: 0
A53: 52 | B53: Hero | C53: Income Statement | D53: Income | E53: net loss / sale / return of fixed assets | F53: -118382625 | G53: -167572435 | H53: -91164041 | I53: -47541553 | J53: -21559014 | K53: -58791781
A54: 53 | B54: Hero | C54: Income Statement | D54: Income Statement Totals | E54: Activity Profits | F54: =SUM(F42:F52) -> 1878889916 | G54: =SUM(G42:G52) -> 2334290683 | H54: =SUM(H42:H52) -> 2862490686 | I54: 2893616867 | J54: 3988930144 | K54: 5272115276
A55: 54 | B55: Hero | C55: Income Statement | D55: Income | E55: Gain (loss) on sale of fixed assets | F55: 0 | G55: 0 | H55: 0 | I55: 0 | J55: 0 | K55: 0
A56: 55 | B56: Hero | C56: Income Statement | D56: Income | E56: financing income | F56: 77127609 | G56: 94175889 | H56: 256194382 | I56: 81858510 | J56: 74046389 | K56: 98847147
A57: 56 | B57: Hero | C57: Income Statement | D57: Income | E57: financing costs | F57: -685718087 | G57: -1278642758 | H57: -1094318864 | I57: -513342379 | J57: -357736072 | K57: -1021989065
A58: 57 | B58: Hero | C58: Income Statement | D58: Income | E58: Losses of foreign currency valuation differences | F58: -2450775108 | G58: 209867458 | H58: -42507616 | I58: 504206862 | J58: 51411660 | K58: 10166306
A59: 58 | B59: Hero | C59: Income Statement | D59: Income Statement Totals | E59: net profit before taxes | F59: =SUM(F54:F58) -> -1180475670 | G59: =SUM(G54:G58) -> 1359691272 | H59: 1981858588 | I59: 2966339860 | J59: 3756652121 | K59: 4359139664
A60: 59 | B60: Hero | C60: Income Statement | D60: Income | E60: Income Taxes | F60: 197613719 | G60: -418095793 | H60: -527258068 | I60: -741198704 | J60: -964958593 | K60: -1122839271
A61: 60 | B61: Hero | C61: Income Statement | D61: Income Statement Totals | E61: general net profit | F61: =SUM(F59:F60) -> -982861951 | G61: =SUM(G59:G60) -> 941595479 | H61: =SUM(H59:H60) -> 1454600520 | I61: 2225141156 | J61: 2791693528 | K61: 3236300393
A62: 61 | B62: Hero | C62: Income Statement | D62: Income | E62: Basic and diluted earnings per share | F62: 0 | G62: 0 | H62: 0 | I62: 0 | J62: 12.24 | K62: 14.75
A63: 62 | B63: Hero | C63: Ratios | D63: Ratios (Amount) | E63: Total Investment | L63: =F15-F24 -> 5286038210 | M63: =G15-G24 -> 6063627865 | N63: 5822650285 | O63: 5297139735 | P63: 6829656886 | Q63: 3715479085
A64: 63 | B64: Hero | C64: Ratios | D64: Ratios (Amount) | E64: Working Capital | L64: =F14-F24 -> -1496727230 | M64: =G14-G24 -> -1919275223 | N64: -413153585 | O64: -1679432364 | P64: -1012992393 | Q64: -1588100986

Sheet 5.4thAnalysis-Ratio(Times)
A1: No. | B1: Company | C1: Financial Statement/ Ratio | D1: Main item in Financial Statement/ Ratio | E1: Detailed item in Financial Statement/ Ratio | F1: 2016 | G1: 2017 | H1: 2018 | I1: 2019 | J1: 2020 | K1: 2021 | L1: 2016 Ratio(Times) | M1: 2017 Ratio(Times) | N1: 2018 Ratio(Times) | O1: 2019 Ratio(Times) | P1: 2020 Ratio(Times) | Q1: 2021 Ratio(Times)
A2: 1 | B2: Hero | C2: Balance Sheet | D2: Non Current Asset | E2: Fixed Assets | F2: 227339503 | G2: 455075469 | H2: 737983522 | I2: 158516489 | J2: 949673811 | K2: 122355205
A3: 2 | B3: Hero | C3: Balance Sheet | D3: Non Current Asset | E3: Investments | F3: 4646071302 | G3: 5948368946 | H3: 3443879482 | I3: 5432143898 | J3: 5522205033 | K3: 3109044508
A4: 3 | B4: Hero | C4: Balance Sheet | D4: Non Current Asset | E4: Property, plant, and equipment | F4: 746852209 | G4: 649847449 | H4: 785944929 | I4: 574688129 | J4: 272007072 | K4: 234186671
A5: 4 | B5: Hero | C5: Balance Sheet | D5: Non Current Asset | E5: Intangible assets | F5: 828390929 | G5: 643895802 | H5: 282559286 | I5: 150923767 | J5: 280775748 | K5: 990658996
A6: 5 | B6: Hero | C6: Balance Sheet | D6: Non Current Asset | E6: Other assets | F6: 334111497 | G6: 285715422 | H6: 985436651 | I6: 660299816 | J6: 817987615 | K6: 847334691
A7: 6 | B7: Hero | C7: Balance Sheet | D7: Balance Sheet Totals | E7: Total Non current asset | F7: =SUM(F2:F6) -> 6782765440 | G7: =SUM(G2:G6) -> 7982903088 | H7: 6235803870 | I7: 6976572099 | J7: 7842649279 | K7: 5303580071
A8: 7 | B8: Hero | C8: Balance Sheet | D8: Current Assets | E8: Inventory | F8: 62120567 | G8: 614738586 | H8: 945192391 | I8: 508173456 | J8: 600298289 | K8: 13659048
A9: 8 | B9: Hero | C9: Balance Sheet | D9: Current Assets | E9: Clients | F9: 193186705 | G9: 929932027 | H9: 82975532 | I9: 379236925 | J9: 941063873 | K9: 358344789
A10: 9 | B10: Hero | C10: Balance Sheet | D10: Current Assets | E10: Short term derivatives | F10: 841606422 | G10: 133855977 | H10: 555904841 | I10: 493374828 | J10: 120153333 | K10: 399195881
A11: 10 | B11: Hero | C11: Balance Sheet | D11: Current Assets | E11: Accounts receivables | F11: 227758168 | G11: 949945896 | H11: 445161328 | I11: 572082814 | J11: 874781478 | K11: 90087448
A12: 11 | B12: Hero | C12: Balance Sheet | D12: Current Assets | E12: Cash | F12: 220888884 | G12: 13946342 | H12: 101678631 | I12: 870691375 | J12: 39099833 | K12: 537196821
A13: 12 | B13: Hero | C13: Balance Sheet | D13: Current Assets | E13: Bank Deposits | F13: 541493663 | G13: 774698823 | H13: 505566091 | I13: 774321336 | J13: 54347354 | K13: 653669028
A14: 13 | B14: Hero | C14: Balance Sheet | D14: Balance Sheet Totals | E14: Total Current Assets | F14: =SUM(F8:F13) -> 2087054409 | G14: =SUM(G8:G13) -> 3417117651 | H14: 2636478814 | I14: 3597880734 | J14: 2629744160 | K14: 2052153015
A15: 14 | B15: Hero | C15: Balance Sheet | D15: Balance Sheet Totals | E15: Total Assets | F15: =SUM(F14,F7) -> 8869819849 | G15: =SUM(G14,G7) -> 11400020739 | H15: 8872282684 | I15: 10574452833 | J15: 10472393439 | K15: 7355733086
A16: 15 | B16: Hero | C16: Balance Sheet | D16: Current Liabilities | E16: Accounts payable | F16: 357759805 | G16: 493407935 | H16: 344776389 | I16: 923347988 | J16: 871555042 | K16: 966975322
A17: 16 | B17: Hero | C17: Balance Sheet | D17: Current Liabilities | E17: Short-term debt | F17: 150370338 | G17: 615334819 | H17: 638431384 | I17: 956351084 | J17: 463385129 | K17: 123111329
A18: 17 | B18: Hero | C18: Balance Sheet | D18: Current Liabilities | E18: Dividends payable | F18: 334942436 | G18: 593990745 | H18: 64976326 | I18: 653795991 | J18: 39021794 | K18: 731454224
A19: 18 | B19: Hero | C19: Balance Sheet | D19: Current Liabilities | E19: Notes payable | F19: 999301227 | G19: 642551804 | H19: 390362981 | I19: 880965837 | J19: 645192107 | K19: 647266714
A20: 19 | B20: Hero | C20: Balance Sheet | D20: Current Liabilities | E20: The current portion of deferred revenue | F20: 233081611 | G20: 916398213 | H20: 487845343 | I20: 244880889 | J20: 380590035 | K20: 133894516
A21: 20 | B21: Hero | C21: Balance Sheet | D21: Current Liabilities | E21: Current maturities of long-term debt | F21: 872753992 | G21: 983620671 | H21: 25983278 | I21: 877290617 | J21: 932426949 | K21: 247967907
A22: 21 | B22: Hero | C22: Balance Sheet | D22: Current Liabilities | E22: Interest payable on outstanding debts | F22: 257784384 | G22: 95396253 | H22: 619534515 | I22: 715685671 | J22: 233621024 | K22: 680936048
A23: 22 | B23: Hero | C23: Balance Sheet | D23: Current Liabilities | E23: Income taxes owed within the next year | F23: 377787846 | G23: 995692434 | H23: 477722183 | I23: 24995021 | J23: 76944473 | K23: 108647941
A24: 23 | B24: Hero | C24: Balance Sheet | D24: Balance Sheet Totals | E24: Total Current Liabilities | F24: =SUM(F16:F23) -> 3583781639 | G24: =SUM(G16:G23) -> 5336392874 | H24: 3049632399 | I24: 5277313098 | J24: 3642736553 | K24: 3640254001
A25: 24 | B25: Hero | C25: Balance Sheet | D25: Non Current Liabilities | E25: Debentures | F25: 813127084 | G25: 605968357 | H25: 89386021 | I25: 942051957 | J25: 634150419 | K25: 464274689
A26: 25 | B26: Hero | C26: Balance Sheet | D26: Non Current Liabilities | E26: Bonds payable | F26: 214327045 | G26: 526075613 | H26: 277484005 | I26: 363903955 | J26: 735256919 | K26: 41740022
A27: 26 | B27: Hero | C27: Balance Sheet | D27: Non Current Liabilities | E27: Long-term loans | F27: 289975883 | G27: 554978808 | H27: 128651546 | I27: 364666007 | J27: 209645345 | K27: 846019529
A28: 27 | B28: Hero | C28: Balance Sheet | D28: Non Current Liabilities | E28: Deferred tax liabilities | F28: 182203687 | G28: 760697495 | H28: 727179591 | I28: 953902248 | J28: 991456615 | K28: 566692023
A29: 28 | B29: Hero | C29: Balance Sheet | D29: Non Current Liabilities | E29: Long-term lease | F29: 974498778 | G29: 889257259 | H29: 126133075 | I29: 601893222 | J29: 796901469 | K29: 209876456
A30: 29 | B30: Hero | C30: Balance Sheet | D30: Non Current Liabilities | E30: Pension benefit obligations | F30: 832575942 | G30: 641360556 | H30: 528051958 | I30: 227853677 | J30: 536834492 | K30: 4530586
A31: 30 | B31: Hero | C31: Balance Sheet | D31: Non Current Liabilities | E31: Differed Revenue | F31: 711951037 | G31: 562764498 | H31: 703019658 | I31: 70639543 | J31: 507990745 | K31: 587718804
A32: 31 | B32: Hero | C32: Balance Sheet | D32: Balance Sheet Totals | E32: Total Non Current Liabilities | F32: =SUM(F25:F31) -> 4018659456 | G32: =SUM(G25:G31) -> 4541102586 | H32: 2579905854 | I32: 3524910609 | J32: 4412236004 | K32: 2720852109
A33: 32 | B33: Hero | C33: Balance Sheet | D33: Balance Sheet Totals | E33: Total Liabilities | F33: =SUM(F32,F24) -> 7602441095 | G33: =SUM(G32,G24) -> 9877495460 | H33: 5629538253 | I33: 8802223707 | J33: 8054972557 | K33: 6361106110
A34: 33 | B34: Hero | C34: Balance Sheet | D34: Owners Equity | E34: Retained earnings | F34: 733777818 | G34: 258066039 | H34: 928511189 | I34: 151752686 | J34: 488920934 | K34: 449605915
A35: 34 | B35: Hero | C35: Balance Sheet | D35: Owners Equity | E35: Outstanding shares | F35: 7966065 | G35: 227416809 | H35: 852521978 | I35: 315788677 | J35: 526676875 | K35: 170605845
A36: 35 | B36: Hero | C36: Balance Sheet | D36: Owners Equity | E36: Treasury stock | F36: 90193663 | G36: 118066838 | H36: 763466101 | I36: 959972014 | J36: 834966868 | K36: 214381235
A37: 36 | B37: Hero | C37: Balance Sheet | D37: Owners Equity | E37: Additional paid-in capital | F37: 435441208 | G37: 918975593 | H37: 698245163 | I37: 344715749 | J37: 566856205 | K37: 160033981
A38: 37 | B38: Hero | C38: Balance Sheet | D38: Balance Sheet Totals | E38: Total Owners Equity | F38: =SUM(F34:F37) -> 1267378754 | G38: =SUM(G34:G37) -> 1522525279 | H38: 3242744431 | I38: 1772229126 | J38: 2417420882 | K38: 994626976
A39: 38 | B39: Hero | C39: Balance Sheet | D39: Balance Sheet Totals | E39: Total Liabilities & Owners Equity | F39: =SUM(F38,F33) -> 8869819849 | G39: =SUM(G38,G33) -> 11400020739 | H39: 8872282684 | I39: 10574452833 | J39: 10472393439 | K39: 7355733086
A40: 39 | B40: Hero | C40: Income Statement | D40: Income | E40: operating income | F40: 10195553186 | G40: 11877329244 | H40: 13342929078 | I40: 15340510909 | J40: 17547391128 | K40: 20992787274
A41: 40 | B41: Hero | C41: Income Statement | D41: Income | E41: Other income | F41: 25042524 | G41: 49098174 | H41: 70362581 | I41: 139908779 | J41: 160691571 | K41: 189967562
A42: 41 | B42: Hero | C42: Income Statement | D42: Income Statement Totals | E42: Total revenue | F42: =SUM(F40:F41) -> 10220595710 | G42: =SUM(G40:G41) -> 11926427418 | H42: =SUM(H40:H41) -> 13413291659 | I42: 15480419688 | J42: 17708082699 | K42: 21182754836
A43: 42 | B43: Hero | C43: Income Statement | D43: Income | E43: activity expenses | F43: -3840463547 | G43: -4877526063 | H43: -6022404941 | I43: -7284007661 | J43: -7618358388 | K43: -9259931780
A44: 43 | B44: Hero | C44: Income Statement | D44: Income | E44: change in stock | F44: -431999761 | G44: -560479596 | H44: -329165574 | I44: -404230813 | J44: -409292466 | K44: -498877943
A45: 44 | B45: Hero | C45: Income Statement | D45: Income | E45: Salaries, wages and other benefits | F45: -750419677 | G45: -892642621 | H45: -879109943 | I45: -935612907 | J45: -1053701205 | K45: -1198891415
A46: 45 | B46: Hero | C46: Income Statement | D46: Income | E46: Depreciation and amortization | F46: -1901596942 | G46: -2158735307 | H46: -2674743878 | I46: -2853492329 | J46: -3077866825 | K46: -3785497514
A47: 46 | B47: Hero | C47: Income Statement | D47: Income | E47: advertising expenses | F47: -285579483 | G47: -274481700 | H47: -412438319 | I47: -428057267 | J47: -353825863 | K47: -554883285
A48: 47 | B48: Hero | C48: Income Statement | D48: Income | E48: Operating rentals | F48: -464821104 | G48: -535247697 | H48: -594665144 | I48: -706692047 | J48: -777829289 | K48: -106721467
A49: 48 | B49: Hero | C49: Income Statement | D49: Income | E49: allotments | F49: -704202705 | G49: -475977097 | H49: -363442946 | I49: -437247860 | J49: -463935172 | K49: -550980040
A50: 49 | B50: Hero | C50: Income Statement | D50: Income | E50: Allowances that are not intended | F50: 155760050 | G50: 350525781 | H50: 816333813 | I50: 510079616 | J50: 57215667 | K50: 103935665
A51: 50 | B51: Hero | C51: Income Statement | D51: Income | E51: Losses of disposal / sale / impairment of assets | F51: -159172507 | G51: -173712269 | H51: -91164041 | I51: -47541553 | J51: -21559014 | K51: -58791781
A52: 51 | B52: Hero | C52: Income Statement | D52: Income | E52: Fixed asset decay response | F52: 40789882 | G52: 6139834 | H52: 0 | I52: 0 | J52: 0 | K52: 0
A53: 52 | B53: Hero | C53: Income Statement | D53: Income | E53: net loss / sale / return of fixed assets | F53: -118382625 | G53: -167572435 | H53: -91164041 | I53: -47541553 | J53: -21559014 | K53: -58791781
A54: 53 | B54: Hero | C54: Income Statement | D54: Income Statement Totals | E54: Activity Profits | F54: =SUM(F42:F52) -> 1878889916 | G54: =SUM(G42:G52) -> 2334290683 | H54: =SUM(H42:H52) -> 2862490686 | I54: 2893616867 | J54: 3988930144 | K54: 5272115276
A55: 54 | B55: Hero | C55: Income Statement | D55: Income | E55: Gain (loss) on sale of fixed assets | F55: 0 | G55: 0 | H55: 0 | I55: 0 | J55: 0 | K55: 0
A56: 55 | B56: Hero | C56: Income Statement | D56: Income | E56: financing income | F56: 77127609 | G56: 94175889 | H56: 256194382 | I56: 81858510 | J56: 74046389 | K56: 98847147
A57: 56 | B57: Hero | C57: Income Statement | D57: Income | E57: financing costs | F57: -685718087 | G57: -1278642758 | H57: -1094318864 | I57: -513342379 | J57: -357736072 | K57: -1021989065
A58: 57 | B58: Hero | C58: Income Statement | D58: Income | E58: Losses of foreign currency valuation differences | F58: -2450775108 | G58: 209867458 | H58: -42507616 | I58: 504206862 | J58: 51411660 | K58: 10166306
A59: 58 | B59: Hero | C59: Income Statement | D59: Income Statement Totals | E59: net profit before taxes | F59: =SUM(F54:F58) -> -1180475670 | G59: =SUM(G54:G58) -> 1359691272 | H59: 1981858588 | I59: 2966339860 | J59: 3756652121 | K59: 4359139664
A60: 59 | B60: Hero | C60: Income Statement | D60: Income | E60: Income Taxes | F60: 197613719 | G60: -418095793 | H60: -527258068 | I60: -741198704 | J60: -964958593 | K60: -1122839271
A61: 60 | B61: Hero | C61: Income Statement | D61: Income Statement Totals | E61: general net profit | F61: =SUM(F59:F60) -> -982861951 | G61: =SUM(G59:G60) -> 941595479 | H61: =SUM(H59:H60) -> 1454600520 | I61: 2225141156 | J61: 2791693528 | K61: 3236300393
A62: 61 | B62: Hero | C62: Income Statement | D62: Income | E62: Basic and diluted earnings per share | F62: 0 | G62: 0 | H62: 0 | I62: 0 | J62: 12.24 | K62: 14.75
A63: 62 | B63: Hero | C63: Ratios | D63: Ratios (Times) | E63: Total Assets TurnOver | L63: =F42/F15 -> 1.152288985 | M63: =G42/G15 -> 1.04617594 | N63: 1.51181969 | O63: 1.463945221 | P63: 1.690929853 | Q63: 2.879761213
A64: 63 | B64: Hero | C64: Ratios | D64: Ratios (Times) | E64: Fixed Assets TurnOver | L64: =F42/F2 -> 44.95741204 | M64: =G42/G2 -> 26.20758145 | N64: 18.17559777 | O64: 97.65810349 | P64: 18.64648945 | Q64: 173.1250815

Sheet 6.5thAnalysis-Ratio(%)
A1: No. | B1: Company | C1: Financial Statement/ Ratio | D1: Main item in Financial Statement/ Ratio | E1: Detailed item in Financial Statement/ Ratio | F1: 2016 | G1: 2017 | H1: 2018 | I1: 2019 | J1: 2020 | K1: 2021 | L1: 2016 Ratio(%) | M1: 2017 Ratio(%) | N1: 2018 Ratio(%) | O1: 2019 Ratio(%) | P1: 2020 Ratio(%) | Q1: 2021 Ratio(%)
A2: 1 | B2: Hero | C2: Balance Sheet | D2: Non Current Asset | E2: Fixed Assets | F2: 227339503 | G2: 455075469 | H2: 737983522 | I2: 158516489 | J2: 949673811 | K2: 122355205
A3: 2 | B3: Hero | C3: Balance Sheet | D3: Non Current Asset | E3: Investments | F3: 4646071302 | G3: 5948368946 | H3: 3443879482 | I3: 5432143898 | J3: 5522205033 | K3: 3109044508
A4: 3 | B4: Hero | C4: Balance Sheet | D4: Non Current Asset | E4: Property, plant, and equipment | F4: 746852209 | G4: 649847449 | H4: 785944929 | I4: 574688129 | J4: 272007072 | K4: 234186671
A5: 4 | B5: Hero | C5: Balance Sheet | D5: Non Current Asset | E5: Intangible assets | F5: 828390929 | G5: 643895802 | H5: 282559286 | I5: 150923767 | J5: 280775748 | K5: 990658996
A6: 5 | B6: Hero | C6: Balance Sheet | D6: Non Current Asset | E6: Other assets | F6: 334111497 | G6: 285715422 | H6: 985436651 | I6: 660299816 | J6: 817987615 | K6: 847334691
A7: 6 | B7: Hero | C7: Balance Sheet | D7: Balance Sheet Totals | E7: Total Non current asset | F7: =SUM(F2:F6) -> 6782765440 | G7: =SUM(G2:G6) -> 7982903088 | H7: 6235803870 | I7: 6976572099 | J7: 7842649279 | K7: 5303580071
A8: 7 | B8: Hero | C8: Balance Sheet | D8: Current Assets | E8: Inventory | F8: 62120567 | G8: 614738586 | H8: 945192391 | I8: 508173456 | J8: 600298289 | K8: 13659048
A9: 8 | B9: Hero | C9: Balance Sheet | D9: Current Assets | E9: Clients | F9: 193186705 | G9: 929932027 | H9: 82975532 | I9: 379236925 | J9: 941063873 | K9: 358344789
A10: 9 | B10: Hero | C10: Balance Sheet | D10: Current Assets | E10: Short term derivatives | F10: 841606422 | G10: 133855977 | H10: 555904841 | I10: 493374828 | J10: 120153333 | K10: 399195881
A11: 10 | B11: Hero | C11: Balance Sheet | D11: Current Assets | E11: Accounts receivables | F11: 227758168 | G11: 949945896 | H11: 445161328 | I11: 572082814 | J11: 874781478 | K11: 90087448
A12: 11 | B12: Hero | C12: Balance Sheet | D12: Current Assets | E12: Cash | F12: 220888884 | G12: 13946342 | H12: 101678631 | I12: 870691375 | J12: 39099833 | K12: 537196821
A13: 12 | B13: Hero | C13: Balance Sheet | D13: Current Assets | E13: Bank Deposits | F13: 541493663 | G13: 774698823 | H13: 505566091 | I13: 774321336 | J13: 54347354 | K13: 653669028
A14: 13 | B14: Hero | C14: Balance Sheet | D14: Balance Sheet Totals | E14: Total Current Assets | F14: =SUM(F8:F13) -> 2087054409 | G14: =SUM(G8:G13) -> 3417117651 | H14: 2636478814 | I14: 3597880734 | J14: 2629744160 | K14: 2052153015
A15: 14 | B15: Hero | C15: Balance Sheet | D15: Balance Sheet Totals | E15: Total Assets | F15: =SUM(F14,F7) -> 8869819849 | G15: =SUM(G14,G7) -> 11400020739 | H15: 8872282684 | I15: 10574452833 | J15: 10472393439 | K15: 7355733086
A16: 15 | B16: Hero | C16: Balance Sheet | D16: Current Liabilities | E16: Accounts payable | F16: 357759805 | G16: 493407935 | H16: 344776389 | I16: 923347988 | J16: 871555042 | K16: 966975322
A17: 16 | B17: Hero | C17: Balance Sheet | D17: Current Liabilities | E17: Short-term debt | F17: 150370338 | G17: 615334819 | H17: 638431384 | I17: 956351084 | J17: 463385129 | K17: 123111329
A18: 17 | B18: Hero | C18: Balance Sheet | D18: Current Liabilities | E18: Dividends payable | F18: 334942436 | G18: 593990745 | H18: 64976326 | I18: 653795991 | J18: 39021794 | K18: 731454224
A19: 18 | B19: Hero | C19: Balance Sheet | D19: Current Liabilities | E19: Notes payable | F19: 999301227 | G19: 642551804 | H19: 390362981 | I19: 880965837 | J19: 645192107 | K19: 647266714
A20: 19 | B20: Hero | C20: Balance Sheet | D20: Current Liabilities | E20: The current portion of deferred revenue | F20: 233081611 | G20: 916398213 | H20: 487845343 | I20: 244880889 | J20: 380590035 | K20: 133894516
A21: 20 | B21: Hero | C21: Balance Sheet | D21: Current Liabilities | E21: Current maturities of long-term debt | F21: 872753992 | G21: 983620671 | H21: 25983278 | I21: 877290617 | J21: 932426949 | K21: 247967907
A22: 21 | B22: Hero | C22: Balance Sheet | D22: Current Liabilities | E22: Interest payable on outstanding debts | F22: 257784384 | G22: 95396253 | H22: 619534515 | I22: 715685671 | J22: 233621024 | K22: 680936048
A23: 22 | B23: Hero | C23: Balance Sheet | D23: Current Liabilities | E23: Income taxes owed within the next year | F23: 377787846 | G23: 995692434 | H23: 477722183 | I23: 24995021 | J23: 76944473 | K23: 108647941
A24: 23 | B24: Hero | C24: Balance Sheet | D24: Balance Sheet Totals | E24: Total Current Liabilities | F24: =SUM(F16:F23) -> 3583781639 | G24: =SUM(G16:G23) -> 5336392874 | H24: 3049632399 | I24: 5277313098 | J24: 3642736553 | K24: 3640254001
A25: 24 | B25: Hero | C25: Balance Sheet | D25: Non Current Liabilities | E25: Debentures | F25: 813127084 | G25: 605968357 | H25: 89386021 | I25: 942051957 | J25: 634150419 | K25: 464274689
A26: 25 | B26: Hero | C26: Balance Sheet | D26: Non Current Liabilities | E26: Bonds payable | F26: 214327045 | G26: 526075613 | H26: 277484005 | I26: 363903955 | J26: 735256919 | K26: 41740022
A27: 26 | B27: Hero | C27: Balance Sheet | D27: Non Current Liabilities | E27: Long-term loans | F27: 289975883 | G27: 554978808 | H27: 128651546 | I27: 364666007 | J27: 209645345 | K27: 846019529
A28: 27 | B28: Hero | C28: Balance Sheet | D28: Non Current Liabilities | E28: Deferred tax liabilities | F28: 182203687 | G28: 760697495 | H28: 727179591 | I28: 953902248 | J28: 991456615 | K28: 566692023
A29: 28 | B29: Hero | C29: Balance Sheet | D29: Non Current Liabilities | E29: Long-term lease | F29: 974498778 | G29: 889257259 | H29: 126133075 | I29: 601893222 | J29: 796901469 | K29: 209876456
A30: 29 | B30: Hero | C30: Balance Sheet | D30: Non Current Liabilities | E30: Pension benefit obligations | F30: 832575942 | G30: 641360556 | H30: 528051958 | I30: 227853677 | J30: 536834492 | K30: 4530586
A31: 30 | B31: Hero | C31: Balance Sheet | D31: Non Current Liabilities | E31: Differed Revenue | F31: 711951037 | G31: 562764498 | H31: 703019658 | I31: 70639543 | J31: 507990745 | K31: 587718804
A32: 31 | B32: Hero | C32: Balance Sheet | D32: Balance Sheet Totals | E32: Total Non Current Liabilities | F32: =SUM(F25:F31) -> 4018659456 | G32: =SUM(G25:G31) -> 4541102586 | H32: 2579905854 | I32: 3524910609 | J32: 4412236004 | K32: 2720852109
A33: 32 | B33: Hero | C33: Balance Sheet | D33: Balance Sheet Totals | E33: Total Liabilities | F33: =SUM(F32,F24) -> 7602441095 | G33: =SUM(G32,G24) -> 9877495460 | H33: 5629538253 | I33: 8802223707 | J33: 8054972557 | K33: 6361106110
A34: 33 | B34: Hero | C34: Balance Sheet | D34: Owners Equity | E34: Retained earnings | F34: 733777818 | G34: 258066039 | H34: 928511189 | I34: 151752686 | J34: 488920934 | K34: 449605915
A35: 34 | B35: Hero | C35: Balance Sheet | D35: Owners Equity | E35: Outstanding shares | F35: 7966065 | G35: 227416809 | H35: 852521978 | I35: 315788677 | J35: 526676875 | K35: 170605845
A36: 35 | B36: Hero | C36: Balance Sheet | D36: Owners Equity | E36: Treasury stock | F36: 90193663 | G36: 118066838 | H36: 763466101 | I36: 959972014 | J36: 834966868 | K36: 214381235
A37: 36 | B37: Hero | C37: Balance Sheet | D37: Owners Equity | E37: Additional paid-in capital | F37: 435441208 | G37: 918975593 | H37: 698245163 | I37: 344715749 | J37: 566856205 | K37: 160033981
A38: 37 | B38: Hero | C38: Balance Sheet | D38: Balance Sheet Totals | E38: Total Owners Equity | F38: =SUM(F34:F37) -> 1267378754 | G38: =SUM(G34:G37) -> 1522525279 | H38: 3242744431 | I38: 1772229126 | J38: 2417420882 | K38: 994626976
A39: 38 | B39: Hero | C39: Balance Sheet | D39: Balance Sheet Totals | E39: Total Liabilities & Owners Equity | F39: =SUM(F38,F33) -> 8869819849 | G39: =SUM(G38,G33) -> 11400020739 | H39: 8872282684 | I39: 10574452833 | J39: 10472393439 | K39: 7355733086
A40: 39 | B40: Hero | C40: Income Statement | D40: Income | E40: operating income | F40: 10195553186 | G40: 11877329244 | H40: 13342929078 | I40: 15340510909 | J40: 17547391128 | K40: 20992787274
A41: 40 | B41: Hero | C41: Income Statement | D41: Income | E41: Other income | F41: 25042524 | G41: 49098174 | H41: 70362581 | I41: 139908779 | J41: 160691571 | K41: 189967562
A42: 41 | B42: Hero | C42: Income Statement | D42: Income Statement Totals | E42: Total revenue | F42: =SUM(F40:F41) -> 10220595710 | G42: =SUM(G40:G41) -> 11926427418 | H42: =SUM(H40:H41) -> 13413291659 | I42: 15480419688 | J42: 17708082699 | K42: 21182754836
A43: 42 | B43: Hero | C43: Income Statement | D43: Income | E43: activity expenses | F43: -3840463547 | G43: -4877526063 | H43: -6022404941 | I43: -7284007661 | J43: -7618358388 | K43: -9259931780
A44: 43 | B44: Hero | C44: Income Statement | D44: Income | E44: change in stock | F44: -431999761 | G44: -560479596 | H44: -329165574 | I44: -404230813 | J44: -409292466 | K44: -498877943
A45: 44 | B45: Hero | C45: Income Statement | D45: Income | E45: Salaries, wages and other benefits | F45: -750419677 | G45: -892642621 | H45: -879109943 | I45: -935612907 | J45: -1053701205 | K45: -1198891415
A46: 45 | B46: Hero | C46: Income Statement | D46: Income | E46: Depreciation and amortization | F46: -1901596942 | G46: -2158735307 | H46: -2674743878 | I46: -2853492329 | J46: -3077866825 | K46: -3785497514
A47: 46 | B47: Hero | C47: Income Statement | D47: Income | E47: advertising expenses | F47: -285579483 | G47: -274481700 | H47: -412438319 | I47: -428057267 | J47: -353825863 | K47: -554883285
A48: 47 | B48: Hero | C48: Income Statement | D48: Income | E48: Operating rentals | F48: -464821104 | G48: -535247697 | H48: -594665144 | I48: -706692047 | J48: -777829289 | K48: -106721467
A49: 48 | B49: Hero | C49: Income Statement | D49: Income | E49: allotments | F49: -704202705 | G49: -475977097 | H49: -363442946 | I49: -437247860 | J49: -463935172 | K49: -550980040
A50: 49 | B50: Hero | C50: Income Statement | D50: Income | E50: Allowances that are not intended | F50: 155760050 | G50: 350525781 | H50: 816333813 | I50: 510079616 | J50: 57215667 | K50: 103935665
A51: 50 | B51: Hero | C51: Income Statement | D51: Income | E51: Losses of disposal / sale / impairment of assets | F51: -159172507 | G51: -173712269 | H51: -91164041 | I51: -47541553 | J51: -21559014 | K51: -58791781
A52: 51 | B52: Hero | C52: Income Statement | D52: Income | E52: Fixed asset decay response | F52: 40789882 | G52: 6139834 | H52: 0 | I52: 0 | J52: 0 | K52: 0
A53: 52 | B53: Hero | C53: Income Statement | D53: Income | E53: net loss / sale / return of fixed assets | F53: -118382625 | G53: -167572435 | H53: -91164041 | I53: -47541553 | J53: -21559014 | K53: -58791781
A54: 53 | B54: Hero | C54: Income Statement | D54: Income Statement Totals | E54: Activity Profits | F54: =SUM(F42:F52) -> 1878889916 | G54: =SUM(G42:G52) -> 2334290683 | H54: =SUM(H42:H52) -> 2862490686 | I54: 2893616867 | J54: 3988930144 | K54: 5272115276
A55: 54 | B55: Hero | C55: Income Statement | D55: Income | E55: Gain (loss) on sale of fixed assets | F55: 0 | G55: 0 | H55: 0 | I55: 0 | J55: 0 | K55: 0
A56: 55 | B56: Hero | C56: Income Statement | D56: Income | E56: financing income | F56: 77127609 | G56: 94175889 | H56: 256194382 | I56: 81858510 | J56: 74046389 | K56: 98847147
A57: 56 | B57: Hero | C57: Income Statement | D57: Income | E57: financing costs | F57: -685718087 | G57: -1278642758 | H57: -1094318864 | I57: -513342379 | J57: -357736072 | K57: -1021989065
A58: 57 | B58: Hero | C58: Income Statement | D58: Income | E58: Losses of foreign currency valuation differences | F58: -2450775108 | G58: 209867458 | H58: -42507616 | I58: 504206862 | J58: 51411660 | K58: 10166306
A59: 58 | B59: Hero | C59: Income Statement | D59: Income Statement Totals | E59: net profit before taxes | F59: =SUM(F54:F58) -> -1180475670 | G59: =SUM(G54:G58) -> 1359691272 | H59: 1981858588 | I59: 2966339860 | J59: 3756652121 | K59: 4359139664
A60: 59 | B60: Hero | C60: Income Statement | D60: Income | E60: Income Taxes | F60: 197613719 | G60: -418095793 | H60: -527258068 | I60: -741198704 | J60: -964958593 | K60: -1122839271
A61: 60 | B61: Hero | C61: Income Statement | D61: Income Statement Totals | E61: general net profit | F61: =SUM(F59:F60) -> -982861951 | G61: =SUM(G59:G60) -> 941595479 | H61: =SUM(H59:H60) -> 1454600520 | I61: 2225141156 | J61: 2791693528 | K61: 3236300393
A62: 61 | B62: Hero | C62: Income Statement | D62: Income | E62: Basic and diluted earnings per share | F62: 0 | G62: 0 | H62: 0 | I62: 0 | J62: 12.24 | K62: 14.75
A63: 62 | B63: Hero | C63: Ratios | D63: Ratios (%) | E63: Profit To Owners Equity | L63: =F61/F38 -> -0.7755076751 | M63: =G61/G38 -> 0.6184432482 | N63: 0.4485708174 | O63: 1.255560651 | P63: 1.154823121 | Q63: 3.253783047
A64: 63 | B64: Hero | C64: Ratios | D64: Ratios (%) | E64: Profit To Total Assets | L64: =F61/F15 -> -0.1108096858 | M64: =G61/G15 -> 0.08259594439 | N64: 0.1639488474 | O64: 0.2104261271 | P64: 0.2665764559 | Q64: 0.439969797

Sheet 7.ALL
A1: No. | B1: Company | C1: Financial Statement/ Ratio | D1: Main item in Financial Statement/ Ratio | E1: Detailed item in Financial Statement/ Ratio | F1: 2016 | G1: 2017 | H1: 2018 | I1: 2019 | J1: 2020 | K1: 2021 | L1: 2016 Vertical | M1: 2017 Vertical | N1: 2018 Vertical | O1: 2019 Vertical | P1: 2020 Vertical | Q1: 2021 Vertical | R1: 2017 Horizontal | S1: 2018 Horizontal | T1: 2019 Horizontal | U1: 2020 Horizontal | V1: 2021 Horizontal | W1: 2016 Ratio(Amount) | X1: 2017 Ratio(Amount) | Y1: 2018 Ratio(Amount) | Z1: 2019 Ratio(Amount) | AA1: 2020 Ratio(Amount) | AB1: 2021 Ratio(Amount) | AC1: 2016 Ratio(Times) | AD1: 2017 Ratio(Times) | AE1: 2018 Ratio(Times) | AF1: 2019 Ratio(Times) | AG1: 2020 Ratio(Times) | AH1: 2021 Ratio(Times) | AI1: 2016 Ratio(%) | AJ1: 2017 Ratio(%) | AK1: 2018 Ratio(%) | AL1: 2019 Ratio(%) | AM1: 2020 Ratio(%) | AN1: 2021 Ratio(%)
A2: 1 | B2: Hero | C2: Balance Sheet | D2: Non Current Asset | E2: Fixed Assets | F2: 227339503 | G2: 455075469 | H2: 737983522 | I2: 158516489 | J2: 949673811 | K2: 122355205 | L2: =IFERROR((All[[#This Row],[2016]]/F$15),"") -> 0.02563067874 | M2: =IFERROR((All[[#This Row],[2017]]/G$15),"") -> 0.03991882817 | N2: =IFERROR((All[[#This Row],[2018]]/H$15),"") -> 0.08317854021 | O2: =IFERROR((All[[#This Row],[2019]]/I$15),"") -> 0.01499051455 | P2: =IFERROR((All[[#This Row],[2020]]/J$15),"") -> 0.09068354971 | Q2: =IFERROR((All[[#This Row],[2021]]/K$15),"") -> 0.01663399196 | R2: =IFERROR(((All[[#This Row],[2017]]-All[[#This Row],[2016]])/All[[#This Row],[2016]]),"") -> 1.001743925 | S2: =IFERROR(((All[[#This Row],[2018]]-All[[#This Row],[2017]])/All[[#This Row],[2017]]),"") -> 0.6216728263 | T2: =IFERROR(((All[[#This Row],[2019]]-All[[#This Row],[2018]])/All[[#This Row],[2018]]),"") -> -0.7852032135 | U2: =IFERROR(((All[[#This Row],[2020]]-All[[#This Row],[2019]])/All[[#This Row],[2019]]),"") -> 4.991009623 | V2: =IFERROR(((All[[#This Row],[2021]]-All[[#This Row],[2020]])/All[[#This Row],[2020]]),"") -> -0.8711608096
A3: 2 | B3: Hero | C3: Balance Sheet | D3: Non Current Asset | E3: Investments | F3: 4646071302 | G3: 5948368946 | H3: 3443879482 | I3: 5432143898 | J3: 5522205033 | K3: 3109044508 | L3: =IFERROR((All[[#This Row],[2016]]/F$15),"") -> 0.5238067268 | M3: =IFERROR((All[[#This Row],[2017]]/G$15),"") -> 0.5217858004 | N3: =IFERROR((All[[#This Row],[2018]]/H$15),"") -> 0.3881616045 | O3: =IFERROR((All[[#This Row],[2019]]/I$15),"") -> 0.5137044898 | P3: =IFERROR((All[[#This Row],[2020]]/J$15),"") -> 0.5273106922 | Q3: =IFERROR((All[[#This Row],[2021]]/K$15),"") -> 0.4226695656 | R3: =IFERROR(((All[[#This Row],[2017]]-All[[#This Row],[2016]])/All[[#This Row],[2016]]),"") -> 0.2803008304 | S3: =IFERROR(((All[[#This Row],[2018]]-All[[#This Row],[2017]])/All[[#This Row],[2017]]),"") -> -0.4210380168 | T3: =IFERROR(((All[[#This Row],[2019]]-All[[#This Row],[2018]])/All[[#This Row],[2018]]),"") -> 0.5773327512 | U3: =IFERROR(((All[[#This Row],[2020]]-All[[#This Row],[2019]])/All[[#This Row],[2019]]),"") -> 0.01657929847 | V3: =IFERROR(((All[[#This Row],[2021]]-All[[#This Row],[2020]])/All[[#This Row],[2020]]),"") -> -0.4369921998
A4: 3 | B4: Hero | C4: Balance Sheet | D4: Non Current Asset | E4: Property, plant, and equipment | F4: 746852209 | G4: 649847449 | H4: 785944929 | I4: 574688129 | J4: 272007072 | K4: 234186671 | L4: =IFERROR((All[[#This Row],[2016]]/F$15),"") -> 0.08420150823 | M4: =IFERROR((All[[#This Row],[2017]]/G$15),"") -> 0.05700405849 | N4: =IFERROR((All[[#This Row],[2018]]/H$15),"") -> 0.08858429752 | O4: =IFERROR((All[[#This Row],[2019]]/I$15),"") -> 0.0543468431 | P4: =IFERROR((All[[#This Row],[2020]]/J$15),"") -> 0.02597372545 | Q4: =IFERROR((All[[#This Row],[2021]]/K$15),"") -> 0.03183729864 | R4: =IFERROR(((All[[#This Row],[2017]]-All[[#This Row],[2016]])/All[[#This Row],[2016]]),"") -> -0.1298848137 | S4: =IFERROR(((All[[#This Row],[2018]]-All[[#This Row],[2017]])/All[[#This Row],[2017]]),"") -> 0.2094298904 | T4: =IFERROR(((All[[#This Row],[2019]]-All[[#This Row],[2018]])/All[[#This Row],[2018]]),"") -> -0.2687933877 | U4: =IFERROR(((All[[#This Row],[2020]]-All[[#This Row],[2019]])/All[[#This Row],[2019]]),"") -> -0.5266875053 | V4: =IFERROR(((All[[#This Row],[2021]]-All[[#This Row],[2020]])/All[[#This Row],[2020]]),"") -> -0.1390419768
A5: 4 | B5: Hero | C5: Balance Sheet | D5: Non Current Asset | E5: Intangible assets | F5: 828390929 | G5: 643895802 | H5: 282559286 | I5: 150923767 | J5: 280775748 | K5: 990658996 | L5: =IFERROR((All[[#This Row],[2016]]/F$15),"") -> 0.0933943353 | M5: =IFERROR((All[[#This Row],[2017]]/G$15),"") -> 0.05648198514 | N5: =IFERROR((All[[#This Row],[2018]]/H$15),"") -> 0.03184741696 | O5: =IFERROR((All[[#This Row],[2019]]/I$15),"") -> 0.0142724895 | P5: =IFERROR((All[[#This Row],[2020]]/J$15),"") -> 0.02681103891 | Q5: =IFERROR((All[[#This Row],[2021]]/K$15),"") -> 0.1346784861 | R5: =IFERROR(((All[[#This Row],[2017]]-All[[#This Row],[2016]])/All[[#This Row],[2016]]),"") -> -0.2227150498 | S5: =IFERROR(((All[[#This Row],[2018]]-All[[#This Row],[2017]])/All[[#This Row],[2017]]),"") -> -0.5611723432 | T5: =IFERROR(((All[[#This Row],[2019]]-All[[#This Row],[2018]])/All[[#This Row],[2018]]),"") -> -0.4658686708 | U5: =IFERROR(((All[[#This Row],[2020]]-All[[#This Row],[2019]])/All[[#This Row],[2019]]),"") -> 0.8603812612 | V5: =IFERROR(((All[[#This Row],[2021]]-All[[#This Row],[2020]])/All[[#This Row],[2020]]),"") -> 2.528292607
A6: 5 | B6: Hero | C6: Balance Sheet | D6: Non Current Asset | E6: Other assets | F6: 334111497 | G6: 285715422 | H6: 985436651 | I6: 660299816 | J6: 817987615 | K6: 847334691 | L6: =IFERROR((All[[#This Row],[2016]]/F$15),"") -> 0.03766835208 | M6: =IFERROR((All[[#This Row],[2017]]/G$15),"") -> 0.02506271072 | N6: =IFERROR((All[[#This Row],[2018]]/H$15),"") -> 0.1110691224 | O6: =IFERROR((All[[#This Row],[2019]]/I$15),"") -> 0.06244292981 | P6: =IFERROR((All[[#This Row],[2020]]/J$15),"") -> 0.07810894613 | Q6: =IFERROR((All[[#This Row],[2021]]/K$15),"") -> 0.1151937789 | R6: =IFERROR(((All[[#This Row],[2017]]-All[[#This Row],[2016]])/All[[#This Row],[2016]]),"") -> -0.1448500738 | S6: =IFERROR(((All[[#This Row],[2018]]-All[[#This Row],[2017]])/All[[#This Row],[2017]]),"") -> 2.449014562 | T6: =IFERROR(((All[[#This Row],[2019]]-All[[#This Row],[2018]])/All[[#This Row],[2018]]),"") -> -0.329941894 | U6: =IFERROR(((All[[#This Row],[2020]]-All[[#This Row],[2019]])/All[[#This Row],[2019]]),"") -> 0.2388124231 | V6: =IFERROR(((All[[#This Row],[2021]]-All[[#This Row],[2020]])/All[[#This Row],[2020]]),"") -> 0.03587716423
A7: 6 | B7: Hero | C7: Balance Sheet | D7: Balance Sheet Totals | E7: Total Non current asset | F7: =SUM(F2:F6) -> 6782765440 | G7: =SUM(G2:G6) -> 7982903088 | H7: 6235803870 | I7: 6976572099 | J7: 7842649279 | K7: 5303580071 | L7: =IFERROR((All[[#This Row],[2016]]/F$15),"") -> 0.7647016011 | M7: =IFERROR((All[[#This Row],[2017]]/G$15),"") -> 0.7002533829 | N7: =IFERROR((All[[#This Row],[2018]]/H$15),"") -> 0.7028409815 | O7: =IFERROR((All[[#This Row],[2019]]/I$15),"") -> 0.6597572668 | P7: =IFERROR((All[[#This Row],[2020]]/J$15),"") -> 0.7488879524 | Q7: =IFERROR((All[[#This Row],[2021]]/K$15),"") -> 0.7210131212 | R7: =IFERROR(((All[[#This Row],[2017]]-All[[#This Row],[2016]])/All[[#This Row],[2016]]),"") -> 0.1769392822 | S7: =IFERROR(((All[[#This Row],[2018]]-All[[#This Row],[2017]])/All[[#This Row],[2017]]),"") -> -0.2188551206 | T7: =IFERROR(((All[[#This Row],[2019]]-All[[#This Row],[2018]])/All[[#This Row],[2018]]),"") -> 0.1187927402 | U7: =IFERROR(((All[[#This Row],[2020]]-All[[#This Row],[2019]])/All[[#This Row],[2019]]),"") -> 0.1241407912 | V7: =IFERROR(((All[[#This Row],[2021]]-All[[#This Row],[2020]])/All[[#This Row],[2020]]),"") -> -0.3237514668
A8: 7 | B8: Hero | C8: Balance Sheet | D8: Current Assets | E8: Inventory | F8: 62120567 | G8: 614738586 | H8: 945192391 | I8: 508173456 | J8: 600298289 | K8: 13659048 | L8: =IFERROR((All[[#This Row],[2016]]/F$15),"") -> 0.007003588354 | M8: =IFERROR((All[[#This Row],[2017]]/G$15),"") -> 0.05392433927 | N8: =IFERROR((All[[#This Row],[2018]]/H$15),"") -> 0.106533169 | O8: =IFERROR((All[[#This Row],[2019]]/I$15),"") -> 0.04805671405 | P8: =IFERROR((All[[#This Row],[2020]]/J$15),"") -> 0.05732197635 | Q8: =IFERROR((All[[#This Row],[2021]]/K$15),"") -> 0.001856925454 | R8: =IFERROR(((All[[#This Row],[2017]]-All[[#This Row],[2016]])/All[[#This Row],[2016]]),"") -> 8.89589464 | S8: =IFERROR(((All[[#This Row],[2018]]-All[[#This Row],[2017]])/All[[#This Row],[2017]]),"") -> 0.5375517537 | T8: =IFERROR(((All[[#This Row],[2019]]-All[[#This Row],[2018]])/All[[#This Row],[2018]]),"") -> -0.4623597684 | U8: =IFERROR(((All[[#This Row],[2020]]-All[[#This Row],[2019]])/All[[#This Row],[2019]]),"") -> 0.1812861965 | V8: =IFERROR(((All[[#This Row],[2021]]-All[[#This Row],[2020]])/All[[#This Row],[2020]]),"") -> -0.977246232
A9: 8 | B9: Hero | C9: Balance Sheet | D9: Current Assets | E9: Clients | F9: 193186705 | G9: 929932027 | H9: 82975532 | I9: 379236925 | J9: 941063873 | K9: 358344789 | L9: =IFERROR((All[[#This Row],[2016]]/F$15),"") -> 0.02178022872 | M9: =IFERROR((All[[#This Row],[2017]]/G$15),"") -> 0.08157283643 | N9: =IFERROR((All[[#This Row],[2018]]/H$15),"") -> 0.009352219148 | O9: =IFERROR((All[[#This Row],[2019]]/I$15),"") -> 0.03586350339 | P9: =IFERROR((All[[#This Row],[2020]]/J$15),"") -> 0.08986139401 | Q9: =IFERROR((All[[#This Row],[2021]]/K$15),"") -> 0.0487163937 | R9: =IFERROR(((All[[#This Row],[2017]]-All[[#This Row],[2016]])/All[[#This Row],[2016]]),"") -> 3.813644019 | S9: =IFERROR(((All[[#This Row],[2018]]-All[[#This Row],[2017]])/All[[#This Row],[2017]]),"") -> -0.9107724763 | T9: =IFERROR(((All[[#This Row],[2019]]-All[[#This Row],[2018]])/All[[#This Row],[2018]]),"") -> 3.57046693 | U9: =IFERROR(((All[[#This Row],[2020]]-All[[#This Row],[2019]])/All[[#This Row],[2019]]),"") -> 1.48146689 | V9: =IFERROR(((All[[#This Row],[2021]]-All[[#This Row],[2020]])/All[[#This Row],[2020]]),"") -> -0.6192131063
A10: 9 | B10: Hero | C10: Balance Sheet | D10: Current Assets | E10: Short term derivatives | F10: 841606422 | G10: 133855977 | H10: 555904841 | I10: 493374828 | J10: 120153333 | K10: 399195881 | L10: =IFERROR((All[[#This Row],[2016]]/F$15),"") -> 0.09488427458 | M10: =IFERROR((All[[#This Row],[2017]]/G$15),"") -> 0.01174173101 | N10: =IFERROR((All[[#This Row],[2018]]/H$15),"") -> 0.06265634908 | O10: =IFERROR((All[[#This Row],[2019]]/I$15),"") -> 0.04665724419 | P10: =IFERROR((All[[#This Row],[2020]]/J$15),"") -> 0.01147334023 | Q10: =IFERROR((All[[#This Row],[2021]]/K$15),"") -> 0.0542700335 | R10: =IFERROR(((All[[#This Row],[2017]]-All[[#This Row],[2016]])/All[[#This Row],[2016]]),"") -> -0.8409518113 | S10: =IFERROR(((All[[#This Row],[2018]]-All[[#This Row],[2017]])/All[[#This Row],[2017]]),"") -> 3.153007236 | T10: =IFERROR(((All[[#This Row],[2019]]-All[[#This Row],[2018]])/All[[#This Row],[2018]]),"") -> -0.1124833036 | U10: =IFERROR(((All[[#This Row],[2020]]-All[[#This Row],[2019]])/All[[#This Row],[2019]]),"") -> -0.7564664304 | V10: =IFERROR(((All[[#This Row],[2021]]-All[[#This Row],[2020]])/All[[#This Row],[2020]]),"") -> 2.322387079
A11: 10 | B11: Hero | C11: Balance Sheet | D11: Current Assets | E11: Accounts receivables | F11: 227758168 | G11: 949945896 | H11: 445161328 | I11: 572082814 | J11: 874781478 | K11: 90087448 | L11: =IFERROR((All[[#This Row],[2016]]/F$15),"") -> 0.02567787981 | M11: =IFERROR((All[[#This Row],[2017]]/G$15),"") -> 0.08332843578 | N11: =IFERROR((All[[#This Row],[2018]]/H$15),"") -> 0.05017438509 | O11: =IFERROR((All[[#This Row],[2019]]/I$15),"") -> 0.05410046487 | P11: =IFERROR((All[[#This Row],[2020]]/J$15),"") -> 0.08353214412 | Q11: =IFERROR((All[[#This Row],[2021]]/K$15),"") -> 0.01224724265 | R11: =IFERROR(((All[[#This Row],[2017]]-All[[#This Row],[2016]])/All[[#This Row],[2016]]),"") -> 3.170853253 | S11: =IFERROR(((All[[#This Row],[2018]]-All[[#This Row],[2017]])/All[[#This Row],[2017]]),"") -> -0.5313824399 | T11: =IFERROR(((All[[#This Row],[2019]]-All[[#This Row],[2018]])/All[[#This Row],[2018]]),"") -> 0.2851134589 | U11: =IFERROR(((All[[#This Row],[2020]]-All[[#This Row],[2019]])/All[[#This Row],[2019]]),"") -> 0.5291168631 | V11: =IFERROR(((All[[#This Row],[2021]]-All[[#This Row],[2020]])/All[[#This Row],[2020]]),"") -> -0.8970171977
A12: 11 | B12: Hero | C12: Balance Sheet | D12: Current Assets | E12: Cash | F12: 220888884 | G12: 13946342 | H12: 101678631 | I12: 870691375 | J12: 39099833 | K12: 537196821 | L12: =IFERROR((All[[#This Row],[2016]]/F$15),"") -> 0.02490342394 | M12: =IFERROR((All[[#This Row],[2017]]/G$15),"") -> 0.001223361108 | N12: =IFERROR((All[[#This Row],[2018]]/H$15),"") -> 0.01146025602 | O12: =IFERROR((All[[#This Row],[2019]]/I$15),"") -> 0.08233914215 | P12: =IFERROR((All[[#This Row],[2020]]/J$15),"") -> 0.003733610013 | Q12: =IFERROR((All[[#This Row],[2021]]/K$15),"") -> 0.07303103779 | R12: =IFERROR(((All[[#This Row],[2017]]-All[[#This Row],[2016]])/All[[#This Row],[2016]]),"") -> -0.9368626354 | S12: =IFERROR(((All[[#This Row],[2018]]-All[[#This Row],[2017]])/All[[#This Row],[2017]]),"") -> 6.290702537 | T12: =IFERROR(((All[[#This Row],[2019]]-All[[#This Row],[2018]])/All[[#This Row],[2018]]),"") -> 7.563169728 | U12: =IFERROR(((All[[#This Row],[2020]]-All[[#This Row],[2019]])/All[[#This Row],[2019]]),"") -> -0.9550933498 | V12: =IFERROR(((All[[#This Row],[2021]]-All[[#This Row],[2020]])/All[[#This Row],[2020]]),"") -> 12.73910781
A13: 12 | B13: Hero | C13: Balance Sheet | D13: Current Assets | E13: Bank Deposits | F13: 541493663 | G13: 774698823 | H13: 505566091 | I13: 774321336 | J13: 54347354 | K13: 653669028 | L13: =IFERROR((All[[#This Row],[2016]]/F$15),"") -> 0.0610490035 | M13: =IFERROR((All[[#This Row],[2017]]/G$15),"") -> 0.06795591348 | N13: =IFERROR((All[[#This Row],[2018]]/H$15),"") -> 0.05698264009 | O13: =IFERROR((All[[#This Row],[2019]]/I$15),"") -> 0.07322566455 | P13: =IFERROR((All[[#This Row],[2020]]/J$15),"") -> 0.005189582908 | Q13: =IFERROR((All[[#This Row],[2021]]/K$15),"") -> 0.0888652457 | R13: =IFERROR(((All[[#This Row],[2017]]-All[[#This Row],[2016]])/All[[#This Row],[2016]]),"") -> 0.4306701554 | S13: =IFERROR(((All[[#This Row],[2018]]-All[[#This Row],[2017]])/All[[#This Row],[2017]]),"") -> -0.3474030475 | T13: =IFERROR(((All[[#This Row],[2019]]-All[[#This Row],[2018]])/All[[#This Row],[2018]]),"") -> 0.5315927033 | U13: =IFERROR(((All[[#This Row],[2020]]-All[[#This Row],[2019]])/All[[#This Row],[2019]]),"") -> -0.9298129194 | V13: =IFERROR(((All[[#This Row],[2021]]-All[[#This Row],[2020]])/All[[#This Row],[2020]]),"") -> 11.02761459
A14: 13 | B14: Hero | C14: Balance Sheet | D14: Balance Sheet Totals | E14: Total Current Assets | F14: =SUM(F8:F13) -> 2087054409 | G14: =SUM(G8:G13) -> 3417117651 | H14: 2636478814 | I14: 3597880734 | J14: 2629744160 | K14: 2052153015 | L14: =IFERROR((All[[#This Row],[2016]]/F$15),"") -> 0.2352983989 | M14: =IFERROR((All[[#This Row],[2017]]/G$15),"") -> 0.2997466171 | N14: =IFERROR((All[[#This Row],[2018]]/H$15),"") -> 0.2971590185 | O14: =IFERROR((All[[#This Row],[2019]]/I$15),"") -> 0.3402427332 | P14: =IFERROR((All[[#This Row],[2020]]/J$15),"") -> 0.2511120476 | Q14: =IFERROR((All[[#This Row],[2021]]/K$15),"") -> 0.2789868788 | R14: =IFERROR(((All[[#This Row],[2017]]-All[[#This Row],[2016]])/All[[#This Row],[2016]]),"") -> 0.6372920784 | S14: =IFERROR(((All[[#This Row],[2018]]-All[[#This Row],[2017]])/All[[#This Row],[2017]]),"") -> -0.2284495053 | T14: =IFERROR(((All[[#This Row],[2019]]-All[[#This Row],[2018]])/All[[#This Row],[2018]]),"") -> 0.3646537628 | U14: =IFERROR(((All[[#This Row],[2020]]-All[[#This Row],[2019]])/All[[#This Row],[2019]]),"") -> -0.2690852326 | V14: =IFERROR(((All[[#This Row],[2021]]-All[[#This Row],[2020]])/All[[#This Row],[2020]]),"") -> -0.2196377708
A15: 14 | B15: Hero | C15: Balance Sheet | D15: Balance Sheet Totals | E15: Total Assets | F15: =SUM(F14,F7) -> 8869819849 | G15: =SUM(G14,G7) -> 11400020739 | H15: 8872282684 | I15: 10574452833 | J15: 10472393439 | K15: 7355733086 | L15: =IFERROR((All[[#This Row],[2016]]/F$15),"") -> 1 | M15: =IFERROR((All[[#This Row],[2017]]/G$15),"") -> 1 | N15: =IFERROR((All[[#This Row],[2018]]/H$15),"") -> 1 | O15: =IFERROR((All[[#This Row],[2019]]/I$15),"") -> 1 | P15: =IFERROR((All[[#This Row],[2020]]/J$15),"") -> 1 | Q15: =IFERROR((All[[#This Row],[2021]]/K$15),"") -> 1 | R15: =IFERROR(((All[[#This Row],[2017]]-All[[#This Row],[2016]])/All[[#This Row],[2016]]),"") -> 0.285259558 | S15: =IFERROR(((All[[#This Row],[2018]]-All[[#This Row],[2017]])/All[[#This Row],[2017]]),"") -> -0.221731005 | T15: =IFERROR(((All[[#This Row],[2019]]-All[[#This Row],[2018]])/All[[#This Row],[2018]]),"") -> 0.1918525603 | U15: =IFERROR(((All[[#This Row],[2020]]-All[[#This Row],[2019]])/All[[#This Row],[2019]]),"") -> -0.009651505909 | V15: =IFERROR(((All[[#This Row],[2021]]-All[[#This Row],[2020]])/All[[#This Row],[2020]]),"") -> -0.2976072634
A16: 15 | B16: Hero | C16: Balance Sheet | D16: Current Liabilities | E16: Accounts payable | F16: 357759805 | G16: 493407935 | H16: 344776389 | I16: 923347988 | J16: 871555042 | K16: 966975322 | L16: =IFERROR((All[[#This Row],[2016]]/F$15),"") -> 0.04033450635 | M16: =IFERROR((All[[#This Row],[2017]]/G$15),"") -> 0.04328131907 | N16: =IFERROR((All[[#This Row],[2018]]/H$15),"") -> 0.03885994183 | O16: =IFERROR((All[[#This Row],[2019]]/I$15),"") -> 0.08731874855 | P16: =IFERROR((All[[#This Row],[2020]]/J$15),"") -> 0.08322405447 | Q16: =IFERROR((All[[#This Row],[2021]]/K$15),"") -> 0.131458729 | R16: =IFERROR(((All[[#This Row],[2017]]-All[[#This Row],[2016]])/All[[#This Row],[2016]]),"") -> 0.3791597829 | S16: =IFERROR(((All[[#This Row],[2018]]-All[[#This Row],[2017]])/All[[#This Row],[2017]]),"") -> -0.3012346082 | T16: =IFERROR(((All[[#This Row],[2019]]-All[[#This Row],[2018]])/All[[#This Row],[2018]]),"") -> 1.678106789 | U16: =IFERROR(((All[[#This Row],[2020]]-All[[#This Row],[2019]])/All[[#This Row],[2019]]),"") -> -0.05609255305 | V16: =IFERROR(((All[[#This Row],[2021]]-All[[#This Row],[2020]])/All[[#This Row],[2020]]),"") -> 0.1094827927
A17: 16 | B17: Hero | C17: Balance Sheet | D17: Current Liabilities | E17: Short-term debt | F17: 150370338 | G17: 615334819 | H17: 638431384 | I17: 956351084 | J17: 463385129 | K17: 123111329 | L17: =IFERROR((All[[#This Row],[2016]]/F$15),"") -> 0.0169530318 | M17: =IFERROR((All[[#This Row],[2017]]/G$15),"") -> 0.05397664031 | N17: =IFERROR((All[[#This Row],[2018]]/H$15),"") -> 0.07195796243 | O17: =IFERROR((All[[#This Row],[2019]]/I$15),"") -> 0.09043977018 | P17: =IFERROR((All[[#This Row],[2020]]/J$15),"") -> 0.04424825439 | Q17: =IFERROR((All[[#This Row],[2021]]/K$15),"") -> 0.01673678579 | R17: =IFERROR(((All[[#This Row],[2017]]-All[[#This Row],[2016]])/All[[#This Row],[2016]]),"") -> 3.092128988 | S17: =IFERROR(((All[[#This Row],[2018]]-All[[#This Row],[2017]])/All[[#This Row],[2017]]),"") -> 0.03753495542 | T17: =IFERROR(((All[[#This Row],[2019]]-All[[#This Row],[2018]])/All[[#This Row],[2018]]),"") -> 0.4979700371 | U17: =IFERROR(((All[[#This Row],[2020]]-All[[#This Row],[2019]])/All[[#This Row],[2019]]),"") -> -0.5154654637 | V17: =IFERROR(((All[[#This Row],[2021]]-All[[#This Row],[2020]])/All[[#This Row],[2020]]),"") -> -0.7343217956
A18: 17 | B18: Hero | C18: Balance Sheet | D18: Current Liabilities | E18: Dividends payable | F18: 334942436 | G18: 593990745 | H18: 64976326 | I18: 653795991 | J18: 39021794 | K18: 731454224 | L18: =IFERROR((All[[#This Row],[2016]]/F$15),"") -> 0.03776203369 | M18: =IFERROR((All[[#This Row],[2017]]/G$15),"") -> 0.05210435653 | N18: =IFERROR((All[[#This Row],[2018]]/H$15),"") -> 0.007323518458 | O18: =IFERROR((All[[#This Row],[2019]]/I$15),"") -> 0.06182787907 | P18: =IFERROR((All[[#This Row],[2020]]/J$15),"") -> 0.003726158134 | Q18: =IFERROR((All[[#This Row],[2021]]/K$15),"") -> 0.09944001712 | R18: =IFERROR(((All[[#This Row],[2017]]-All[[#This Row],[2016]])/All[[#This Row],[2016]]),"") -> 0.7734114318 | S18: =IFERROR(((All[[#This Row],[2018]]-All[[#This Row],[2017]])/All[[#This Row],[2017]]),"") -> -0.8906105414 | T18: =IFERROR(((All[[#This Row],[2019]]-All[[#This Row],[2018]])/All[[#This Row],[2018]]),"") -> 9.06206462 | U18: =IFERROR(((All[[#This Row],[2020]]-All[[#This Row],[2019]])/All[[#This Row],[2019]]),"") -> -0.9403150302 | V18: =IFERROR(((All[[#This Row],[2021]]-All[[#This Row],[2020]])/All[[#This Row],[2020]]),"") -> 17.74476156
A19: 18 | B19: Hero | C19: Balance Sheet | D19: Current Liabilities | E19: Notes payable | F19: 999301227 | G19: 642551804 | H19: 390362981 | I19: 880965837 | J19: 645192107 | K19: 647266714 | L19: =IFERROR((All[[#This Row],[2016]]/F$15),"") -> 0.1126630804 | M19: =IFERROR((All[[#This Row],[2017]]/G$15),"") -> 0.0563640908 | N19: =IFERROR((All[[#This Row],[2018]]/H$15),"") -> 0.0439980324 | O19: =IFERROR((All[[#This Row],[2019]]/I$15),"") -> 0.08331077276 | P19: =IFERROR((All[[#This Row],[2020]]/J$15),"") -> 0.06160884909 | Q19: =IFERROR((All[[#This Row],[2021]]/K$15),"") -> 0.08799486148 | R19: =IFERROR(((All[[#This Row],[2017]]-All[[#This Row],[2016]])/All[[#This Row],[2016]]),"") -> -0.3569988842 | S19: =IFERROR(((All[[#This Row],[2018]]-All[[#This Row],[2017]])/All[[#This Row],[2017]]),"") -> -0.3924801416 | T19: =IFERROR(((All[[#This Row],[2019]]-All[[#This Row],[2018]])/All[[#This Row],[2018]]),"") -> 1.256786324 | U19: =IFERROR(((All[[#This Row],[2020]]-All[[#This Row],[2019]])/All[[#This Row],[2019]]),"") -> -0.267630957 | V19: =IFERROR(((All[[#This Row],[2021]]-All[[#This Row],[2020]])/All[[#This Row],[2020]]),"") -> 0.00321548726
A20: 19 | B20: Hero | C20: Balance Sheet | D20: Current Liabilities | E20: The current portion of deferred revenue | F20: 233081611 | G20: 916398213 | H20: 487845343 | I20: 244880889 | J20: 380590035 | K20: 133894516 | L20: =IFERROR((All[[#This Row],[2016]]/F$15),"") -> 0.02627805468 | M20: =IFERROR((All[[#This Row],[2017]]/G$15),"") -> 0.08038566192 | N20: =IFERROR((All[[#This Row],[2018]]/H$15),"") -> 0.05498532456 | O20: =IFERROR((All[[#This Row],[2019]]/I$15),"") -> 0.02315778347 | P20: =IFERROR((All[[#This Row],[2020]]/J$15),"") -> 0.03634222083 | Q20: =IFERROR((All[[#This Row],[2021]]/K$15),"") -> 0.0182027426 | R20: =IFERROR(((All[[#This Row],[2017]]-All[[#This Row],[2016]])/All[[#This Row],[2016]]),"") -> 2.93166243 | S20: =IFERROR(((All[[#This Row],[2018]]-All[[#This Row],[2017]])/All[[#This Row],[2017]]),"") -> -0.4676491769 | T20: =IFERROR(((All[[#This Row],[2019]]-All[[#This Row],[2018]])/All[[#This Row],[2018]]),"") -> -0.4980358171 | U20: =IFERROR(((All[[#This Row],[2020]]-All[[#This Row],[2019]])/All[[#This Row],[2019]]),"") -> 0.5541843079 | V20: =IFERROR(((All[[#This Row],[2021]]-All[[#This Row],[2020]])/All[[#This Row],[2020]]),"") -> -0.6481922707
A21: 20 | B21: Hero | C21: Balance Sheet | D21: Current Liabilities | E21: Current maturities of long-term debt | F21: 872753992 | G21: 983620671 | H21: 25983278 | I21: 877290617 | J21: 932426949 | K21: 247967907 | L21: =IFERROR((All[[#This Row],[2016]]/F$15),"") -> 0.0983959096 | M21: =IFERROR((All[[#This Row],[2017]]/G$15),"") -> 0.08628235803 | N21: =IFERROR((All[[#This Row],[2018]]/H$15),"") -> 0.002928589961 | O21: =IFERROR((All[[#This Row],[2019]]/I$15),"") -> 0.08296321624 | P21: =IFERROR((All[[#This Row],[2020]]/J$15),"") -> 0.08903666143 | Q21: =IFERROR((All[[#This Row],[2021]]/K$15),"") -> 0.03371083536 | R21: =IFERROR(((All[[#This Row],[2017]]-All[[#This Row],[2016]])/All[[#This Row],[2016]]),"") -> 0.1270308472 | S21: =IFERROR(((All[[#This Row],[2018]]-All[[#This Row],[2017]])/All[[#This Row],[2017]]),"") -> -0.9735840464 | T21: =IFERROR(((All[[#This Row],[2019]]-All[[#This Row],[2018]])/All[[#This Row],[2018]]),"") -> 32.76366204 | U21: =IFERROR(((All[[#This Row],[2020]]-All[[#This Row],[2019]])/All[[#This Row],[2019]]),"") -> 0.06284842324 | V21: =IFERROR(((All[[#This Row],[2021]]-All[[#This Row],[2020]])/All[[#This Row],[2020]]),"") -> -0.7340618402
A22: 21 | B22: Hero | C22: Balance Sheet | D22: Current Liabilities | E22: Interest payable on outstanding debts | F22: 257784384 | G22: 95396253 | H22: 619534515 | I22: 715685671 | J22: 233621024 | K22: 680936048 | L22: =IFERROR((All[[#This Row],[2016]]/F$15),"") -> 0.02906309129 | M22: =IFERROR((All[[#This Row],[2017]]/G$15),"") -> 0.008368077145 | N22: =IFERROR((All[[#This Row],[2018]]/H$15),"") -> 0.06982808563 | O22: =IFERROR((All[[#This Row],[2019]]/I$15),"") -> 0.06768063391 | P22: =IFERROR((All[[#This Row],[2020]]/J$15),"") -> 0.02230827416 | Q22: =IFERROR((All[[#This Row],[2021]]/K$15),"") -> 0.09257215291 | R22: =IFERROR(((All[[#This Row],[2017]]-All[[#This Row],[2016]])/All[[#This Row],[2016]]),"") -> -0.6299378127 | S22: =IFERROR(((All[[#This Row],[2018]]-All[[#This Row],[2017]])/All[[#This Row],[2017]]),"") -> 5.49432756 | T22: =IFERROR(((All[[#This Row],[2019]]-All[[#This Row],[2018]])/All[[#This Row],[2018]]),"") -> 0.1551990304 | U22: =IFERROR(((All[[#This Row],[2020]]-All[[#This Row],[2019]])/All[[#This Row],[2019]]),"") -> -0.6735703487 | V22: =IFERROR(((All[[#This Row],[2021]]-All[[#This Row],[2020]])/All[[#This Row],[2020]]),"") -> 1.914703636
A23: 22 | B23: Hero | C23: Balance Sheet | D23: Current Liabilities | E23: Income taxes owed within the next year | F23: 377787846 | G23: 995692434 | H23: 477722183 | I23: 24995021 | J23: 76944473 | K23: 108647941 | L23: =IFERROR((All[[#This Row],[2016]]/F$15),"") -> 0.04259250497 | M23: =IFERROR((All[[#This Row],[2017]]/G$15),"") -> 0.08734128269 | N23: =IFERROR((All[[#This Row],[2018]]/H$15),"") -> 0.05384433747 | O23: =IFERROR((All[[#This Row],[2019]]/I$15),"") -> 0.002363717669 | P23: =IFERROR((All[[#This Row],[2020]]/J$15),"") -> 0.007347362706 | Q23: =IFERROR((All[[#This Row],[2021]]/K$15),"") -> 0.01477051162 | R23: =IFERROR(((All[[#This Row],[2017]]-All[[#This Row],[2016]])/All[[#This Row],[2016]]),"") -> 1.635586201 | S23: =IFERROR(((All[[#This Row],[2018]]-All[[#This Row],[2017]])/All[[#This Row],[2017]]),"") -> -0.5202110946 | T23: =IFERROR(((All[[#This Row],[2019]]-All[[#This Row],[2018]])/All[[#This Row],[2018]]),"") -> -0.9476787516 | U23: =IFERROR(((All[[#This Row],[2020]]-All[[#This Row],[2019]])/All[[#This Row],[2019]]),"") -> 2.078392013 | V23: =IFERROR(((All[[#This Row],[2021]]-All[[#This Row],[2020]])/All[[#This Row],[2020]]),"") -> 0.4120304781
A24: 23 | B24: Hero | C24: Balance Sheet | D24: Balance Sheet Totals | E24: Total Current Liabilities | F24: =SUM(F16:F23) -> 3583781639 | G24: =SUM(G16:G23) -> 5336392874 | H24: 3049632399 | I24: 5277313098 | J24: 3642736553 | K24: 3640254001 | L24: =IFERROR((All[[#This Row],[2016]]/F$15),"") -> 0.4040422128 | M24: =IFERROR((All[[#This Row],[2017]]/G$15),"") -> 0.4681037865 | N24: =IFERROR((All[[#This Row],[2018]]/H$15),"") -> 0.3437257927 | O24: =IFERROR((All[[#This Row],[2019]]/I$15),"") -> 0.4990625218 | P24: =IFERROR((All[[#This Row],[2020]]/J$15),"") -> 0.3478418352 | Q24: =IFERROR((All[[#This Row],[2021]]/K$15),"") -> 0.4948866358 | R24: =IFERROR(((All[[#This Row],[2017]]-All[[#This Row],[2016]])/All[[#This Row],[2016]]),"") -> 0.4890396267 | S24: =IFERROR(((All[[#This Row],[2018]]-All[[#This Row],[2017]])/All[[#This Row],[2017]]),"") -> -0.4285217616 | T24: =IFERROR(((All[[#This Row],[2019]]-All[[#This Row],[2018]])/All[[#This Row],[2018]]),"") -> 0.7304751549 | U24: =IFERROR(((All[[#This Row],[2020]]-All[[#This Row],[2019]])/All[[#This Row],[2019]]),"") -> -0.3097365107 | V24: =IFERROR(((All[[#This Row],[2021]]-All[[#This Row],[2020]])/All[[#This Row],[2020]]),"") -> -0.0006815074228
A25: 24 | B25: Hero | C25: Balance Sheet | D25: Non Current Liabilities | E25: Debentures | F25: 813127084 | G25: 605968357 | H25: 89386021 | I25: 942051957 | J25: 634150419 | K25: 464274689 | L25: =IFERROR((All[[#This Row],[2016]]/F$15),"") -> 0.091673461 | M25: =IFERROR((All[[#This Row],[2017]]/G$15),"") -> 0.05315502233 | N25: =IFERROR((All[[#This Row],[2018]]/H$15),"") -> 0.01007474899 | O25: =IFERROR((All[[#This Row],[2019]]/I$15),"") -> 0.0890875369 | P25: =IFERROR((All[[#This Row],[2020]]/J$15),"") -> 0.06055448763 | Q25: =IFERROR((All[[#This Row],[2021]]/K$15),"") -> 0.06311739205 | R25: =IFERROR(((All[[#This Row],[2017]]-All[[#This Row],[2016]])/All[[#This Row],[2016]]),"") -> -0.2547679583 | S25: =IFERROR(((All[[#This Row],[2018]]-All[[#This Row],[2017]])/All[[#This Row],[2017]]),"") -> -0.8524906128 | T25: =IFERROR(((All[[#This Row],[2019]]-All[[#This Row],[2018]])/All[[#This Row],[2018]]),"") -> 9.539141875 | U25: =IFERROR(((All[[#This Row],[2020]]-All[[#This Row],[2019]])/All[[#This Row],[2019]]),"") -> -0.3268413549 | V25: =IFERROR(((All[[#This Row],[2021]]-All[[#This Row],[2020]])/All[[#This Row],[2020]]),"") -> -0.2678792364
A26: 25 | B26: Hero | C26: Balance Sheet | D26: Non Current Liabilities | E26: Bonds payable | F26: 214327045 | G26: 526075613 | H26: 277484005 | I26: 363903955 | J26: 735256919 | K26: 41740022 | L26: =IFERROR((All[[#This Row],[2016]]/F$15),"") -> 0.02416363 | M26: =IFERROR((All[[#This Row],[2017]]/G$15),"") -> 0.04614689965 | N26: =IFERROR((All[[#This Row],[2018]]/H$15),"") -> 0.03127537916 | O26: =IFERROR((All[[#This Row],[2019]]/I$15),"") -> 0.03441350212 | P26: =IFERROR((All[[#This Row],[2020]]/J$15),"") -> 0.07020906188 | Q26: =IFERROR((All[[#This Row],[2021]]/K$15),"") -> 0.00567448839 | R26: =IFERROR(((All[[#This Row],[2017]]-All[[#This Row],[2016]])/All[[#This Row],[2016]]),"") -> 1.454546103 | S26: =IFERROR(((All[[#This Row],[2018]]-All[[#This Row],[2017]])/All[[#This Row],[2017]]),"") -> -0.4725396917 | T26: =IFERROR(((All[[#This Row],[2019]]-All[[#This Row],[2018]])/All[[#This Row],[2018]]),"") -> 0.3114411946 | U26: =IFERROR(((All[[#This Row],[2020]]-All[[#This Row],[2019]])/All[[#This Row],[2019]]),"") -> 1.020469712 | V26: =IFERROR(((All[[#This Row],[2021]]-All[[#This Row],[2020]])/All[[#This Row],[2020]]),"") -> -0.9432306981
A27: 26 | B27: Hero | C27: Balance Sheet | D27: Non Current Liabilities | E27: Long-term loans | F27: 289975883 | G27: 554978808 | H27: 128651546 | I27: 364666007 | J27: 209645345 | K27: 846019529 | L27: =IFERROR((All[[#This Row],[2016]]/F$15),"") -> 0.03269242081 | M27: =IFERROR((All[[#This Row],[2017]]/G$15),"") -> 0.04868226302 | N27: =IFERROR((All[[#This Row],[2018]]/H$15),"") -> 0.01450038852 | O27: =IFERROR((All[[#This Row],[2019]]/I$15),"") -> 0.0344855675 | P27: =IFERROR((All[[#This Row],[2020]]/J$15),"") -> 0.02001885684 | Q27: =IFERROR((All[[#This Row],[2021]]/K$15),"") -> 0.1150149848 | R27: =IFERROR(((All[[#This Row],[2017]]-All[[#This Row],[2016]])/All[[#This Row],[2016]]),"") -> 0.9138791897 | S27: =IFERROR(((All[[#This Row],[2018]]-All[[#This Row],[2017]])/All[[#This Row],[2017]]),"") -> -0.7681865611 | T27: =IFERROR(((All[[#This Row],[2019]]-All[[#This Row],[2018]])/All[[#This Row],[2018]]),"") -> 1.834524872 | U27: =IFERROR(((All[[#This Row],[2020]]-All[[#This Row],[2019]])/All[[#This Row],[2019]]),"") -> -0.4251031328 | V27: =IFERROR(((All[[#This Row],[2021]]-All[[#This Row],[2020]])/All[[#This Row],[2020]]),"") -> 3.035479676
A28: 27 | B28: Hero | C28: Balance Sheet | D28: Non Current Liabilities | E28: Deferred tax liabilities | F28: 182203687 | G28: 760697495 | H28: 727179591 | I28: 953902248 | J28: 991456615 | K28: 566692023 | L28: =IFERROR((All[[#This Row],[2016]]/F$15),"") -> 0.02054198283 | M28: =IFERROR((All[[#This Row],[2017]]/G$15),"") -> 0.06672772905 | N28: =IFERROR((All[[#This Row],[2018]]/H$15),"") -> 0.08196082304 | O28: =IFERROR((All[[#This Row],[2019]]/I$15),"") -> 0.09020818978 | P28: =IFERROR((All[[#This Row],[2020]]/J$15),"") -> 0.09467335436 | Q28: =IFERROR((All[[#This Row],[2021]]/K$15),"") -> 0.07704086274 | R28: =IFERROR(((All[[#This Row],[2017]]-All[[#This Row],[2016]])/All[[#This Row],[2016]]),"") -> 3.174984093 | S28: =IFERROR(((All[[#This Row],[2018]]-All[[#This Row],[2017]])/All[[#This Row],[2017]]),"") -> -0.04406206701 | T28: =IFERROR(((All[[#This Row],[2019]]-All[[#This Row],[2018]])/All[[#This Row],[2018]]),"") -> 0.3117835811 | U28: =IFERROR(((All[[#This Row],[2020]]-All[[#This Row],[2019]])/All[[#This Row],[2019]]),"") -> 0.03936919855 | V28: =IFERROR(((All[[#This Row],[2021]]-All[[#This Row],[2020]])/All[[#This Row],[2020]]),"") -> -0.4284247899
A29: 28 | B29: Hero | C29: Balance Sheet | D29: Non Current Liabilities | E29: Long-term lease | F29: 974498778 | G29: 889257259 | H29: 126133075 | I29: 601893222 | J29: 796901469 | K29: 209876456 | L29: =IFERROR((All[[#This Row],[2016]]/F$15),"") -> 0.1098668062 | M29: =IFERROR((All[[#This Row],[2017]]/G$15),"") -> 0.07800488081 | N29: =IFERROR((All[[#This Row],[2018]]/H$15),"") -> 0.01421653023 | O29: =IFERROR((All[[#This Row],[2019]]/I$15),"") -> 0.05691956184 | P29: =IFERROR((All[[#This Row],[2020]]/J$15),"") -> 0.07609544787 | Q29: =IFERROR((All[[#This Row],[2021]]/K$15),"") -> 0.02853236429 | R29: =IFERROR(((All[[#This Row],[2017]]-All[[#This Row],[2016]])/All[[#This Row],[2016]]),"") -> -0.08747216613 | S29: =IFERROR(((All[[#This Row],[2018]]-All[[#This Row],[2017]])/All[[#This Row],[2017]]),"") -> -0.8581590718 | T29: =IFERROR(((All[[#This Row],[2019]]-All[[#This Row],[2018]])/All[[#This Row],[2018]]),"") -> 3.771890497 | U29: =IFERROR(((All[[#This Row],[2020]]-All[[#This Row],[2019]])/All[[#This Row],[2019]]),"") -> 0.3239914322 | V29: =IFERROR(((All[[#This Row],[2021]]-All[[#This Row],[2020]])/All[[#This Row],[2020]]),"") -> -0.7366343718
A30: 29 | B30: Hero | C30: Balance Sheet | D30: Non Current Liabilities | E30: Pension benefit obligations | F30: 832575942 | G30: 641360556 | H30: 528051958 | I30: 227853677 | J30: 536834492 | K30: 4530586 | L30: =IFERROR((All[[#This Row],[2016]]/F$15),"") -> 0.09386616145 | M30: =IFERROR((All[[#This Row],[2017]]/G$15),"") -> 0.05625959555 | N30: =IFERROR((All[[#This Row],[2018]]/H$15),"") -> 0.05951703488 | O30: =IFERROR((All[[#This Row],[2019]]/I$15),"") -> 0.0215475619 | P30: =IFERROR((All[[#This Row],[2020]]/J$15),"") -> 0.051261872 | Q30: =IFERROR((All[[#This Row],[2021]]/K$15),"") -> 0.0006159258291 | R30: =IFERROR(((All[[#This Row],[2017]]-All[[#This Row],[2016]])/All[[#This Row],[2016]]),"") -> -0.2296672007 | S30: =IFERROR(((All[[#This Row],[2018]]-All[[#This Row],[2017]])/All[[#This Row],[2017]]),"") -> -0.176669109 | T30: =IFERROR(((All[[#This Row],[2019]]-All[[#This Row],[2018]])/All[[#This Row],[2018]]),"") -> -0.5685014068 | U30: =IFERROR(((All[[#This Row],[2020]]-All[[#This Row],[2019]])/All[[#This Row],[2019]]),"") -> 1.356049282 | V30: =IFERROR(((All[[#This Row],[2021]]-All[[#This Row],[2020]])/All[[#This Row],[2020]]),"") -> -0.9915605535
A31: 30 | B31: Hero | C31: Balance Sheet | D31: Non Current Liabilities | E31: Differed Revenue | F31: 711951037 | G31: 562764498 | H31: 703019658 | I31: 70639543 | J31: 507990745 | K31: 587718804 | L31: =IFERROR((All[[#This Row],[2016]]/F$15),"") -> 0.08026668513 | M31: =IFERROR((All[[#This Row],[2017]]/G$15),"") -> 0.04936521704 | N31: =IFERROR((All[[#This Row],[2018]]/H$15),"") -> 0.07923774332 | O31: =IFERROR((All[[#This Row],[2019]]/I$15),"") -> 0.006680207867 | P31: =IFERROR((All[[#This Row],[2020]]/J$15),"") -> 0.04850760697 | Q31: =IFERROR((All[[#This Row],[2021]]/K$15),"") -> 0.07989941956 | R31: =IFERROR(((All[[#This Row],[2017]]-All[[#This Row],[2016]])/All[[#This Row],[2016]]),"") -> -0.209546066 | S31: =IFERROR(((All[[#This Row],[2018]]-All[[#This Row],[2017]])/All[[#This Row],[2017]]),"") -> 0.2492253163 | T31: =IFERROR(((All[[#This Row],[2019]]-All[[#This Row],[2018]])/All[[#This Row],[2018]]),"") -> -0.8995198183 | U31: =IFERROR(((All[[#This Row],[2020]]-All[[#This Row],[2019]])/All[[#This Row],[2019]]),"") -> 6.191308486 | V31: =IFERROR(((All[[#This Row],[2021]]-All[[#This Row],[2020]])/All[[#This Row],[2020]]),"") -> 0.1569478574
A32: 31 | B32: Hero | C32: Balance Sheet | D32: Balance Sheet Totals | E32: Total Non Current Liabilities | F32: =SUM(F25:F31) -> 4018659456 | G32: =SUM(G25:G31) -> 4541102586 | H32: 2579905854 | I32: 3524910609 | J32: 4412236004 | K32: 2720852109 | L32: =IFERROR((All[[#This Row],[2016]]/F$15),"") -> 0.4530711474 | M32: =IFERROR((All[[#This Row],[2017]]/G$15),"") -> 0.3983416074 | N32: =IFERROR((All[[#This Row],[2018]]/H$15),"") -> 0.2907826482 | O32: =IFERROR((All[[#This Row],[2019]]/I$15),"") -> 0.3333421279 | P32: =IFERROR((All[[#This Row],[2020]]/J$15),"") -> 0.4213206875 | Q32: =IFERROR((All[[#This Row],[2021]]/K$15),"") -> 0.3698954376 | R32: =IFERROR(((All[[#This Row],[2017]]-All[[#This Row],[2016]])/All[[#This Row],[2016]]),"") -> 0.13000433 | S32: =IFERROR(((All[[#This Row],[2018]]-All[[#This Row],[2017]])/All[[#This Row],[2017]]),"") -> -0.4318767733 | T32: =IFERROR(((All[[#This Row],[2019]]-All[[#This Row],[2018]])/All[[#This Row],[2018]]),"") -> 0.3662942791 | U32: =IFERROR(((All[[#This Row],[2020]]-All[[#This Row],[2019]])/All[[#This Row],[2019]]),"") -> 0.2517299 | V32: =IFERROR(((All[[#This Row],[2021]]-All[[#This Row],[2020]])/All[[#This Row],[2020]]),"") -> -0.3833393983
A33: 32 | B33: Hero | C33: Balance Sheet | D33: Balance Sheet Totals | E33: Total Liabilities | F33: =SUM(F32,F24) -> 7602441095 | G33: =SUM(G32,G24) -> 9877495460 | H33: 5629538253 | I33: 8802223707 | J33: 8054972557 | K33: 6361106110 | L33: =IFERROR((All[[#This Row],[2016]]/F$15),"") -> 0.8571133602 | M33: =IFERROR((All[[#This Row],[2017]]/G$15),"") -> 0.8664453939 | N33: =IFERROR((All[[#This Row],[2018]]/H$15),"") -> 0.6345084409 | O33: =IFERROR((All[[#This Row],[2019]]/I$15),"") -> 0.8324046498 | P33: =IFERROR((All[[#This Row],[2020]]/J$15),"") -> 0.7691625228 | Q33: =IFERROR((All[[#This Row],[2021]]/K$15),"") -> 0.8647820735 | R33: =IFERROR(((All[[#This Row],[2017]]-All[[#This Row],[2016]])/All[[#This Row],[2016]]),"") -> 0.2992531394 | S33: =IFERROR(((All[[#This Row],[2018]]-All[[#This Row],[2017]])/All[[#This Row],[2017]]),"") -> -0.4300642024 | T33: =IFERROR(((All[[#This Row],[2019]]-All[[#This Row],[2018]])/All[[#This Row],[2018]]),"") -> 0.5635782743 | U33: =IFERROR(((All[[#This Row],[2020]]-All[[#This Row],[2019]])/All[[#This Row],[2019]]),"") -> -0.08489345135 | V33: =IFERROR(((All[[#This Row],[2021]]-All[[#This Row],[2020]])/All[[#This Row],[2020]]),"") -> -0.2102882952
A34: 33 | B34: Hero | C34: Balance Sheet | D34: Owners Equity | E34: Retained earnings | F34: 733777818 | G34: 258066039 | H34: 928511189 | I34: 151752686 | J34: 488920934 | K34: 449605915 | L34: =IFERROR((All[[#This Row],[2016]]/F$15),"") -> 0.08272747705 | M34: =IFERROR((All[[#This Row],[2017]]/G$15),"") -> 0.02263733066 | N34: =IFERROR((All[[#This Row],[2018]]/H$15),"") -> 0.1046530213 | O34: =IFERROR((All[[#This Row],[2019]]/I$15),"") -> 0.01435087833 | P34: =IFERROR((All[[#This Row],[2020]]/J$15),"") -> 0.04668664683 | Q34: =IFERROR((All[[#This Row],[2021]]/K$15),"") -> 0.06112319598 | R34: =IFERROR(((All[[#This Row],[2017]]-All[[#This Row],[2016]])/All[[#This Row],[2016]]),"") -> -0.6483049328 | S34: =IFERROR(((All[[#This Row],[2018]]-All[[#This Row],[2017]])/All[[#This Row],[2017]]),"") -> 2.597959625 | T34: =IFERROR(((All[[#This Row],[2019]]-All[[#This Row],[2018]])/All[[#This Row],[2018]]),"") -> -0.8365634278 | U34: =IFERROR(((All[[#This Row],[2020]]-All[[#This Row],[2019]])/All[[#This Row],[2019]]),"") -> 2.221827217 | V34: =IFERROR(((All[[#This Row],[2021]]-All[[#This Row],[2020]])/All[[#This Row],[2020]]),"") -> -0.08041181358
A35: 34 | B35: Hero | C35: Balance Sheet | D35: Owners Equity | E35: Outstanding shares | F35: 7966065 | G35: 227416809 | H35: 852521978 | I35: 315788677 | J35: 526676875 | K35: 170605845 | L35: =IFERROR((All[[#This Row],[2016]]/F$15),"") -> 0.0008981089961 | M35: =IFERROR((All[[#This Row],[2017]]/G$15),"") -> 0.0199488066 | N35: =IFERROR((All[[#This Row],[2018]]/H$15),"") -> 0.09608823438 | O35: =IFERROR((All[[#This Row],[2019]]/I$15),"") -> 0.0298633586 | P35: =IFERROR((All[[#This Row],[2020]]/J$15),"") -> 0.05029192974 | Q35: =IFERROR((All[[#This Row],[2021]]/K$15),"") -> 0.02319358832 | R35: =IFERROR(((All[[#This Row],[2017]]-All[[#This Row],[2016]])/All[[#This Row],[2016]]),"") -> 27.54819902 | S35: =IFERROR(((All[[#This Row],[2018]]-All[[#This Row],[2017]])/All[[#This Row],[2017]]),"") -> 2.748720166 | T35: =IFERROR(((All[[#This Row],[2019]]-All[[#This Row],[2018]])/All[[#This Row],[2018]]),"") -> -0.629582949 | U35: =IFERROR(((All[[#This Row],[2020]]-All[[#This Row],[2019]])/All[[#This Row],[2019]]),"") -> 0.6678143118 | V35: =IFERROR(((All[[#This Row],[2021]]-All[[#This Row],[2020]])/All[[#This Row],[2020]]),"") -> -0.67607113
A36: 35 | B36: Hero | C36: Balance Sheet | D36: Owners Equity | E36: Treasury stock | F36: 90193663 | G36: 118066838 | H36: 763466101 | I36: 959972014 | J36: 834966868 | K36: 214381235 | L36: =IFERROR((All[[#This Row],[2016]]/F$15),"") -> 0.01016860145 | M36: =IFERROR((All[[#This Row],[2017]]/G$15),"") -> 0.01035672133 | N36: =IFERROR((All[[#This Row],[2018]]/H$15),"") -> 0.08605069611 | O36: =IFERROR((All[[#This Row],[2019]]/I$15),"") -> 0.09078219263 | P36: =IFERROR((All[[#This Row],[2020]]/J$15),"") -> 0.07973028065 | Q36: =IFERROR((All[[#This Row],[2021]]/K$15),"") -> 0.0291447817 | R36: =IFERROR(((All[[#This Row],[2017]]-All[[#This Row],[2016]])/All[[#This Row],[2016]]),"") -> 0.3090369553 | S36: =IFERROR(((All[[#This Row],[2018]]-All[[#This Row],[2017]])/All[[#This Row],[2017]]),"") -> 5.466388987 | T36: =IFERROR(((All[[#This Row],[2019]]-All[[#This Row],[2018]])/All[[#This Row],[2018]]),"") -> 0.2573865595 | U36: =IFERROR(((All[[#This Row],[2020]]-All[[#This Row],[2019]])/All[[#This Row],[2019]]),"") -> -0.1302174899 | V36: =IFERROR(((All[[#This Row],[2021]]-All[[#This Row],[2020]])/All[[#This Row],[2020]]),"") -> -0.7432458182
A37: 36 | B37: Hero | C37: Balance Sheet | D37: Owners Equity | E37: Additional paid-in capital | F37: 435441208 | G37: 918975593 | H37: 698245163 | I37: 344715749 | J37: 566856205 | K37: 160033981 | L37: =IFERROR((All[[#This Row],[2016]]/F$15),"") -> 0.04909245232 | M37: =IFERROR((All[[#This Row],[2017]]/G$15),"") -> 0.08061174747 | N37: =IFERROR((All[[#This Row],[2018]]/H$15),"") -> 0.07869960729 | O37: =IFERROR((All[[#This Row],[2019]]/I$15),"") -> 0.03259892067 | P37: =IFERROR((All[[#This Row],[2020]]/J$15),"") -> 0.05412862 | Q37: =IFERROR((All[[#This Row],[2021]]/K$15),"") -> 0.02175636053 | R37: =IFERROR(((All[[#This Row],[2017]]-All[[#This Row],[2016]])/All[[#This Row],[2016]]),"") -> 1.110447004 | S37: =IFERROR(((All[[#This Row],[2018]]-All[[#This Row],[2017]])/All[[#This Row],[2017]]),"") -> -0.2401918306 | T37: =IFERROR(((All[[#This Row],[2019]]-All[[#This Row],[2018]])/All[[#This Row],[2018]]),"") -> -0.5063112969 | U37: =IFERROR(((All[[#This Row],[2020]]-All[[#This Row],[2019]])/All[[#This Row],[2019]]),"") -> 0.6444163246 | V37: =IFERROR(((All[[#This Row],[2021]]-All[[#This Row],[2020]])/All[[#This Row],[2020]]),"") -> -0.7176815221
A38: 37 | B38: Hero | C38: Balance Sheet | D38: Balance Sheet Totals | E38: Total Owners Equity | F38: =SUM(F34:F37) -> 1267378754 | G38: =SUM(G34:G37) -> 1522525279 | H38: 3242744431 | I38: 1772229126 | J38: 2417420882 | K38: 994626976 | L38: =IFERROR((All[[#This Row],[2016]]/F$15),"") -> 0.1428866398 | M38: =IFERROR((All[[#This Row],[2017]]/G$15),"") -> 0.1335546061 | N38: =IFERROR((All[[#This Row],[2018]]/H$15),"") -> 0.3654915591 | O38: =IFERROR((All[[#This Row],[2019]]/I$15),"") -> 0.1675953502 | P38: =IFERROR((All[[#This Row],[2020]]/J$15),"") -> 0.2308374772 | Q38: =IFERROR((All[[#This Row],[2021]]/K$15),"") -> 0.1352179265 | R38: =IFERROR(((All[[#This Row],[2017]]-All[[#This Row],[2016]])/All[[#This Row],[2016]]),"") -> 0.2013182912 | S38: =IFERROR(((All[[#This Row],[2018]]-All[[#This Row],[2017]])/All[[#This Row],[2017]]),"") -> 1.129846037 | T38: =IFERROR(((All[[#This Row],[2019]]-All[[#This Row],[2018]])/All[[#This Row],[2018]]),"") -> -0.4534786309 | U38: =IFERROR(((All[[#This Row],[2020]]-All[[#This Row],[2019]])/All[[#This Row],[2019]]),"") -> 0.3640566259 | V38: =IFERROR(((All[[#This Row],[2021]]-All[[#This Row],[2020]])/All[[#This Row],[2020]]),"") -> -0.5885586232
A39: 38 | B39: Hero | C39: Balance Sheet | D39: Balance Sheet Totals | E39: Total Liabilities & Owners Equity | F39: =SUM(F38,F33) -> 8869819849 | G39: =SUM(G38,G33) -> 11400020739 | H39: 8872282684 | I39: 10574452833 | J39: 10472393439 | K39: 7355733086 | L39: =IFERROR((All[[#This Row],[2016]]/F$15),"") -> 1 | M39: =IFERROR((All[[#This Row],[2017]]/G$15),"") -> 1 | N39: =IFERROR((All[[#This Row],[2018]]/H$15),"") -> 1 | O39: =IFERROR((All[[#This Row],[2019]]/I$15),"") -> 1 | P39: =IFERROR((All[[#This Row],[2020]]/J$15),"") -> 1 | Q39: =IFERROR((All[[#This Row],[2021]]/K$15),"") -> 1 | R39: =IFERROR(((All[[#This Row],[2017]]-All[[#This Row],[2016]])/All[[#This Row],[2016]]),"") -> 0.285259558 | S39: =IFERROR(((All[[#This Row],[2018]]-All[[#This Row],[2017]])/All[[#This Row],[2017]]),"") -> -0.221731005 | T39: =IFERROR(((All[[#This Row],[2019]]-All[[#This Row],[2018]])/All[[#This Row],[2018]]),"") -> 0.1918525603 | U39: =IFERROR(((All[[#This Row],[2020]]-All[[#This Row],[2019]])/All[[#This Row],[2019]]),"") -> -0.009651505909 | V39: =IFERROR(((All[[#This Row],[2021]]-All[[#This Row],[2020]])/All[[#This Row],[2020]]),"") -> -0.2976072634
A40: 39 | B40: Hero | C40: Income Statement | D40: Income | E40: operating income | F40: 10195553186 | G40: 11877329244 | H40: 13342929078 | I40: 15340510909 | J40: 17547391128 | K40: 20992787274 | L40: =IFERROR((All[[#This Row],[2016]]/F$42),"") -> 0.997549798 | M40: =IFERROR((All[[#This Row],[2017]]/G$42),"") -> 0.9958832455 | N40: =IFERROR((All[[#This Row],[2018]]/H$42),"") -> 0.9947542644 | O40: =IFERROR((All[[#This Row],[2019]]/I$42),"") -> 0.9909622102 | P40: =IFERROR((All[[#This Row],[2020]]/J$42),"") -> 0.990925524 | Q40: =IFERROR((All[[#This Row],[2021]]/K$42),"") -> 0.9910319709 | R40: =IFERROR(((All[[#This Row],[2017]]-All[[#This Row],[2016]])/All[[#This Row],[2016]]),"") -> 0.1649519185 | S40: =IFERROR(((All[[#This Row],[2018]]-All[[#This Row],[2017]])/All[[#This Row],[2017]]),"") -> 0.1233947299 | T40: =IFERROR(((All[[#This Row],[2019]]-All[[#This Row],[2018]])/All[[#This Row],[2018]]),"") -> 0.1497108933 | U40: =IFERROR(((All[[#This Row],[2020]]-All[[#This Row],[2019]])/All[[#This Row],[2019]]),"") -> 0.1438596297 | V40: =IFERROR(((All[[#This Row],[2021]]-All[[#This Row],[2020]])/All[[#This Row],[2020]]),"") -> 0.1963480566
A41: 40 | B41: Hero | C41: Income Statement | D41: Income | E41: Other income | F41: 25042524 | G41: 49098174 | H41: 70362581 | I41: 139908779 | J41: 160691571 | K41: 189967562 | L41: =IFERROR((All[[#This Row],[2016]]/F$42),"") -> 0.002450201995 | M41: =IFERROR((All[[#This Row],[2017]]/G$42),"") -> 0.004116754522 | N41: =IFERROR((All[[#This Row],[2018]]/H$42),"") -> 0.005245735558 | O41: =IFERROR((All[[#This Row],[2019]]/I$42),"") -> 0.00903778979 | P41: =IFERROR((All[[#This Row],[2020]]/J$42),"") -> 0.009074475974 | Q41: =IFERROR((All[[#This Row],[2021]]/K$42),"") -> 0.00896802911 | R41: =IFERROR(((All[[#This Row],[2017]]-All[[#This Row],[2016]])/All[[#This Row],[2016]]),"") -> 0.9605920713 | S41: =IFERROR(((All[[#This Row],[2018]]-All[[#This Row],[2017]])/All[[#This Row],[2017]]),"") -> 0.4330997523 | T41: =IFERROR(((All[[#This Row],[2019]]-All[[#This Row],[2018]])/All[[#This Row],[2018]]),"") -> 0.9883974836 | U41: =IFERROR(((All[[#This Row],[2020]]-All[[#This Row],[2019]])/All[[#This Row],[2019]]),"") -> 0.1485453032 | V41: =IFERROR(((All[[#This Row],[2021]]-All[[#This Row],[2020]])/All[[#This Row],[2020]]),"") -> 0.1821874714
A42: 41 | B42: Hero | C42: Income Statement | D42: Income Statement Totals | E42: Total revenue | F42: =SUM(F40:F41) -> 10220595710 | G42: =SUM(G40:G41) -> 11926427418 | H42: =SUM(H40:H41) -> 13413291659 | I42: 15480419688 | J42: 17708082699 | K42: 21182754836 | L42: =IFERROR((All[[#This Row],[2016]]/F$42),"") -> 1 | M42: =IFERROR((All[[#This Row],[2017]]/G$42),"") -> 1 | N42: =IFERROR((All[[#This Row],[2018]]/H$42),"") -> 1 | O42: =IFERROR((All[[#This Row],[2019]]/I$42),"") -> 1 | P42: =IFERROR((All[[#This Row],[2020]]/J$42),"") -> 1 | Q42: =IFERROR((All[[#This Row],[2021]]/K$42),"") -> 1 | R42: =IFERROR(((All[[#This Row],[2017]]-All[[#This Row],[2016]])/All[[#This Row],[2016]]),"") -> 0.1669013976 | S42: =IFERROR(((All[[#This Row],[2018]]-All[[#This Row],[2017]])/All[[#This Row],[2017]]),"") -> 0.1246697095 | T42: =IFERROR(((All[[#This Row],[2019]]-All[[#This Row],[2018]])/All[[#This Row],[2018]]),"") -> 0.1541104213 | U42: =IFERROR(((All[[#This Row],[2020]]-All[[#This Row],[2019]])/All[[#This Row],[2019]]),"") -> 0.1439019778 | V42: =IFERROR(((All[[#This Row],[2021]]-All[[#This Row],[2020]])/All[[#This Row],[2020]]),"") -> 0.1962195567
A43: 42 | B43: Hero | C43: Income Statement | D43: Income | E43: activity expenses | F43: -3840463547 | G43: -4877526063 | H43: -6022404941 | I43: -7284007661 | J43: -7618358388 | K43: -9259931780 | L43: =IFERROR((All[[#This Row],[2016]]/F$42),"") -> -0.3757573096 | M43: =IFERROR((All[[#This Row],[2017]]/G$42),"") -> -0.4089679073 | N43: =IFERROR((All[[#This Row],[2018]]/H$42),"") -> -0.4489878468 | O43: =IFERROR((All[[#This Row],[2019]]/I$42),"") -> -0.4705303737 | P43: =IFERROR((All[[#This Row],[2020]]/J$42),"") -> -0.4302192687 | Q43: =IFERROR((All[[#This Row],[2021]]/K$42),"") -> -0.4371448309 | R43: =IFERROR(((All[[#This Row],[2017]]-All[[#This Row],[2016]])/All[[#This Row],[2016]]),"") -> 0.2700357661 | S43: =IFERROR(((All[[#This Row],[2018]]-All[[#This Row],[2017]])/All[[#This Row],[2017]]),"") -> 0.2347253225 | T43: =IFERROR(((All[[#This Row],[2019]]-All[[#This Row],[2018]])/All[[#This Row],[2018]]),"") -> 0.2094848706 | U43: =IFERROR(((All[[#This Row],[2020]]-All[[#This Row],[2019]])/All[[#This Row],[2019]]),"") -> 0.04590202847 | V43: =IFERROR(((All[[#This Row],[2021]]-All[[#This Row],[2020]])/All[[#This Row],[2020]]),"") -> 0.215476
A44: 43 | B44: Hero | C44: Income Statement | D44: Income | E44: change in stock | F44: -431999761 | G44: -560479596 | H44: -329165574 | I44: -404230813 | J44: -409292466 | K44: -498877943 | L44: =IFERROR((All[[#This Row],[2016]]/F$42),"") -> -0.0422675716 | M44: =IFERROR((All[[#This Row],[2017]]/G$42),"") -> -0.04699476015 | N44: =IFERROR((All[[#This Row],[2018]]/H$42),"") -> -0.02454025323 | O44: =IFERROR((All[[#This Row],[2019]]/I$42),"") -> -0.02611239367 | P44: =IFERROR((All[[#This Row],[2020]]/J$42),"") -> -0.02311331345 | Q44: =IFERROR((All[[#This Row],[2021]]/K$42),"") -> -0.02355113614 | R44: =IFERROR(((All[[#This Row],[2017]]-All[[#This Row],[2016]])/All[[#This Row],[2016]]),"") -> 0.29740719 | S44: =IFERROR(((All[[#This Row],[2018]]-All[[#This Row],[2017]])/All[[#This Row],[2017]]),"") -> -0.4127073022 | T44: =IFERROR(((All[[#This Row],[2019]]-All[[#This Row],[2018]])/All[[#This Row],[2018]]),"") -> 0.2280470527 | U44: =IFERROR(((All[[#This Row],[2020]]-All[[#This Row],[2019]])/All[[#This Row],[2019]]),"") -> 0.01252169018 | V44: =IFERROR(((All[[#This Row],[2021]]-All[[#This Row],[2020]])/All[[#This Row],[2020]]),"") -> 0.2188788811
A45: 44 | B45: Hero | C45: Income Statement | D45: Income | E45: Salaries, wages and other benefits | F45: -750419677 | G45: -892642621 | H45: -879109943 | I45: -935612907 | J45: -1053701205 | K45: -1198891415 | L45: =IFERROR((All[[#This Row],[2016]]/F$42),"") -> -0.07342230319 | M45: =IFERROR((All[[#This Row],[2017]]/G$42),"") -> -0.07484576812 | N45: =IFERROR((All[[#This Row],[2018]]/H$42),"") -> -0.06554020932 | O45: =IFERROR((All[[#This Row],[2019]]/I$42),"") -> -0.06043847169 | P45: =IFERROR((All[[#This Row],[2020]]/J$42),"") -> -0.05950396906 | Q45: =IFERROR((All[[#This Row],[2021]]/K$42),"") -> -0.05659752116 | R45: =IFERROR(((All[[#This Row],[2017]]-All[[#This Row],[2016]])/All[[#This Row],[2016]]),"") -> 0.1895245399 | S45: =IFERROR(((All[[#This Row],[2018]]-All[[#This Row],[2017]])/All[[#This Row],[2017]]),"") -> -0.01516024183 | T45: =IFERROR(((All[[#This Row],[2019]]-All[[#This Row],[2018]])/All[[#This Row],[2018]]),"") -> 0.06427292109 | U45: =IFERROR(((All[[#This Row],[2020]]-All[[#This Row],[2019]])/All[[#This Row],[2019]]),"") -> 0.1262149091 | V45: =IFERROR(((All[[#This Row],[2021]]-All[[#This Row],[2020]])/All[[#This Row],[2020]]),"") -> 0.1377906842
A46: 45 | B46: Hero | C46: Income Statement | D46: Income | E46: Depreciation and amortization | F46: -1901596942 | G46: -2158735307 | H46: -2674743878 | I46: -2853492329 | J46: -3077866825 | K46: -3785497514 | L46: =IFERROR((All[[#This Row],[2016]]/F$42),"") -> -0.1860553921 | M46: =IFERROR((All[[#This Row],[2017]]/G$42),"") -> -0.1810043554 | N46: =IFERROR((All[[#This Row],[2018]]/H$42),"") -> -0.1994099544 | O46: =IFERROR((All[[#This Row],[2019]]/I$42),"") -> -0.1843291323 | P46: =IFERROR((All[[#This Row],[2020]]/J$42),"") -> -0.1738114102 | Q46: =IFERROR((All[[#This Row],[2021]]/K$42),"") -> -0.1787065726 | R46: =IFERROR(((All[[#This Row],[2017]]-All[[#This Row],[2016]])/All[[#This Row],[2016]]),"") -> 0.1352223278 | S46: =IFERROR(((All[[#This Row],[2018]]-All[[#This Row],[2017]])/All[[#This Row],[2017]]),"") -> 0.2390328121 | T46: =IFERROR(((All[[#This Row],[2019]]-All[[#This Row],[2018]])/All[[#This Row],[2018]]),"") -> 0.06682824941 | U46: =IFERROR(((All[[#This Row],[2020]]-All[[#This Row],[2019]])/All[[#This Row],[2019]]),"") -> 0.07863153993 | V46: =IFERROR(((All[[#This Row],[2021]]-All[[#This Row],[2020]])/All[[#This Row],[2020]]),"") -> 0.2299094565
A47: 46 | B47: Hero | C47: Income Statement | D47: Income | E47: advertising expenses | F47: -285579483 | G47: -274481700 | H47: -412438319 | I47: -428057267 | J47: -353825863 | K47: -554883285 | L47: =IFERROR((All[[#This Row],[2016]]/F$42),"") -> -0.02794156927 | M47: =IFERROR((All[[#This Row],[2017]]/G$42),"") -> -0.0230145785 | N47: =IFERROR((All[[#This Row],[2018]]/H$42),"") -> -0.03074847916 | O47: =IFERROR((All[[#This Row],[2019]]/I$42),"") -> -0.02765152855 | P47: =IFERROR((All[[#This Row],[2020]]/J$42),"") -> -0.01998103742 | Q47: =IFERROR((All[[#This Row],[2021]]/K$42),"") -> -0.02619504825 | R47: =IFERROR(((All[[#This Row],[2017]]-All[[#This Row],[2016]])/All[[#This Row],[2016]]),"") -> -0.03886057529 | S47: =IFERROR(((All[[#This Row],[2018]]-All[[#This Row],[2017]])/All[[#This Row],[2017]]),"") -> 0.5026077112 | T47: =IFERROR(((All[[#This Row],[2019]]-All[[#This Row],[2018]])/All[[#This Row],[2018]]),"") -> 0.03786977902 | U47: =IFERROR(((All[[#This Row],[2020]]-All[[#This Row],[2019]])/All[[#This Row],[2019]]),"") -> -0.1734146567 | V47: =IFERROR(((All[[#This Row],[2021]]-All[[#This Row],[2020]])/All[[#This Row],[2020]]),"") -> 0.5682383427
A48: 47 | B48: Hero | C48: Income Statement | D48: Income | E48: Operating rentals | F48: -464821104 | G48: -535247697 | H48: -594665144 | I48: -706692047 | J48: -777829289 | K48: -106721467 | L48: =IFERROR((All[[#This Row],[2016]]/F$42),"") -> -0.04547886612 | M48: =IFERROR((All[[#This Row],[2017]]/G$42),"") -> -0.04487913088 | N48: =IFERROR((All[[#This Row],[2018]]/H$42),"") -> -0.04433402025 | O48: =IFERROR((All[[#This Row],[2019]]/I$42),"") -> -0.04565070336 | P48: =IFERROR((All[[#This Row],[2020]]/J$42),"") -> -0.04392509919 | Q48: =IFERROR((All[[#This Row],[2021]]/K$42),"") -> -0.005038129735 | R48: =IFERROR(((All[[#This Row],[2017]]-All[[#This Row],[2016]])/All[[#This Row],[2016]]),"") -> 0.1515133293 | S48: =IFERROR(((All[[#This Row],[2018]]-All[[#This Row],[2017]])/All[[#This Row],[2017]]),"") -> 0.111009253 | T48: =IFERROR(((All[[#This Row],[2019]]-All[[#This Row],[2018]])/All[[#This Row],[2018]]),"") -> 0.18838653 | U48: =IFERROR(((All[[#This Row],[2020]]-All[[#This Row],[2019]])/All[[#This Row],[2019]]),"") -> 0.1006622931 | V48: =IFERROR(((All[[#This Row],[2021]]-All[[#This Row],[2020]])/All[[#This Row],[2020]]),"") -> -0.8627957721
A49: 48 | B49: Hero | C49: Income Statement | D49: Income | E49: allotments | F49: -704202705 | G49: -475977097 | H49: -363442946 | I49: -437247860 | J49: -463935172 | K49: -550980040 | L49: =IFERROR((All[[#This Row],[2016]]/F$42),"") -> -0.06890035816 | M49: =IFERROR((All[[#This Row],[2017]]/G$42),"") -> -0.03990944483 | N49: =IFERROR((All[[#This Row],[2018]]/H$42),"") -> -0.02709573125 | O49: =IFERROR((All[[#This Row],[2019]]/I$42),"") -> -0.02824522001 | P49: =IFERROR((All[[#This Row],[2020]]/J$42),"") -> -0.02619906287 | Q49: =IFERROR((All[[#This Row],[2021]]/K$42),"") -> -0.02601078303 | R49: =IFERROR(((All[[#This Row],[2017]]-All[[#This Row],[2016]])/All[[#This Row],[2016]]),"") -> -0.3240907858 | S49: =IFERROR(((All[[#This Row],[2018]]-All[[#This Row],[2017]])/All[[#This Row],[2017]]),"") -> -0.2364276595 | T49: =IFERROR(((All[[#This Row],[2019]]-All[[#This Row],[2018]])/All[[#This Row],[2018]]),"") -> 0.2030715269 | U49: =IFERROR(((All[[#This Row],[2020]]-All[[#This Row],[2019]])/All[[#This Row],[2019]]),"") -> 0.06103474583 | V49: =IFERROR(((All[[#This Row],[2021]]-All[[#This Row],[2020]])/All[[#This Row],[2020]]),"") -> 0.1876229121
A50: 49 | B50: Hero | C50: Income Statement | D50: Income | E50: Allowances that are not intended | F50: 155760050 | G50: 350525781 | H50: 816333813 | I50: 510079616 | J50: 57215667 | K50: 103935665 | L50: =IFERROR((All[[#This Row],[2016]]/F$42),"") -> 0.01523982108 | M50: =IFERROR((All[[#This Row],[2017]]/G$42),"") -> 0.02939067742 | N50: =IFERROR((All[[#This Row],[2018]]/H$42),"") -> 0.0608600658 | O50: =IFERROR((All[[#This Row],[2019]]/I$42),"") -> 0.03294998626 | P50: =IFERROR((All[[#This Row],[2020]]/J$42),"") -> 0.003231048102 | Q50: =IFERROR((All[[#This Row],[2021]]/K$42),"") -> 0.004906617001 | R50: =IFERROR(((All[[#This Row],[2017]]-All[[#This Row],[2016]])/All[[#This Row],[2016]]),"") -> 1.2504216 | S50: =IFERROR(((All[[#This Row],[2018]]-All[[#This Row],[2017]])/All[[#This Row],[2017]]),"") -> 1.3288838 | T50: =IFERROR(((All[[#This Row],[2019]]-All[[#This Row],[2018]])/All[[#This Row],[2018]]),"") -> -0.3751580446 | U50: =IFERROR(((All[[#This Row],[2020]]-All[[#This Row],[2019]])/All[[#This Row],[2019]]),"") -> -0.8878299285 | V50: =IFERROR(((All[[#This Row],[2021]]-All[[#This Row],[2020]])/All[[#This Row],[2020]]),"") -> 0.8165595273
A51: 50 | B51: Hero | C51: Income Statement | D51: Income | E51: Losses of disposal / sale / impairment of assets | F51: -159172507 | G51: -173712269 | H51: -91164041 | I51: -47541553 | J51: -21559014 | K51: -58791781 | L51: =IFERROR((All[[#This Row],[2016]]/F$42),"") -> -0.01557370153 | M51: =IFERROR((All[[#This Row],[2017]]/G$42),"") -> -0.01456532312 | N51: =IFERROR((All[[#This Row],[2018]]/H$42),"") -> -0.006796545048 | O51: =IFERROR((All[[#This Row],[2019]]/I$42),"") -> -0.003071076493 | P51: =IFERROR((All[[#This Row],[2020]]/J$42),"") -> -0.001217467434 | Q51: =IFERROR((All[[#This Row],[2021]]/K$42),"") -> -0.002775454914 | R51: =IFERROR(((All[[#This Row],[2017]]-All[[#This Row],[2016]])/All[[#This Row],[2016]]),"") -> 0.09134593828 | S51: =IFERROR(((All[[#This Row],[2018]]-All[[#This Row],[2017]])/All[[#This Row],[2017]]),"") -> -0.4752009082 | T51: =IFERROR(((All[[#This Row],[2019]]-All[[#This Row],[2018]])/All[[#This Row],[2018]]),"") -> -0.478505423 | U51: =IFERROR(((All[[#This Row],[2020]]-All[[#This Row],[2019]])/All[[#This Row],[2019]]),"") -> -0.546522723 | V51: =IFERROR(((All[[#This Row],[2021]]-All[[#This Row],[2020]])/All[[#This Row],[2020]]),"") -> 1.727016226
A52: 51 | B52: Hero | C52: Income Statement | D52: Income | E52: Fixed asset decay response | F52: 40789882 | G52: 6139834 | H52: 0 | I52: 0 | J52: 0 | K52: 0 | L52: =IFERROR((All[[#This Row],[2016]]/F$42),"") -> 0.003990949565 | M52: =IFERROR((All[[#This Row],[2017]]/G$42),"") -> 0.0005148091532 | N52: =IFERROR((All[[#This Row],[2018]]/H$42),"") -> 0 | O52: =IFERROR((All[[#This Row],[2019]]/I$42),"") -> 0 | P52: =IFERROR((All[[#This Row],[2020]]/J$42),"") -> 0 | Q52: =IFERROR((All[[#This Row],[2021]]/K$42),"") -> 0 | R52: =IFERROR(((All[[#This Row],[2017]]-All[[#This Row],[2016]])/All[[#This Row],[2016]]),"") -> -0.8494765442 | S52: =IFERROR(((All[[#This Row],[2018]]-All[[#This Row],[2017]])/All[[#This Row],[2017]]),"") -> -1 | T52: =IFERROR(((All[[#This Row],[2019]]-All[[#This Row],[2018]])/All[[#This Row],[2018]]),"") ->  | U52: =IFERROR(((All[[#This Row],[2020]]-All[[#This Row],[2019]])/All[[#This Row],[2019]]),"") ->  | V52: =IFERROR(((All[[#This Row],[2021]]-All[[#This Row],[2020]])/All[[#This Row],[2020]]),"") -> 
A53: 52 | B53: Hero | C53: Income Statement | D53: Income | E53: net loss / sale / return of fixed assets | F53: -118382625 | G53: -167572435 | H53: -91164041 | I53: -47541553 | J53: -21559014 | K53: -58791781 | L53: =IFERROR((All[[#This Row],[2016]]/F$42),"") -> -0.01158275196 | M53: =IFERROR((All[[#This Row],[2017]]/G$42),"") -> -0.01405051397 | N53: =IFERROR((All[[#This Row],[2018]]/H$42),"") -> -0.006796545048 | O53: =IFERROR((All[[#This Row],[2019]]/I$42),"") -> -0.003071076493 | P53: =IFERROR((All[[#This Row],[2020]]/J$42),"") -> -0.001217467434 | Q53: =IFERROR((All[[#This Row],[2021]]/K$42),"") -> -0.002775454914 | R53: =IFERROR(((All[[#This Row],[2017]]-All[[#This Row],[2016]])/All[[#This Row],[2016]]),"") -> 0.4155154525 | S53: =IFERROR(((All[[#This Row],[2018]]-All[[#This Row],[2017]])/All[[#This Row],[2017]]),"") -> -0.4559723322 | T53: =IFERROR(((All[[#This Row],[2019]]-All[[#This Row],[2018]])/All[[#This Row],[2018]]),"") -> -0.478505423 | U53: =IFERROR(((All[[#This Row],[2020]]-All[[#This Row],[2019]])/All[[#This Row],[2019]]),"") -> -0.546522723 | V53: =IFERROR(((All[[#This Row],[2021]]-All[[#This Row],[2020]])/All[[#This Row],[2020]]),"") -> 1.727016226
A54: 53 | B54: Hero | C54: Income Statement | D54: Income Statement Totals | E54: Activity Profits | F54: =SUM(F42:F52) -> 1878889916 | G54: =SUM(G42:G52) -> 2334290683 | H54: =SUM(H42:H52) -> 2862490686 | I54: 2893616867 | J54: 3988930144 | K54: 5272115276 | L54: =IFERROR((All[[#This Row],[2016]]/F$42),"") -> 0.1838336991 | M54: =IFERROR((All[[#This Row],[2017]]/G$42),"") -> 0.1957242183 | N54: =IFERROR((All[[#This Row],[2018]]/H$42),"") -> 0.2134070263 | O54: =IFERROR((All[[#This Row],[2019]]/I$42),"") -> 0.1869210865 | P54: =IFERROR((All[[#This Row],[2020]]/J$42),"") -> 0.2252604199 | Q54: =IFERROR((All[[#This Row],[2021]]/K$42),"") -> 0.2488871404 | R54: =IFERROR(((All[[#This Row],[2017]]-All[[#This Row],[2016]])/All[[#This Row],[2016]]),"") -> 0.2423775673 | S54: =IFERROR(((All[[#This Row],[2018]]-All[[#This Row],[2017]])/All[[#This Row],[2017]]),"") -> 0.2262785894 | T54: =IFERROR(((All[[#This Row],[2019]]-All[[#This Row],[2018]])/All[[#This Row],[2018]]),"") -> 0.0108738104 | U54: =IFERROR(((All[[#This Row],[2020]]-All[[#This Row],[2019]])/All[[#This Row],[2019]]),"") -> 0.3785274027 | V54: =IFERROR(((All[[#This Row],[2021]]-All[[#This Row],[2020]])/All[[#This Row],[2020]]),"") -> 0.3216865389
A55: 54 | B55: Hero | C55: Income Statement | D55: Income | E55: Gain (loss) on sale of fixed assets | F55: 0 | G55: 0 | H55: 0 | I55: 0 | J55: 0 | K55: 0 | L55: =IFERROR((All[[#This Row],[2016]]/F$42),"") -> 0 | M55: =IFERROR((All[[#This Row],[2017]]/G$42),"") -> 0 | N55: =IFERROR((All[[#This Row],[2018]]/H$42),"") -> 0 | O55: =IFERROR((All[[#This Row],[2019]]/I$42),"") -> 0 | P55: =IFERROR((All[[#This Row],[2020]]/J$42),"") -> 0 | Q55: =IFERROR((All[[#This Row],[2021]]/K$42),"") -> 0 | R55: =IFERROR(((All[[#This Row],[2017]]-All[[#This Row],[2016]])/All[[#This Row],[2016]]),"") ->  | S55: =IFERROR(((All[[#This Row],[2018]]-All[[#This Row],[2017]])/All[[#This Row],[2017]]),"") ->  | T55: =IFERROR(((All[[#This Row],[2019]]-All[[#This Row],[2018]])/All[[#This Row],[2018]]),"") ->  | U55: =IFERROR(((All[[#This Row],[2020]]-All[[#This Row],[2019]])/All[[#This Row],[2019]]),"") ->  | V55: =IFERROR(((All[[#This Row],[2021]]-All[[#This Row],[2020]])/All[[#This Row],[2020]]),"") -> 
A56: 55 | B56: Hero | C56: Income Statement | D56: Income | E56: financing income | F56: 77127609 | G56: 94175889 | H56: 256194382 | I56: 81858510 | J56: 74046389 | K56: 98847147 | L56: =IFERROR((All[[#This Row],[2016]]/F$42),"") -> 0.007546292916 | M56: =IFERROR((All[[#This Row],[2017]]/G$42),"") -> 0.007896403986 | N56: =IFERROR((All[[#This Row],[2018]]/H$42),"") -> 0.01910003812 | O56: =IFERROR((All[[#This Row],[2019]]/I$42),"") -> 0.005287874079 | P56: =IFERROR((All[[#This Row],[2020]]/J$42),"") -> 0.004181502326 | Q56: =IFERROR((All[[#This Row],[2021]]/K$42),"") -> 0.00466639716 | R56: =IFERROR(((All[[#This Row],[2017]]-All[[#This Row],[2016]])/All[[#This Row],[2016]]),"") -> 0.2210399132 | S56: =IFERROR(((All[[#This Row],[2018]]-All[[#This Row],[2017]])/All[[#This Row],[2017]]),"") -> 1.72038188 | T56: =IFERROR(((All[[#This Row],[2019]]-All[[#This Row],[2018]])/All[[#This Row],[2018]]),"") -> -0.6804828062 | U56: =IFERROR(((All[[#This Row],[2020]]-All[[#This Row],[2019]])/All[[#This Row],[2019]]),"") -> -0.09543443925 | V56: =IFERROR(((All[[#This Row],[2021]]-All[[#This Row],[2020]])/All[[#This Row],[2020]]),"") -> 0.3349354146
A57: 56 | B57: Hero | C57: Income Statement | D57: Income | E57: financing costs | F57: -685718087 | G57: -1278642758 | H57: -1094318864 | I57: -513342379 | J57: -357736072 | K57: -1021989065 | L57: =IFERROR((All[[#This Row],[2016]]/F$42),"") -> -0.06709179254 | M57: =IFERROR((All[[#This Row],[2017]]/G$42),"") -> -0.1072108783 | N57: =IFERROR((All[[#This Row],[2018]]/H$42),"") -> -0.08158466183 | O57: =IFERROR((All[[#This Row],[2019]]/I$42),"") -> -0.03316075335 | P57: =IFERROR((All[[#This Row],[2020]]/J$42),"") -> -0.02020185235 | Q57: =IFERROR((All[[#This Row],[2021]]/K$42),"") -> -0.04824627736 | R57: =IFERROR(((All[[#This Row],[2017]]-All[[#This Row],[2016]])/All[[#This Row],[2016]]),"") -> 0.8646770185 | S57: =IFERROR(((All[[#This Row],[2018]]-All[[#This Row],[2017]])/All[[#This Row],[2017]]),"") -> -0.1441558972 | T57: =IFERROR(((All[[#This Row],[2019]]-All[[#This Row],[2018]])/All[[#This Row],[2018]]),"") -> -0.530902376 | U57: =IFERROR(((All[[#This Row],[2020]]-All[[#This Row],[2019]])/All[[#This Row],[2019]]),"") -> -0.303123828 | V57: =IFERROR(((All[[#This Row],[2021]]-All[[#This Row],[2020]])/All[[#This Row],[2020]]),"") -> 1.856824192
A58: 57 | B58: Hero | C58: Income Statement | D58: Income | E58: Losses of foreign currency valuation differences | F58: -2450775108 | G58: 209867458 | H58: -42507616 | I58: 504206862 | J58: 51411660 | K58: 10166306 | L58: =IFERROR((All[[#This Row],[2016]]/F$42),"") -> -0.2397878928 | M58: =IFERROR((All[[#This Row],[2017]]/G$42),"") -> 0.01759684192 | N58: =IFERROR((All[[#This Row],[2018]]/H$42),"") -> -0.003169066705 | O58: =IFERROR((All[[#This Row],[2019]]/I$42),"") -> 0.03257061967 | P58: =IFERROR((All[[#This Row],[2020]]/J$42),"") -> 0.002903287774 | Q58: =IFERROR((All[[#This Row],[2021]]/K$42),"") -> 0.000479933138 | R58: =IFERROR(((All[[#This Row],[2017]]-All[[#This Row],[2016]])/All[[#This Row],[2016]]),"") -> -1.085633095 | S58: =IFERROR(((All[[#This Row],[2018]]-All[[#This Row],[2017]])/All[[#This Row],[2017]]),"") -> -1.202545056 | T58: =IFERROR(((All[[#This Row],[2019]]-All[[#This Row],[2018]])/All[[#This Row],[2018]]),"") -> -12.86156528 | U58: =IFERROR(((All[[#This Row],[2020]]-All[[#This Row],[2019]])/All[[#This Row],[2019]]),"") -> -0.8980345888 | V58: =IFERROR(((All[[#This Row],[2021]]-All[[#This Row],[2020]])/All[[#This Row],[2020]]),"") -> -0.8022568032
A59: 58 | B59: Hero | C59: Income Statement | D59: Income Statement Totals | E59: net profit before taxes | F59: =SUM(F54:F58) -> -1180475670 | G59: =SUM(G54:G58) -> 1359691272 | H59: 1981858588 | I59: 2966339860 | J59: 3756652121 | K59: 4359139664 | L59: =IFERROR((All[[#This Row],[2016]]/F$42),"") -> -0.1154996933 | M59: =IFERROR((All[[#This Row],[2017]]/G$42),"") -> 0.1140065859 | N59: =IFERROR((All[[#This Row],[2018]]/H$42),"") -> 0.1477533359 | O59: =IFERROR((All[[#This Row],[2019]]/I$42),"") -> 0.1916188269 | P59: =IFERROR((All[[#This Row],[2020]]/J$42),"") -> 0.2121433576 | Q59: =IFERROR((All[[#This Row],[2021]]/K$42),"") -> 0.2057871933 | R59: =IFERROR(((All[[#This Row],[2017]]-All[[#This Row],[2016]])/All[[#This Row],[2016]]),"") -> -2.15181643 | S59: =IFERROR(((All[[#This Row],[2018]]-All[[#This Row],[2017]])/All[[#This Row],[2017]]),"") -> 0.457579841 | T59: =IFERROR(((All[[#This Row],[2019]]-All[[#This Row],[2018]])/All[[#This Row],[2018]]),"") -> 0.4967464773 | U59: =IFERROR(((All[[#This Row],[2020]]-All[[#This Row],[2019]])/All[[#This Row],[2019]]),"") -> 0.2664267408 | V59: =IFERROR(((All[[#This Row],[2021]]-All[[#This Row],[2020]])/All[[#This Row],[2020]]),"") -> 0.1603788489
A60: 59 | B60: Hero | C60: Income Statement | D60: Income | E60: Income Taxes | F60: 197613719 | G60: -418095793 | H60: -527258068 | I60: -741198704 | J60: -964958593 | K60: -1122839271 | L60: =IFERROR((All[[#This Row],[2016]]/F$42),"") -> 0.01933485333 | M60: =IFERROR((All[[#This Row],[2017]]/G$42),"") -> -0.03505624764 | N60: =IFERROR((All[[#This Row],[2018]]/H$42),"") -> -0.0393086262 | O60: =IFERROR((All[[#This Row],[2019]]/I$42),"") -> -0.04787975513 | P60: =IFERROR((All[[#This Row],[2020]]/J$42),"") -> -0.05449255063 | Q60: =IFERROR((All[[#This Row],[2021]]/K$42),"") -> -0.05300723535 | R60: =IFERROR(((All[[#This Row],[2017]]-All[[#This Row],[2016]])/All[[#This Row],[2016]]),"") -> -3.115722507 | S60: =IFERROR(((All[[#This Row],[2018]]-All[[#This Row],[2017]])/All[[#This Row],[2017]]),"") -> 0.2610939331 | T60: =IFERROR(((All[[#This Row],[2019]]-All[[#This Row],[2018]])/All[[#This Row],[2018]]),"") -> 0.4057607631 | U60: =IFERROR(((All[[#This Row],[2020]]-All[[#This Row],[2019]])/All[[#This Row],[2019]]),"") -> 0.301889207 | V60: =IFERROR(((All[[#This Row],[2021]]-All[[#This Row],[2020]])/All[[#This Row],[2020]]),"") -> 0.1636139407
A61: 60 | B61: Hero | C61: Income Statement | D61: Income Statement Totals | E61: general net profit | F61: =SUM(F59:F60) -> -982861951 | G61: =SUM(G59:G60) -> 941595479 | H61: =SUM(H59:H60) -> 1454600520 | I61: 2225141156 | J61: 2791693528 | K61: 3236300393 | L61: =IFERROR((All[[#This Row],[2016]]/F$42),"") -> -0.09616483998 | M61: =IFERROR((All[[#This Row],[2017]]/G$42),"") -> 0.07895033827 | N61: =IFERROR((All[[#This Row],[2018]]/H$42),"") -> 0.1084447097 | O61: =IFERROR((All[[#This Row],[2019]]/I$42),"") -> 0.1437390717 | P61: =IFERROR((All[[#This Row],[2020]]/J$42),"") -> 0.157650807 | Q61: =IFERROR((All[[#This Row],[2021]]/K$42),"") -> 0.1527799579 | R61: =IFERROR(((All[[#This Row],[2017]]-All[[#This Row],[2016]])/All[[#This Row],[2016]]),"") -> -1.958013969 | S61: =IFERROR(((All[[#This Row],[2018]]-All[[#This Row],[2017]])/All[[#This Row],[2017]]),"") -> 0.5448253018 | T61: =IFERROR(((All[[#This Row],[2019]]-All[[#This Row],[2018]])/All[[#This Row],[2018]]),"") -> 0.5297266331 | U61: =IFERROR(((All[[#This Row],[2020]]-All[[#This Row],[2019]])/All[[#This Row],[2019]]),"") -> 0.2546141266 | V61: =IFERROR(((All[[#This Row],[2021]]-All[[#This Row],[2020]])/All[[#This Row],[2020]]),"") -> 0.1592606282
A62: 61 | B62: Hero | C62: Income Statement | D62: Income | E62: Basic and diluted earnings per share | F62: 0 | G62: 0 | H62: 0 | I62: 0 | J62: 12.24 | K62: 14.75 | L62: =IFERROR((All[[#This Row],[2016]]/F$42),"") -> 0 | M62: =IFERROR((All[[#This Row],[2017]]/G$42),"") -> 0 | N62: =IFERROR((All[[#This Row],[2018]]/H$42),"") -> 0 | O62: =IFERROR((All[[#This Row],[2019]]/I$42),"") -> 0 | P62: =IFERROR((All[[#This Row],[2020]]/J$42),"") -> 6.91209783e-10 | Q62: =IFERROR((All[[#This Row],[2021]]/K$42),"") -> 6.963211402e-10 | R62: =IFERROR(((All[[#This Row],[2017]]-All[[#This Row],[2016]])/All[[#This Row],[2016]]),"") ->  | S62: =IFERROR(((All[[#This Row],[2018]]-All[[#This Row],[2017]])/All[[#This Row],[2017]]),"") ->  | T62: =IFERROR(((All[[#This Row],[2019]]-All[[#This Row],[2018]])/All[[#This Row],[2018]]),"") ->  | U62: =IFERROR(((All[[#This Row],[2020]]-All[[#This Row],[2019]])/All[[#This Row],[2019]]),"") ->  | V62: =IFERROR(((All[[#This Row],[2021]]-All[[#This Row],[2020]])/All[[#This Row],[2020]]),"") -> 0.2050653595
A63: =A62+1 -> 62 | B63: Hero | C63: Ratios | D63: Ratios (Amount) | E63: Total Investment | W63: =F15-F24 -> 5286038210 | X63: =G15-G24 -> 6063627865 | Y63: 5822650285 | Z63: 5297139735 | AA63: 6829656886 | AB63: 3715479085
A64: 63 | B64: Hero | C64: Ratios | D64: Ratios (Amount) | E64: Working Capital | W64: =F14-F24 -> -1496727230 | X64: =G14-G24 -> -1919275223 | Y64: -413153585 | Z64: -1679432364 | AA64: -1012992393 | AB64: -1588100986
A65: =A64+1 -> 64 | B65: Hero | C65: Ratios | D65: Ratios (Times) | E65: Total Assets TurnOver | AC65: =F15/F42 -> 0.8678378541 | AD65: =G15/G42 -> 0.9558621655 | AE65: 0.6614545415 | AF65: 0.6830856686 | AG65: 0.591390588 | AH65: 0.3472510135
A66: 65 | B66: Hero | C66: Ratios | D66: Ratios (Times) | E66: Fixed Assets TurnOver | AC66: =F2/F42 -> 0.02224327323 | AD66: =G2/G42 -> 0.03815689754 | AE66: 0.05501882318 | AF66: 0.01023980565 | AG66: 0.05362939778 | AH66: 0.005776170566
A67: =A66+1 -> 66 | B67: Hero | C67: Ratios | D67: Ratios (%) | E67: Profit To Owners Equity | AI67: =F61/F38 -> -0.7755076751 | AJ67: =G61/G38 -> 0.6184432482 | AK67: 0.4485708174 | AL67: 1.255560651 | AM67: 1.154823121 | AN67: 3.253783047
A68: 67 | B68: Hero | C68: Ratios | D68: Ratios (%) | E68: Profit To Total Liabilities | AI68: =F61/F33 -> -0.1292824158 | AJ68: =G61/G33 -> 0.09532735123 | AK68: 0.2583871811 | AL68: 0.2527930703 | AM68: 0.3465801414 | AN68: 0.5087637805

Sheet Sparklines-Inside-PivotTables
A1: Type | B1: (All) | K1: Manual
A3: Sum of Value | E3: Years
A4: Company | B4: Financial Statement/ Ratio | C4: Main item in Financial Statement/ Ratio | D4: Detailed item in Financial Statement/ Ratio | E4: 2016 | F4: 2017 | G4: 2018 | H4: 2019 | I4: 2020 | J4: 2021
A5: Hero | B5: Balance Sheet | C5: Balance Sheet Totals | D5: Total Assets | E5: 8869819850 | F5: 1.140002074e+10 | G5: 8872282685 | H5: 1.057445283e+10 | I5: 1.047239344e+10 | J5: 7355733087
D6: Total Current Assets | E6: 2087054409 | F6: 3417117652 | G6: 2636478814 | H6: 3597880735 | I6: 2629744160 | J6: 2052153015
D7: Total Current Liabilities | E7: 3583781639 | F7: 5336392875 | G7: 3049632399 | H7: 5277313099 | I7: 3642736553 | J7: 3640254001
D8: Total Liabilities | E8: 7602441096 | F8: 9877495461 | G8: 5629538253 | H8: 8802223708 | I8: 8054972558 | J8: 6361106111
D9: Total Liabilities & Owners Equity | E9: 8869819850 | F9: 1.140002074e+10 | G9: 8872282685 | H9: 1.057445283e+10 | I9: 1.047239344e+10 | J9: 7355733087
D10: Total Non current asset | E10: 6782765441 | F10: 7982903089 | G10: 6235803870 | H10: 6976572100 | I10: 7842649280 | J10: 5303580071
D11: Total Non Current Liabilities | E11: 4018659456 | F11: 4541102587 | G11: 2579905854 | H11: 3524910610 | I11: 4412236005 | J11: 2720852109
D12: Total Owners Equity | E12: 1267378754 | F12: 1522525279 | G12: 3242744432 | H12: 1772229126 | I12: 2417420883 | J12: 994626975.5
C14: Current Assets | D14: Accounts receivables | E14: 227758168 | F14: 949945899.3 | G14: 445161327.5 | H14: 572082814.3 | I14: 874781478.6 | J14: 90087447.12
D15: Bank Deposits | E15: 541493663.1 | F15: 774698823.5 | G15: 505566090.7 | H15: 774321336.6 | I15: 54347353.08 | J15: 653669039.1
D16: Cash | E16: 220888884 | F16: 13946341.06 | G16: 101678637.3 | H16: 870691382.6 | I16: 39099832.05 | J16: 537196833.8
D17: Clients | E17: 193186705 | F17: 929932030.9 | G17: 82975531.1 | H17: 379236928.6 | I17: 941063874.6 | J17: 358344788.4
D18: Inventory | E18: 62120567.01 | F18: 614738594.9 | G18: 945192391.6 | H18: 508173455.6 | I18: 600298289.2 | J18: 13659047.02
D19: Short term derivatives | E19: 841606422.1 | F19: 133855976.2 | G19: 555904844.2 | H19: 493374827.9 | I19: 120153332.3 | J19: 399195883.4
C21: Current Liabilities | D21: Accounts payable | E21: 357759805 | F21: 493407935.4 | G21: 344776388.7 | H21: 923347989.8 | I21: 871555042 | J21: 966975322.2
D22: Current maturities of long-term debt | E22: 872753992.1 | F22: 983620671.2 | G22: 25983277.03 | H22: 877290649.8 | I22: 932426949.2 | J22: 247967906.3
D23: Dividends payable | E23: 334942436 | F23: 593990745.8 | G23: 64976325.12 | H23: 653796000.1 | I23: 39021793.06 | J23: 731454241.8
D24: Income taxes owed within the next year | E24: 377787846 | F24: 995692435.7 | G24: 477722182.5 | H24: 24995020.05 | I24: 76944475.09 | J24: 108647941.4
D25: Interest payable on outstanding debts | E25: 257784384 | F25: 95396252.38 | G25: 619534520.6 | H25: 715685671.2 | I25: 233621023.3 | J25: 680936050
D26: Notes payable | E26: 999301227.1 | F26: 642551803.7 | G26: 390362980.7 | H26: 880965838.3 | I26: 645192106.8 | J26: 647266714.1
D27: Short-term debt | E27: 150370338 | F27: 615334822.1 | G27: 638431384.1 | H27: 956351084.6 | I27: 463385128.5 | J27: 123111328.3
D28: The current portion of deferred revenue | E28: 233081611 | F28: 916398216 | G28: 487845342.6 | H28: 244880888.5 | I28: 380590035.6 | J28: 133894515.4
C30: Non Current Asset | D30: Fixed Assets | E30: 227339503 | F30: 455075470 | G30: 737983522.7 | H30: 158516488.2 | I30: 949673816.1 | J30: 122355204.1
D31: Intangible assets | E31: 828390929.1 | F31: 643895801.8 | G31: 282559285.5 | H31: 150923766.5 | I31: 280775748.9 | J31: 990658998.7
D32: Investments | E32: 4646071303 | F32: 5948368947 | G32: 3443879482 | H32: 5432143899 | I32: 5522205034 | J32: 3109044508
D33: Other assets | E33: 334111497 | F33: 285715421.9 | G33: 985436653.6 | H33: 660299815.7 | I33: 817987615.3 | J33: 847334691.2
D34: Property, plant, and equipment | E34: 746852209.1 | F34: 649847448.9 | G34: 785944929.3 | H34: 574688128.8 | I34: 272007071.5 | J34: 234186670.9
C36: Non Current Liabilities | D36: Bonds payable | E36: 214327045 | F36: 526075614.5 | G36: 277484004.6 | H36: 363903955.3 | I36: 735256920.1 | J36: 41740021.06
D37: Debentures | E37: 813127084.1 | F37: 605968356.8 | G37: 89386020.16 | H37: 942051966.6 | I37: 634150418.7 | J37: 464274688.8
D38: Deferred tax liabilities | E38: 182203687 | F38: 760697498.2 | G38: 727179591 | H38: 953902248.4 | I38: 991456615.1 | J38: 566692022.6
D39: Differed Revenue | E39: 711951037.1 | F39: 562764497.8 | G39: 703019658.3 | H39: 70639542.11 | I39: 507990751.2 | J39: 587718804.2
D40: Long-term lease | E40: 974498778.1 | F40: 889257259 | G40: 126133074.2 | H40: 601893225.8 | I40: 796901469.4 | J40: 209876455.3
D41: Long-term loans | E41: 289975883 | F41: 554978809 | G41: 128651545.2 | H41: 364666008.9 | I41: 209645344.6 | J41: 846019532.2
D42: Pension benefit obligations | E42: 832575942.1 | F42: 641360555.8 | G42: 528051957.9 | H42: 227853676.5 | I42: 536834493.4 | J42: 4530585.009
C44: Owners Equity | D44: Additional paid-in capital | E44: 435441208 | F44: 918975594.2 | G44: 698245162.8 | H44: 344715748.5 | I44: 566856205.7 | J44: 160033980.3
D45: Outstanding shares | E45: 7966065.001 | F45: 227416836.6 | G45: 852521980.8 | H45: 315788676.4 | I45: 526676875.7 | J45: 170605844.3
D46: Retained earnings | E46: 733777818.1 | F46: 258066038.4 | G46: 928511191.7 | H46: 151752685.2 | I46: 488920936.3 | J46: 449605915
D47: Treasury stock | E47: 90193663.01 | F47: 118066838.3 | G47: 763466106.6 | H47: 959972014.3 | I47: 834966867.9 | J47: 214381234.3
B49: Income Statement | C49: Income | D49: activity expenses | E49: -3840463547 | F49: -4877526063 | G49: -6022404941 | H49: -7284007661 | I49: -7618358388 | J49: -9259931780
D50: advertising expenses | E50: -285579483 | F50: -274481700.1 | G50: -412438318.5 | H50: -428057267 | I50: -353825863.2 | J50: -554883284.5
D51: allotments | E51: -704202705.1 | F51: -475977097.4 | G51: -363442946.3 | H51: -437247859.8 | I51: -463935172 | J51: -550980039.8
D52: Allowances that are not intended | E52: 155760050 | F52: 350525782.3 | G52: 816333814.4 | H52: 510079615.7 | I52: 57215666.12 | J52: 103935665.8
D53: Basic and diluted earnings per share | E53: 0 | F53: 0 | G53: 0 | H53: 0 | I53: 12.24 | J53: 14.95506536
D54: change in stock | E54: -431999761 | F54: -560479595.7 | G54: -329165574.4 | H54: -404230812.8 | I54: -409292466 | J54: -498877942.8
D55: Depreciation and amortization | E55: -1901596942 | F55: -2158735307 | G55: -2674743878 | H55: -2853492329 | I55: -3077866825 | J55: -3785497514
D56: financing costs | E56: -685718087.1 | F56: -1278642757 | G56: -1094318864 | H56: -513342379.6 | I56: -357736072.3 | J56: -1021989063
D57: financing income | E57: 77127609.01 | F57: 94175889.23 | G57: 256194383.7 | H57: 81858509.32 | I57: 74046388.91 | J57: 98847147.34
D58: Fixed asset decay response | E58: 40789882 | F58: 6139833.151 | G58: -1 | H58: 0 | I58: 0 | J58: 0
D59: Gain (loss) on sale of fixed assets | E59: 0 | F59: 0 | G59: 0 | H59: 0 | I59: 0 | J59: 0
D60: Income Taxes | E60: 197613719 | F60: -418095796.2 | G60: -527258067.8 | H60: -741198703.6 | I60: -964958592.8 | J60: -1122839271
D61: Losses of disposal / sale / impairment of assets | E61: -159172507 | F61: -173712268.9 | G61: -91164041.48 | H61: -47541553.48 | I61: -21559014.55 | J61: -58791779.28
D62: Losses of foreign currency valuation differences | E62: -2450775108 | F62: 209867456.9 | G62: -42507617.21 | H62: 504206849.2 | I62: 51411659.1 | J62: 10166305.2
D63: net loss / sale / return of fixed assets | E63: -118382625 | F63: -167572434.6 | G63: -91164041.46 | H63: -47541553.48 | I63: -21559014.55 | J63: -58791779.28
D64: operating income | E64: 1.019555319e+10 | F64: 1.187732925e+10 | G64: 1.334292908e+10 | H64: 1.534051091e+10 | I64: 1.754739113e+10 | J64: 2.099278728e+10
D65: Operating rentals | E65: -464821104 | F65: -535247696.9 | G65: -594665143.9 | H65: -706692046.9 | I65: -777829288.9 | J65: -106721467.9
D66: Other income | E66: 25042524 | F66: 49098174.96 | G66: 70362581.44 | H66: 139908780 | I66: 160691571.2 | J66: 189967562.2
D67: Salaries, wages and other benefits | E67: -750419677.1 | F67: -892642620.9 | G67: -879109943.1 | H67: -935612907 | I67: -1053701205 | J67: -1198891415
C69: Income Statement Totals | D69: Activity Profits | E69: 1878889916 | F69: 2334290683 | G69: 2862490686 | H69: 2893616867 | I69: 3988930145 | J69: 5272115277
D70: general net profit | E70: -982861951.1 | F70: 941595477.1 | G70: 1454600521 | H70: 2225141157 | I70: 2791693528 | J70: 3236300393
D71: net profit before taxes | E71: -1180475670 | F71: 1359691270 | G71: 1981858589 | H71: 2966339861 | I71: 3756652121 | J71: 4359139664
D72: Total revenue | E72: 10220595711 | F72: 1.192642742e+10 | G72: 1.341329166e+10 | H72: 1.548041969e+10 | I72: 1.77080827e+10 | J72: 2.118275484e+10
B74: Ratios | C74: Ratios (%) | D74: Profit To Owners Equity | E74: -0.7755076751 | F74: 0.6184432482 | G74: 0.4485708174 | H74: 1.255560651 | I74: 1.154823121 | J74: 3.253783047
D75: Profit To Total Liabilities | E75: -0.1292824158 | F75: 0.09532735123 | G75: 0.2583871811 | H75: 0.2527930703 | I75: 0.3465801414 | J75: 0.5087637805
C77: Ratios (Amount) | D77: Total Investment | E77: 5286038210 | F77: 6063627865 | G77: 5822650285 | H77: 5297139735 | I77: 6829656886 | J77: 3715479085
D78: Working Capital | E78: -1496727230 | F78: -1919275223 | G78: -413153585 | H78: -1679432364 | I78: -1012992393 | J78: -1588100986
C80: Ratios (Times) | D80: Fixed Assets TurnOver | E80: 0.02224327323 | F80: 0.03815689754 | G80: 0.05501882318 | H80: 0.01023980565 | I80: 0.05362939778 | J80: 0.005776170566
D81: Total Assets TurnOver | E81: 0.8678378541 | F81: 0.9558621655 | G81: 0.6614545415 | H81: 0.6830856686 | I81: 0.591390588 | J81: 0.3472510135
